Workbook

Sheet inputs¦other
A10: =RIGHT(CELL("filename",A1),LEN(CELL("filename",A1))-FIND("]",CELL("filename",A1))) -> inputs¦other
A12: inflation | C12: 2012 | D12: 2013 | E12: 2014 | F12: 2015 | G12: 2016 | H12: 2017 | I12: 2018 | J12: 2019 | K12: 2020 | L12: 2021 | M12: 2022
A13: Inflation index | B13: Base 2016/17 | C13: =D13/(1+C15) -> 0.9088879049 | D13: 0.9232902033 | E13: 0.9463955638 | F13: =G13/(1+F15) -> 0.9741219963 | G13: =H13/(1+G15) -> 0.9870609982 | H13: 1 | I13: =H13*(1+I15) -> 1.023 | J13: =I13*(1+J15) -> 1.046529 | K13: =J13*(1+K15) -> 1.070599167 | L13: =K13*(1+L15) -> 1.095222948 | M13: =L13*(1+M15) -> 1.120413076
A14: Inflation index | B14: Base 2011/12 | C14: 1 | D14: =C14*(1+C15) -> 1.015846067 | E14: =D14*(1+D15) -> 1.04126764 | F14: 1.071773528 | G14: 1.086009609 | H14: 1.10024569
A15: CPI | C15: 0.01584606678 | D15: 0.02502502503 | E15: 0.029296875 | F15: 0.01328273245 | G15: 0.01310861423 | H15: 0.023 | I15: =H15 -> 0.023 | J15: =I15 -> 0.023 | K15: =J15 -> 0.023 | L15: =K15 -> 0.023 | M15: =L15 -> 0.023
A17: Asset Classes
A18: Original Pipeline
A19: Pipelines
A20: Lytton lateral
A21: Peat Lateral
A22: Compressors
A23: Regulators and meters
A24: Easements
A25: Communications
A26: Other
A27: Capitalised AA costs
A28: Group IT
A29: SIB Capex
A30: PMA
A32: AER's Forecast Capex
A33: Forecast Capex | B33: $m 2011/12 | D33: 3.9934 | E33: 4.4608 | F33: 3.330225 | G33: 3.543425 | H33: 2.983775
A34: Forecast capex | B34: $m 2016/17 | D34: =D33/$C$13 -> 4.393721138 | E34: =E33/$C$13 -> 4.907975974 | F34: =F33/$C$13 -> 3.664065703 | G34: =G33/$C$13 -> 3.898638084 | H34: =H33/$C$13 -> 3.282885584
A35: Forecast Capex | B35: $m nominal | D35: =D33*D14 -> 4.056679683 | E35: =E33*E14 -> 4.644886689 | F35: 3.569246997 | G35: 3.848193599 | H35: 3.282885584
A37: Historic Projects
A38: Aquarium Passage
A39: Flood Damage
A40: Bi direction
A41: Integrity Upgrade
A42: Clear SCADA
A43: RBP Looping
A44: FC and RTU upgrade
A45: Toowoomba Station Upgrade
A46: Access Arrangement
A48: Forecast Projects
A49: Urban Risk Reduction
A50: Pipeline Integrity Management
A51: Toowoomba Crossing
A52: Dalby Turbine Overhaul
A53: Applications and Renewals
A54: Infrastructure Renewals

Sheet Input¦Historic
J15: aa asset class
B16: 13 | C16: 14 | D16: 15 | E16: 16 | F16: Total | G16: Project | H16: Asset Type | I16: Original Pipeline | J16: Pipelines | K16: Compressors | L16: Regulators and meters | M16: Easements | N16: Communications | O16: Other | P16: Capitalised AA costs | Q16: Group IT | R16: SIB Capex | S16: PMA | T16: Total | U16: Dollars
A17: RBP11-SIB-18 REDBANK STN UPG | B17: 257390.48 | C17: 105462.91 | D17: 0 | E17: 0 | F17: =SUM(B17:E17) -> 362853.39 | G17: SIB | H17: Stay in Business | R17: 1 | T17: =SUM(I17:S17) -> 1 | U17: $2015/16
A18: RBP11-SIB-49 MV IMPACT MITIG | B18: -32218.95 | C18: 0 | D18: 0 | E18: 0 | F18: -32218.95 | G18: SIB | H18: Stay in Business | R18: 1 | T18: =SUM(I18:S18) -> 1 | U18: $2015/16
A19: RBP11-SIB-60 ALIGNMNT SHT/PI&D | B19: -2723 | C19: 0 | D19: 0 | E19: 0 | F19: -2723 | G19: SIB | H19: Stay in Business | R19: 1 | T19: 1 | U19: $2015/16
A20: RBP Access Arrangement Capex | B20: 70875.35 | C20: 0 | D20: 0 | E20: 0 | F20: 70875.35 | G20: Access Arrangement | H20: Stay in Business | P20: 1 | T20: 1 | U20: $2015/16
A21: RBP12-SIB-06 Upgrade Flow Comp | B21: 2166.3 | C21: -22172.8 | D21: 0 | E21: 0 | F21: -20006.5 | G21: SIB | H21: Stay in Business | R21: 1 | T21: 1 | U21: $2015/16
A22: RBP12-SIB-05 Upgrade Flow Comp | B22: 6498.9 | C22: -33013.4 | D22: 0 | E22: 0 | F22: -26514.5 | G22: SIB | H22: Stay in Business | R22: 1 | T22: 1 | U22: $2015/16
A23: RBP EXP - LOOPING STAGE 1 | B23: 1345832.28 | C23: 2363015.22 | D23: 18579.01 | E23: 0 | F23: 3727426.51 | G23: RBP Looping | H23: Expansion/Extension | J23: 1 | T23: 1 | U23: $2015/16
A24: RBP EXP - ELLENGROVE STATION | B24: 2611.42 | C24: 0 | D24: 0 | E24: 0 | F24: 2611.42 | G24: RBP Looping | H24: Expansion/Extension | J24: 1 | T24: 1 | U24: $2015/16
A25: RBP EXP - MAOP UPGRADE | B25: 588644.61 | C25: -615 | D25: 0 | E25: 0 | F25: 588029.61 | G25: RBP Looping | H25: Expansion/Extension | J25: 1 | T25: 1 | U25: $2015/16
A26: RBP Exp - Dalby Compressor St | B26: 143241.7 | C26: 23529.89 | D26: 0.01 | E26: 0 | F26: 166771.6 | G26: RBP Looping | H26: Expansion/Extension | K26: 1 | T26: 1 | U26: $2015/16
A27: RBP Coating Refurbishment | B27: 27525 | C27: 0 | D27: 0 | E27: 0 | F27: 27525 | G27: Pipeline Integrity Management | H27: Replacement | I27: 1 | T27: 1 | U27: $2015/16
A28: UMG SCADA Server Relocation | B28: -6286.35 | C28: 0 | D28: 0 | E28: 0 | F28: -6286.35 | G28: SIB | H28: Stay in Business | R28: 1 | T28: 1 | U28: $2015/16
A29: RBP11-SIB-47 ACQUIRE EASEMENTS | B29: -39743.07 | C29: 0 | D29: 0 | E29: 0 | F29: -39743.07 | G29: SIB | H29: Stay in Business | M29: 1 | T29: 1 | U29: $2015/16
A30: NAT13-SIB-01 IDMT PHASE 2 QLD | B30: 99351.99 | C30: -80329.54 | D30: 0 | E30: 0 | F30: 19022.45 | G30: Pipeline Integrity Management | H30: Stay in Business | R30: 1 | T30: 1 | U30: $2015/16
A31: RBP BLACKSTONE POWER STATION | B31: -63081.5 | C31: 0 | D31: 0 | E31: 0 | F31: -63081.5 | G31: SIB | H31: Stay in Business | R31: 1 | T31: 1 | U31: $2015/16
A32: ELLENGROVE FILTER DOOR UPGRADE | B32: 161 | C32: 0 | D32: 0 | E32: 0 | F32: 161 | G32: SIB | H32: Stay in Business | R32: 1 | T32: 1 | U32: $2015/16
A33: RBP13-SIB-08 RBP Coating Rfb | B33: 20344.4 | C33: -20344.4 | D33: 0 | E33: 0 | F33: =SUM(B33:E33) -> 0 | G33: Pipeline Integrity Management | H33: Replacement | I33: 1 | T33: 1 | U33: $2015/16
A34: RBP13-SIB-06 RTU Upgrades | B34: 26836 | C34: 442393.4 | D34: -2476.76 | E34: 0 | F34: 466752.64 | G34: FC and RTU upgrade | H34: Stay in Business | R34: 1 | T34: 1 | U34: $2015/16
A35: RBP13-SIB-04 UPDATE P&ID's | B35: 49208.9 | C35: 0 | D35: 0 | E35: 0 | F35: 49208.9 | G35: SIB | H35: Stay in Business | R35: 1 | T35: 1 | U35: $2015/16
A36: RBP13-SIB-17 TWMBA VEHC ENTRY | B36: 52271.32 | C36: 0 | D36: 0 | E36: 0 | F36: 52271.32 | G36: SIB | H36: Stay in Business | R36: 1 | T36: 1 | U36: $2015/16
A37: RBP13-SIB-03 VEHC MITIGATION | B37: 86009.38 | C37: 149504.91 | D37: 0 | E37: 0 | F37: 235514.29 | G37: SIB | H37: Stay in Business | R37: 1 | T37: 1 | U37: $2015/16
A38: RBP13-SIB-02 Haz Area Rect | B38: 98788.45 | C38: 335297.9 | D38: 74211.15 | E38: 93930.29 | F38: 602227.79 | G38: SIB | H38: Stay in Business | R38: 1 | T38: 1 | U38: $2015/16
A39: RBP14-SIB-62 TELEMETRY UPGRADE | B39: 0 | C39: 197333.05 | D39: -197333.05 | E39: 0 | F39: =SUM(B39:E39) -> 0 | G39: SIB | H39: Stay in Business | I39: 1 | T39: 1 | U39: $2015/16
A40: CONDAMINE BDF UPGRADE | B40: 0 | C40: 43537.43 | D40: 0 | E40: 0 | F40: 43537.43 | G40: SIB | H40: Stay in Business | R40: 1 | T40: 1 | U40: $2015/16
A41: QLD14-SIB-01 QLD Clear SCADA | B41: 0 | C41: 398043.28 | D41: 548753.95 | E41: 0 | F41: =SUM(B41:E41) -> 946797.23 | G41: Clear SCADA | H41: Stay in Business | R41: 1 | T41: 1 | U41: $2015/16
A42: RBP14-SIB-82 MG MAOP SEP | B42: 0 | C42: 13929.34 | D42: 4403 | E42: -18332.34 | F42: =SUM(B42:E42) -> 0 | G42: SIB | H42: Stay in Business | R42: 1 | T42: 1 | U42: $2015/16
A43: RBP14-SIB-90 Murarrie Erosion | B43: 0 | C43: 7364 | D43: -6591 | E43: -773 | F43: =SUM(B43:E43) -> 0 | G43: SIB | H43: Stay in Business | R43: 1 | T43: 1 | U43: $2015/16
A44: RBP15-SIB-04 FIRE SUP FEED | B44: 0 | C44: 0 | D44: 4949.3 | E44: 48634.47 | F44: 53583.77 | G44: SIB | H44: Stay in Business | R44: 1 | T44: 1 | U44: $2015/16
A45: RBP15-SIB-03 AS4853 UPGRADE | B45: 0 | C45: 0 | D45: 3979.9 | E45: -3979.9 | F45: =SUM(B45:E45) -> 0 | G45: SIB | H45: Stay in Business | R45: 1 | T45: 1 | U45: $2015/16
A46: RBP15-SIB-07 CP Telemetry | B46: 0 | C46: 0 | D46: 287636.65 | E46: 243228.77 | F46: 530865.42 | G46: Pipeline Integrity Management | H46: Replacement | I46: 1 | T46: 1 | U46: $2015/16
A47: RBP15-SIB-61 WEST MINOR ASSETS | B47: 0 | C47: 0 | D47: 14696.49 | E47: 4422.95 | F47: 19119.44 | G47: SIB | H47: Stay in Business | R47: 1 | T47: 1 | U47: $2015/16
A48: RBP15-SIB-24 SANDY CK MODS | B48: 0 | C48: 0 | D48: 28018.2 | E48: 1380.6 | F48: 29398.8 | G48: SIB | H48: Stay in Business | R48: 1 | T48: 1 | U48: $2015/16
A49: RBP15-SIB-25 PV Upgrade Prog | B49: 0 | C49: 0 | D49: 76698.18 | E49: 74763.65 | F49: 151461.83 | G49: SIB | H49: Stay in Business | R49: 1 | T49: 1 | U49: $2015/16
A50: RBP15-SIB-82 3P Risk Reduct | B50: 0 | C50: 0 | D50: 89229.4 | E50: -60247.6 | F50: 28981.8 | G50: SIB | H50: Stay in Business | R50: 1 | T50: 1 | U50: $2015/16
A51: RBP15-SIB-61 EAST MINOR ASSETS | B51: 0 | C51: 0 | D51: 12816.4 | E51: 4400.95 | F51: 17217.35 | G51: SIB | H51: Stay in Business | R51: 1 | T51: 1 | U51: $2015/16
A52: RBP15-SIB-27 RBP Type B Gas Co | B52: 0 | C52: 0 | D52: 31198.88 | E52: 0 | F52: 31198.88 | G52: SIB | H52: Stay in Business | R52: 1 | T52: 1 | U52: $2015/16
A53: RBP15-SIB-61 CNTRL MINOR ASSET | B53: 0 | C53: 0 | D53: 39948.16 | E53: 0 | F53: 39948.16 | G53: SIB | H53: Stay in Business | R53: 1 | T53: 1 | U53: $2015/16
A54: RBP15-SIB-41 DN250 INTEG PROG | B54: 0 | C54: 0 | D54: 23686.4 | E54: -5.5 | F54: 23680.9 | G54: Pipeline Integrity Management | H54: Replacement | I54: 1 | T54: 1 | U54: $2015/16
A55: East Coast Clear SCADA License | B55: 0 | C55: 0 | D55: 20260.24 | E55: 0 | F55: 20260.24 | G55: SIB | H55: Stay in Business | R55: 1 | T55: 1 | U55: $2015/16
A56: RBP16-SIB-28 SWNBANK MLV STUDY | B56: 0 | C56: 0 | D56: 0 | E56: 594657.32 | F56: 594657.32 | G56: SIB | H56: Stay in Business | R56: 1 | T56: 1 | U56: $2015/16
A57: RBP METRO ISOLATION FEED | B57: 0 | C57: 0 | D57: 0 | E57: 14263.26 | F57: 14263.26 | G57: SIB | H57: Stay in Business | I57: 1 | T57: 1 | U57: $2015/16
A58: RBP16-SIB-47 DN300 EMAT ILI | B58: 0 | C58: 0 | D58: 0 | E58: 823889.76 | F58: 823889.76 | G58: Pipeline Integrity Management | H58: Stay in Business | I58: 1 | T58: 1 | U58: $2015/16
A59: QLD 3D LASER PL SCANNER | B59: 0 | C59: 0 | D59: 0 | E59: 141023.41 | F59: 141023.41 | G59: Pipeline Integrity Management | H59: Stay in Business | I59: 1 | T59: 1 | U59: $2015/16
A60: RBP16-SIB-22 SCOTIA/WR VENT EX | B60: 0 | C60: 0 | D60: 0 | E60: 12768.91 | F60: 12768.91 | G60: SIB | H60: Stay in Business | R60: 1 | T60: 1 | U60: $2015/16
A61: RBP16-SIB RISK MITIGATION FEED | B61: 0 | C61: 0 | D61: 0 | E61: 240096.01 | F61: 240096.01 | G61: SIB | H61: Stay in Business | I61: 1 | T61: 1 | U61: $2015/16
A62: RBP Emergency Pipe Storage | B62: 0 | C62: 0 | D62: 0 | E62: 138117 | F62: 138117 | G62: SIB | H62: Stay in Business | R62: 1 | T62: 1 | U62: $2015/16
A63: RBP13-SIB-05 RBP 10' ILI | B63: 106611.85 | C63: 836870.81 | D63: 746612.08 | E63: 13164.16 | F63: 1703258.9 | G63: Pipeline Integrity Management | H63: Stay in Business | I63: 1 | T63: 1 | U63: $2015/16
A64: RBP16-SIB-49 VEHICLE MITIGATE | B64: 0 | C64: 47701.04 | D64: 35668.92 | E64: 419628.54 | F64: 502998.5 | G64: SIB | H64: Stay in Business | R64: 1 | T64: 1 | U64: $2015/16
A65: RBP11-SIB-17 TWMBA STN UPGRADE | B65: 56110.01 | C65: 409980.34 | D65: 830888.95 | E65: 0 | F65: 1296979.3 | G65: Toowoomba station upgrade | H65: Stay in Business | R65: 1 | T65: 1 | U65: $2015/16
A66: RBP13-SIB-01 RBP CP UPGRADES | B66: 90490.44 | C66: 550 | D66: 0 | E66: 0 | F66: 91040.44 | G66: Pipeline Integrity Management | H66: Replacement | I66: 1 | T66: 1 | U66: $2015/16
A67: RBP14-SIB-08 COATING REFURB | B67: 0 | C67: 399638.97 | D67: -1840 | E67: 0 | F67: 397798.97 | G67: Pipeline Integrity Management | H67: Replacement | I67: 1 | T67: 1 | U67: $2015/16
A68: RBP14-SIB-61 RBP CP UPGRADES | B68: 0 | C68: 931641.84 | D68: -1789.97 | E68: -466160.99 | F68: 463690.88 | G68: Pipeline Integrity Management | H68: Replacement | I68: 1 | T68: 1 | U68: $2015/16
A69: RBP15-SIB-01 FC & RTU UPGRADE | B69: 0 | C69: 0 | D69: 533992.57 | E69: 102168.29 | F69: 636160.86 | G69: FC and RTU upgrade | H69: Stay in Business | R69: 1 | T69: 1 | U69: $2015/16
A70: RBP15-SIB-29 TWMBA DN250 MLV | B70: 0 | C70: 0 | D70: 383747.1 | E70: -2225.6 | F70: 381521.5 | G70: SIB | H70: Stay in Business | I70: 1 | T70: 1 | U70: $2015/16
A71: RBP15-SIB-42 RBP CP UPGRADES | B71: 0 | C71: 0 | D71: 147597.06 | E71: 937211.03 | F71: 1084808.09 | G71: Pipeline Integrity Management | H71: Replacement | I71: 1 | T71: 1 | U71: $2015/16
A72: TWMBA Escarpment Geo Testing | B72: 0 | C72: 0 | D72: 10829.22 | E72: 186018.18 | F72: 196847.4 | G72: SIB | H72: Stay in Business | R72: 1 | T72: 1 | U72: $2015/16
A73: RBP Murarrie MS Sea Wall | B73: 0 | C73: 0 | D73: 293579.22 | E73: 168083.28 | F73: 461662.5 | G73: SIB | H73: Stay in Business | R73: 1 | T73: 1 | U73: $2015/16
A74: RBP METRO LOOPING STAGE 2 | B74: 842856.25 | C74: 17091.56 | D74: 0 | E74: 0 | F74: 859947.81 | G74: RBP Looping | H74: Expansion/Extension | J74: 1 | T74: 1 | U74: $2015/16
A75: RBP MINOR TOOLS & EQUIP FY13 | B75: 147011.79 | C75: -6139 | D75: 0 | E75: 0 | F75: 140872.79 | G75: SIB | H75: Stay in Business | R75: 1 | T75: 1 | U75: $2015/16
A76: RBP13-SIB-14 EASEMENT ACQ | B76: 71954.3 | C76: 4679.07 | D76: 612 | E76: 0 | F76: 77245.37 | G76: Pipeline Integrity Management | H76: Replacement | M76: 1 | T76: 1 | U76: $2015/16
A77: RBP AQUARIUM PASSAGE | B77: 203407.42 | C77: 606152.13 | D77: 1120198.13 | E77: 0 | F77: 1929757.68 | G77: ='inputs¦other'!A38 -> Aquarium Passage | H77: Replacement | R77: 1 | T77: 1 | U77: $2015/16
A78: RBP EAST MINOR TOOLS FY14 | B78: 0 | C78: 58187.67 | D78: 0 | E78: 0 | F78: 58187.67 | G78: SIB | H78: Stay in Business | R78: 1 | T78: 1 | U78: $2015/16
A79: RBP CENTRAL MINOR TOOLS FY14 | B79: 0 | C79: 55531.93 | D79: 0 | E79: 0 | F79: 55531.93 | G79: SIB | H79: Stay in Business | R79: 1 | T79: 1 | U79: $2015/16
A80: RBP14-SIB-63 LOOP CNTRL UPG | B80: 0 | C80: 64165.76 | D80: 0 | E80: 0 | F80: 64165.76 | G80: SIB | H80: Stay in Business | J80: 1 | T80: 1 | U80: $2015/16
A81: RBP14-SIB-14 YULEBA LAND | B81: 0 | C81: 5066.65 | D81: 0 | E81: 0 | F81: 5066.65 | G81: SIB | H81: Stay in Business | M81: 1 | T81: 1 | U81: $2015/16
A82: RBP WEST MINOR TOOLS FY14 | B82: 0 | C82: 18043 | D82: 0 | E82: 0 | F82: 18043 | G82: SIB | H82: Stay in Business | R82: 1 | T82: =SUM(I82:S82) -> 1 | U82: $2015/16
A83: RBP Integrity Upgrade Project | B83: 0 | C83: 0 | D83: 1080254.66 | E83: 0 | F83: 1080254.66 | G83: Pipeline Integrity Management | H83: Replacement | I83: 1 | T83: 1 | U83: $2015/16
A84: RBP Bi-Directional Flow | B84: 0 | C84: 0 | D84: 7545195.78 | E84: 614017.58 | F84: 8159213.36 | G84: Bi direction | H84: Stay in Business | J84: 1 | T84: 1 | U84: $2015/16
A85: Roma to Brisbane Digups Stag1 | B85: 0 | C85: 0 | D85: 0 | E85: 3701897.67 | F85: 3701897.67 | G85: Pipeline Integrity Management | H85: Replacement | I85: 1 | T85: 1 | U85: $2015/16
A86: RBP16-SIB-84 AB EASEMENT ACQ | B86: 0 | C86: 0 | D86: 0 | E86: 74928.14 | F86: 74928.14 | G86: SIB | H86: Stay in Business | M86: 1 | T86: 1 | U86: $2015/16
A87: RBP Access Arrangement FY17 | B87: 0 | C87: 0 | D87: 0 | E87: 58008.08 | F87: 58008.08 | G87: Access Arrangement | H87: Stay in Business | P87: 1 | T87: 1 | U87: $2015/16
A88: RBP16-SIB CP DATA COLLECTION | B88: 0 | C88: 0 | D88: 0 | E88: 50946.05 | F88: 50946.05 | G88: SIB | H88: Stay in Business | R88: 1 | T88: 1 | U88: $2015/16
A89: Marburg Range | B89: 0 | C89: 0 | D89: 2848142.64 | E89: 0 | F89: 2848142.64 | G89: Flood Damage | H89: Stay in Business | I89: 0.5 | J89: 0.5 | T89: 1 | U89: $2015/16
A90: Flood damage | B90: 98026.84 | C90: 0 | D90: 0 | E90: 0 | F90: 98026.84 | G90: Flood Damage | H90: Stay in Business | J90: 0.6266931587 | R90: 0.3733068413 | T90: =SUM(I90:S90) -> 1 | U90: $2015/16
A91: Flood Damage | B91: 0 | C91: 1763964.737 | D91: 32709.61 | E91: 0 | F91: 1796674.347 | G91: Flood Damage | H91: Stay in Business | I91: 0.5 | J91: 0.5 | T91: 1 | U91: $2015/16
A92: Toowoomba Escarpment | B92: 0 | C92: 30577.51 | D92: 2803439.24 | E92: 0 | F92: 2834016.75 | G92: Flood Damage | H92: Stay in Business | I92: 0.5 | J92: 0.5 | T92: 1 | U92: $2015/16
A93: Corporate Assets | B93: 1292236.067 | C93: 1146777.46 | D93: 2284029.771 | E93: 1571910.78 | F93: 6294954.077 | G93: SIB | H93: Stay in Business | Q93: 1 | T93: 1 | U93: $2015/16
A94: Major Excavations | B94: 237675.49 | C94: 207537.05 | D94: 1225644.88 | E94: 14455 | F94: 1685312.42 | G94: Pipeline Integrity Management | H94: Replacement | I94: 1 | T94: 1 | U94: $2015/16
A95: Capitalised to other entitites | B95: -2000 | C95: 0 | D95: 0 | E95: 0 | F95: -2000 | G95: SIB | H95: Stay in Business | O95: 0 | R95: 1 | T95: 1 | U95: $2015/16
A96: Other | B96: 0 | C96: 0 | D96: 0 | E96: 96402.62 | F96: 96402.62 | G96: SIB | H96: Stay in Business | R96: 1 | T96: 1 | U96: $2015/16
A97: Clear SCADA licence | B97: 0 | C97: 0 | D97: 0 | E97: -20260.24 | F97: -20260.24 | G97: SIB | H97: Stay in Business | R97: 1 | T97: 1 | U97: $2015/16
A98: Capital Contribution | B98: 0 | D98: 0 | E98: 0 | F98: -95218.24 | G98: SIB | H98: Stay in Business | I98: 1 | T98: 1 | U98: $2015/16
A101: Total | B101: =SUM(B17:B100) -> 5878085.067 | C101: =SUM(C17:C100) -> 10520954.72 | D101: =SUM(D17:D100) -> 22992176.37 | E101: =SUM(E17:E100) -> 9872431.58 | F101: =SUM(F17:F100) -> 49168429.49

Sheet Input¦Forecast
L15: aa asset class
B16: 17 | C16: 18 | D16: 19 | E16: 20 | F16: 21 | G16: 22 | H16: Total | I16: Driver | J16: Project | K16: Original Pipeline | L16: Pipelines | M16: Compressors | N16: Regulators and meters | O16: Easements | P16: Communications | Q16: Other | R16: Capitalised AA costs | S16: Group IT | T16: SIB Capex | U16: PMA | V16: Total | W16: Dollars
A17: ALARM RATIONALISATION | B17: 28.54574563 | C17: 0 | D17: 0 | E17: 0 | F17: 0 | G17: 0 | H17: =SUM(B17:G17) -> 28.54574563 | I17: Stay in Business | J17: Stay in business | T17: 1 | V17: 1 | W17: $2016/17
A18: ANODE BED EASEMENTS PROGRAM | B18: 214.83 | C18: 219.945 | D18: 225.06 | E18: 230.175 | F18: 235.29 | G18: 240.405 | H18: =SUM(B18:G18) -> 1365.705 | I18: Replacement | J18: ='inputs¦other'!A50 -> Pipeline Integrity Management | K18: 0.5 | L18: 0.5 | V18: 1 | W18: $2015/16
A19: Condamine River Strain Excavation | B19: 0 | C19: 204.6 | D19: 0 | E19: 0 | F19: 0 | G19: 0 | H19: 204.6 | I19: Stay in Business | J19: Stay in business | K19: 1 | V19: 1 | W19: $2015/16
A20: DN250 INTEGRITY UPGRADE PROGRAM | B20: 5012.7 | C20: 5414.739 | D20: 6107.31 | E20: 4071.54 | F20: 3764.64 | G20: 4328.313 | H20: 28699.242 | I20: Replacement | J20: ='inputs¦other'!A50 -> Pipeline Integrity Management | K20: 1 | V20: 1 | W20: $2015/16
A21: Gas Measurement Upgrade - including shades | B21: 0 | C21: 0 | D21: 0 | E21: 51.15 | F21: 51.15 | G21: 0 | H21: 102.3 | I21: Stay in Business | J21: Stay in business | T21: 1 | V21: 1 | W21: $2015/16
A22: GIBSON ISLAND E/I REVIEW FEED | B22: 10.23 | C22: 0 | D22: 0 | E22: 0 | F22: 0 | G22: 0 | H22: 10.23 | I22: Stay in Business | J22: Stay in business | T22: 1 | V22: 1 | W22: $2015/16
A23: Gibson Island Pressure Vessel platforms | B23: 0 | C23: 0 | D23: 0 | E23: 81.84 | F23: 0 | G23: 0 | H23: 81.84 | I23: Stay in Business | J23: Stay in business | N23: 1 | V23: 1 | W23: $2015/16
A24: Laser Scanner for Feature Assessment | B24: 0 | C24: 0 | D24: 0 | E24: 0 | F24: 153.45 | G24: 0 | H24: 153.45 | I24: Replacement | J24: ='inputs¦other'!A50 -> Pipeline Integrity Management | K24: 0.5 | L24: 0.5 | V24: 1 | W24: $2015/16
A25: LOSS OF SUPPLY DESIGN REVIEW | B25: 8.563723688 | C25: 0 | D25: 0 | E25: 0 | F25: 0 | G25: 0 | H25: 8.563723688 | I25: Stay in Business | J25: Stay in business | T25: 1 | V25: 1 | W25: $2015/16
A26: METER PERFORMANCE PROGRAM FEED | B26: 0 | C26: 5.709149125 | D26: 0 | E26: 0 | F26: 0 | G26: 0 | H26: 5.709149125 | I26: Stay in Business | J26: Stay in business | N26: 1 | V26: 1 | W26: $2015/16
A27: PEAT lateral cleaning pigging | B27: 15.345 | C27: 0 | D27: 0 | E27: 0 | F27: 0 | G27: 0 | H27: 15.345 | I27: Stay in Business | J27: Stay in business | T27: 1 | V27: 1 | W27: $2015/16
A28: PEAT LATERAL ILI - DN250 | B28: 0 | C28: 0 | D28: 0 | E28: 143.22 | F28: 0 | G28: 0 | H28: 143.22 | I28: Replacement | J28: ='inputs¦other'!A50 -> Pipeline Integrity Management | L28: 1 | V28: 1 | W28: $2015/16
A29: PEAT LATERAL LIQUIDS REMOVAL | B29: 0 | C29: 306.9 | D29: 0 | E29: 0 | F29: 0 | G29: 0 | H29: 306.9 | I29: Stay in Business | J29: Stay in business | L29: 1 | V29: 1 | W29: $2015/16
A30: PIPELINE REPAIR & EXCAVATION PROGRAM (unplanned) | B30: 102.3 | C30: 102.3 | D30: 102.3 | E30: 102.3 | F30: 102.3 | G30: 0 | H30: 511.5 | I30: Stay in Business | J30: Stay in business | T30: 1 | V30: 1 | W30: $2015/16
A31: Portable Slug Catcher - DN400 | B31: 228.365965 | C31: 0 | D31: 0 | E31: 0 | F31: 0 | G31: 0 | H31: 228.365965 | I31: Stay in Business | J31: Stay in business | L31: 1 | V31: 1 | W31: $2015/16
A32: QLD OPERATIONS SIB FUNDING | B32: 119.8921316 | C32: 114.1829825 | D32: 114.1829825 | E32: 114.1829825 | F32: 114.1829825 | G32: 114.1829825 | H32: 690.8070442 | I32: Stay in Business | J32: Stay in business | T32: 1 | V32: 1 | W32: $2015/16
A33: RBP - Station painting program | B33: 81.84 | C33: 81.84 | D33: 81.84 | E33: 81.84 | F33: 81.84 | G33: 81.84 | H33: 491.04 | I33: Stay in Business | J33: Stay in business | T33: 1 | V33: 1 | W33: $2015/16
A34: RBP - TYPE B GAS COMPLIANCE UPGRADES | B34: 25.575 | C34: 112.53 | D34: 112.53 | E34: 0 | F34: 0 | G34: 0 | H34: 250.635 | I34: Stay in Business | J34: Stay in business | T34: 1 | V34: 1 | W34: $2015/16
A35: RBP & PEAT ISOLATION PLAN UPGRADES | B35: 102.3 | C35: 102.3 | D35: 102.3 | E35: 0 | F35: 0 | G35: 0 | H35: 306.9 | I35: Stay in Business | J35: Stay in business | T35: 1 | V35: 1 | W35: $2015/16
A36: RBP- AS4853 ELECTRICAL HAZARD UPGRADES | B36: 0 | C36: 122.76 | D36: 0 | E36: 0 | F36: 0 | G36: 0 | H36: 122.76 | I36: Stay in Business | J36: Stay in business | T36: 1 | V36: 1 | W36: $2015/16
A37: RBP CE Lateral ILI - DN400 | B37: 0 | C37: 0 | D37: 10.23 | E37: 194.37 | F37: 0 | G37: 0 | H37: 204.6 | I37: Replacement | J37: ='inputs¦other'!A50 -> Pipeline Integrity Management | L37: 1 | V37: 1 | W37: $2015/16
A38: RBP Cleaning Program (DN400) | B38: 16.368 | C38: 0 | D38: 0 | E38: 0 | F38: 0 | G38: 0 | H38: 16.368 | I38: Stay in Business | J38: Stay in business | T38: 1 | V38: 1 | W38: $2015/16
A39: RBP CP TELEMETRY UPGRADE | B39: 153.45 | C39: 153.45 | D39: 153.45 | E39: 153.45 | F39: 153.45 | G39: 0 | H39: 767.25 | I39: Replacement | J39: ='inputs¦other'!A50 -> Pipeline Integrity Management | K39: 0.5 | L39: 0.5 | V39: 1 | W39: $2015/16
A40: RBP CP UPGRADE PROGRAM | B40: 643.467 | C40: 656.766 | D40: 662.904 | E40: 662.904 | F40: 662.904 | G40: 662.904 | H40: 3951.849 | I40: Replacement | J40: ='inputs¦other'!A50 -> Pipeline Integrity Management | K40: 0.5 | L40: 0.5 | V40: 1 | W40: $2015/16
A41: RBP DN400 Supply Offtakes | B41: 0 | C41: 0 | D41: 255.75 | E41: 0 | F41: 102.3 | G41: 0 | H41: 358.05 | I41: Stay in Business | J41: Stay in business | T41: 1 | V41: 1 | W41: $2015/16
A42: RBP HA RECTIFICATION | B42: 153.45 | C42: 51.15 | D42: 0 | E42: 0 | F42: 0 | G42: 102.3 | H42: 306.9 | I42: Stay in Business | J42: Stay in business | T42: 1 | V42: 1 | W42: $2015/16
A43: RBP LOOPING ILI - DN400 | B43: 0 | C43: 0 | D43: 0 | E43: 0 | F43: 1841.4 | G43: 0 | H43: 1841.4 | I43: Replacement | J43: ='inputs¦other'!A50 -> Pipeline Integrity Management | L43: 1 | V43: 1 | W43: $2015/16
A44: RBP LYTTON LATERAL ILI - DN200 | B44: 5.115 | C44: 143.22 | D44: 0 | E44: 0 | F44: 0 | G44: 0 | H44: 148.335 | I44: Replacement | J44: ='inputs¦other'!A50 -> Pipeline Integrity Management | L44: 1 | V44: 1 | W44: $2015/16
A45: RBP MAINLINE ILI PROGRAM - DN250 | B45: 0 | C45: 0 | D45: 1534.5 | E45: 0 | F45: 0 | G45: 0 | H45: 1534.5 | I45: Replacement | J45: ='inputs¦other'!A50 -> Pipeline Integrity Management | K45: 1 | V45: 1 | W45: $2015/16
A46: RBP METRO (ORIGINAL) ILI - DN200 | B46: 0 | C46: 61.38 | D46: 0 | E46: 0 | F46: 0 | G46: 0 | H46: 61.38 | I46: Replacement | J46: ='inputs¦other'!A50 -> Pipeline Integrity Management | K46: 1 | V46: 1 | W46: $2015/16
A47: RBP METRO ILI - DN300 | B47: 225.06 | C47: 0 | D47: 0 | E47: 0 | F47: 0 | G47: 225.06 | H47: 450.12 | I47: Replacement | J47: ='inputs¦other'!A50 -> Pipeline Integrity Management | K47: 1 | V47: 1 | W47: $2015/16
A48: RBP METRO LOOP ILI - DN400 | B48: 0 | C48: 0 | D48: 122.76 | E48: 0 | F48: 0 | G48: 0 | H48: 122.76 | I48: Replacement | J48: ='inputs¦other'!A50 -> Pipeline Integrity Management | L48: 1 | V48: 1 | W48: $2015/16
A49: RBP REPLACEMENT SPOOLS FOR DN250 CHECK VALVES | B49: 10.23 | C49: 0 | D49: 0 | E49: 0 | F49: 0 | G49: 0 | H49: 10.23 | I49: Stay in Business | J49: Stay in business | T49: 1 | V49: 1 | W49: $2015/16
A50: RBP RISK MITIGATION - FEED and IMPLEMENTATION | B50: 8184 | C50: 1687.95 | D50: 306.9 | E50: 306.9 | F50: 306.9 | G50: 306.9 | H50: 11099.55 | I50: Stay in Business | J50: ='inputs¦other'!A49 -> Urban Risk Reduction | K50: 1 | V50: 1 | W50: $2015/16
A51: RBP S20 Decommissioned Compressor Removal | B51: 0 | C51: 102.3 | D51: 102.3 | E51: 0 | F51: 0 | G51: 0 | H51: 204.6 | I51: Stay in Business | J51: Stay in business | M51: 1 | V51: 1 | W51: $2015/16
A52: RBP SCC EMAT ILI - DN300 | B52: 0 | C52: 0 | D52: 0 | E52: 0 | F52: 0 | G52: 920.7 | H52: 920.7 | I52: Replacement | J52: ='inputs¦other'!A50 -> Pipeline Integrity Management | K52: 1 | V52: 1 | W52: $2015/16
A53: RBP SCCMP EMAT ILI - DN250 | B53: 0 | C53: 1841.4 | D53: 1227.6 | E53: 0 | F53: 0 | G53: 0 | H53: 3069 | I53: Replacement | J53: ='inputs¦other'!A50 -> Pipeline Integrity Management | K53: 1 | V53: 1 | W53: $2015/16
A54: RBP SCRAPER TRAP MODIFICATIONS | B54: 0 | C54: 204.6 | D54: 204.6 | E54: 0 | F54: 0 | G54: 0 | H54: 409.2 | I54: Replacement | J54: ='inputs¦other'!A50 -> Pipeline Integrity Management | K54: 0.5 | L54: 0.5 | V54: 1 | W54: $2015/16
A55: RBP STATION FIRE SUPRESSION UPGRADES - BELLBIRD PARK | B55: 0 | C55: 0 | D55: 0 | E55: 76.725 | F55: 0 | G55: 0 | H55: 76.725 | I55: Stay in Business | J55: Stay in business | T55: 1 | V55: 1 | W55: $2015/16
A56: RBP STATION UPGRADES - HAZOP & Other | B56: 163.68 | C56: 312.015 | D56: 312.015 | E56: 102.3 | F56: 102.3 | G56: 0 | H56: 992.31 | I56: Stay in Business | J56: Stay in business | T56: 1 | V56: 1 | W56: $2015/16
A57: SCOTIA / WOODROYD VENT EXTENSION | B57: 0 | C57: 30.69 | D57: 0 | E57: 0 | F57: 0 | G57: 0 | H57: 30.69 | I57: Stay in Business | J57: Stay in business | K57: 1 | V57: 1 | W57: $2015/16
A58: SIS demand/test tracking system | B58: 0 | C58: 28.54574563 | D58: 0 | E58: 0 | F58: 0 | G58: 0 | H58: 28.54574563 | I58: Stay in Business | J58: Stay in business | T58: 1 | V58: 1 | W58: $2015/16
A59: SIS improvement program FEED and Implementation | B59: 28.54574563 | C59: 0 | D59: 0 | E59: 0 | F59: 0 | G59: 0 | H59: 28.54574563 | I59: Stay in Business | J59: Stay in business | T59: 1 | V59: 1 | W59: $2015/16
A60: SMS Reviews - QLD | B60: 5.709149125 | C60: 0 | D60: 0 | E60: 0 | F60: 0 | G60: 0 | H60: 5.709149125 | I60: Stay in Business | J60: Stay in business | T60: 1 | V60: 1 | W60: $2015/16
A61: SWANBANK ISOLATION VALVE | B61: 51.15 | C61: 0 | D61: 0 | E61: 0 | F61: 0 | G61: 0 | H61: 51.15 | I61: Stay in Business | J61: Stay in business | T61: 1 | V61: 1 | W61: $2015/16
A62: TOOWOOMBA DN250 RAIL CROSSING | B62: 0 | C62: 11253 | D62: 3580.5 | E62: 0 | F62: 0 | G62: 0 | H62: 14833.5 | I62: Stay in Business | J62: ='inputs¦other'!A51 -> Toowoomba Crossing | K62: 0.5 | L62: 0.5 | V62: 1 | W62: $2015/16
A63: TOOWOOMBA RANGE SLOPE MONITORING WORKS | B63: 306.9 | C63: 664.95 | D63: 0 | E63: 0 | F63: 0 | G63: 0 | H63: 971.85 | I63: Stay in Business | J63: ='inputs¦other'!A51 -> Toowoomba Crossing | K63: 0.5 | L63: 0.5 | V63: 1 | W63: $2015/16
A64: Toowoomba Slope Management | B64: 0 | C64: 0 | D64: 0 | E64: 0 | F64: 0 | G64: 0 | H64: 0 | I64: Stay in Business | J64: Stay in business | K64: 0.5 | L64: 0.5 | V64: 1 | W64: $2015/16
A65: TOOWOOMBA STATION HEATER INSTALLATION | B65: 0 | C65: 255.75 | D65: 0 | E65: 0 | F65: 0 | G65: 0 | H65: 255.75 | I65: Stay in Business | J65: Stay in business | N65: 1 | V65: 1 | W65: $2015/16
A66: Turbine overhauls - Dalby | B66: 0 | C66: 0 | D66: 0 | E66: 0 | F66: 0 | G66: 0 | H66: 0 | I66: Stay in Business | J66: ='inputs¦other'!A52 -> Dalby Turbine Overhaul | M66: 1 | V66: 1 | W66: $2015/16
A67: Applications and Renewals | B67: 0 | C67: 425.728837 | D67: 531.8525471 | E67: 425.728837 | F67: 531.8525471 | G67: 425.728837 | H67: 2340.891605 | I67: Stay in Business | J67: Applications and Renewals | S67: 1 | V67: 1 | W67: $2014/15
A68: Infrastructure Renewals | B68: 0 | C68: 138.8246208 | D68: 46.27487359 | E68: 46.27487359 | F68: 46.27487359 | G68: 0 | H68: 277.6492415 | I68: Stay in Business | J68: Infrastructure Renewals | S68: 1 | V68: 1 | W68: $2014/15
A69: AA Costs | B69: 911.856697 | C69: 72.50548305 | D69: 0 | E69: 0 | F69: 59.34226584 | G69: 911.856697 | H69: 1955.561143 | I69: Stay in Business | J69: Access Arrangement | R69: 1 | V69: 1 | W69: $2015/16
A70: Remote Vehicle Comms - Journey Management | B70: 1.810130338 | C70: 0 | D70: 0 | E70: 0 | F70: 0 | G70: 0 | H70: 1.810130338 | I70: Stay in Business | J70: Stay in business | S70: 1 | V70: 1 | W70: $2015/16
A71: Satellite Strategy | B71: 97.00597542 | C71: 0 | D71: 0 | E71: 0 | F71: 0 | G71: 0 | H71: 97.00597542 | I71: Stay in Business | J71: Stay in business | S71: 1 | V71: 1 | W71: $2015/16
A72: Enterprise Content Management | B72: 290.264327 | C72: 0 | D72: 0 | E72: 0 | F72: 0 | G72: 0 | H72: 290.264327 | I72: Stay in Business | J72: Stay in business | S72: 1 | V72: 1 | W72: $2015/16
A73: APA Grid - Energy Components Upgrade | B73: 155.1809735 | C73: 0 | D73: 0 | E73: 0 | F73: 0 | G73: 0 | H73: 155.1809735 | I73: Stay in Business | J73: Stay in business | S73: 1 | V73: 1 | W73: $2015/16
A74: Hyperion Upgrade to v 11-1-2-4 | B74: 42.65522595 | C74: 0 | D74: 0 | E74: 0 | F74: 0 | G74: 0 | H74: 42.65522595 | I74: Stay in Business | J74: Stay in business | S74: 1 | V74: 1 | W74: $2015/16
A75: APA Grid Services Initiatives Program | B75: 50.80077426 | C75: 0 | D75: 0 | E75: 0 | F75: 0 | G75: 0 | H75: 50.80077426 | I75: Stay in Business | J75: Stay in business | S75: 1 | V75: 1 | W75: $2015/16
A76: APA Grid Extend | B76: 487.0510788 | C76: 108.1047808 | D76: 0 | E76: 0 | F76: 0 | G76: 0 | H76: 595.1558596 | I76: Stay in Business | J76: Stay in business | S76: 1 | V76: 1 | W76: $2015/16
A77: BI - Transmission Dashboard | B77: 59.53282413 | C77: 0 | D77: 0 | E77: 0 | F77: 0 | G77: 0 | H77: 59.53282413 | I77: Stay in Business | J77: Stay in business | S77: 1 | V77: 1 | W77: $2015/16
A78: HR Systems Refresh | B78: 53.62864042 | C78: 283.7966408 | D78: 3.566732725 | E78: 0 | F78: 0 | G78: 0 | H78: 340.992014 | I78: Stay in Business | J78: Stay in business | S78: 1 | V78: 1 | W78: $2015/16
A79: SharePoint Upgrade | B79: 63.7289976 | C79: 42.46786638 | D79: 0 | E79: 0 | F79: 0 | G79: 0 | H79: 106.196864 | I79: Stay in Business | J79: Stay in business | S79: 1 | V79: 1 | W79: $2015/16
A80: SQL Server Upgrade | B80: 56.64354062 | C80: 3.710756647 | D80: 0 | E80: 0 | F80: 0 | G80: 0 | H80: 60.35429727 | I80: Stay in Business | J80: Stay in business | S80: 1 | V80: 1 | W80: $2015/16
A81: Upgrade Enterprise OSI PI Historian | B81: 14.7624742 | C81: 0.200414647 | D81: 0 | E81: 0 | F81: 0 | G81: 0 | H81: 14.96288885 | I81: Stay in Business | J81: Stay in business | S81: 1 | V81: 1 | W81: $2015/16
A82: Hazardous Area Platform | B82: 16.40143094 | C82: 94.84112208 | D82: 0 | E82: 0 | F82: 0 | G82: 0 | H82: =SUM(B82:G82) -> 111.242553 | I82: Stay in Business | J82: Stay in business | S82: 1 | V82: 1 | W82: $2015/16
A83: Form Digitisation Project | B83: 10.27603143 | C83: 77.75513396 | D83: 0 | E83: 0 | F83: 0 | G83: 0 | H83: 88.03116538 | I83: Stay in Business | J83: Stay in business | S83: 1 | V83: 1 | W83: $2015/16
A84: Enterprise Asset Management Upgrade FY18 | B84: 8.109880209 | C84: 166.190606 | D84: 0 | E84: 0 | F84: 0 | G84: 0 | H84: 174.3004862 | I84: Stay in Business | J84: Stay in business | S84: 1 | V84: 1 | W84: $2015/16
A85: PPM Refresh | B85: 1.457981843 | C85: 51.107897 | D85: 0 | E85: 0 | F85: 0 | G85: 0 | H85: 52.56587884 | I85: Stay in Business | J85: Stay in business | S85: 1 | V85: 1 | W85: $2015/16
A86: BizTalk System Upgrade FY18 | B86: 0 | C86: 48.19203685 | D86: 0 | E86: 0 | F86: 0 | G86: 0 | H86: 48.19203685 | I86: Stay in Business | J86: Stay in business | S86: 1 | V86: 1 | W86: $2015/16
A87: Automated Testing Tool | B87: 0 | C87: 25.66815403 | D87: 0 | E87: 0 | F87: 0 | G87: 0 | H87: 25.66815403 | I87: Stay in Business | J87: Stay in business | S87: 1 | V87: 1 | W87: $2015/16
A88: Oracle eBS Upgrade to v12 2 | B88: 0 | C88: 55.84659843 | D88: 0 | E88: 0 | F88: 0 | G88: 0 | H88: 55.84659843 | I88: Stay in Business | J88: Stay in business | S88: 1 | V88: 1 | W88: $2015/16
A89: CRM Upgrade | B89: 0 | C89: 40.91905045 | D89: 0 | E89: 0 | F89: 0 | G89: 0 | H89: 40.91905045 | I89: Stay in Business | J89: Stay in business | S89: 1 | V89: 1 | W89: $2015/16
A90: X-Info Aware Version 2 | B90: 0 | C90: 18.62552923 | D90: 0 | E90: 0 | F90: 0 | G90: 0 | H90: 18.62552923 | I90: Stay in Business | J90: Stay in business | S90: 1 | V90: 1 | W90: $2015/16
A91: ID Procurement Data | B91: 0 | C91: 17.64693964 | D91: 0.9574080772 | E91: 0 | F91: 0 | G91: 0 | H91: 18.60434771 | I91: Stay in Business | J91: Stay in business | S91: 1 | V91: 1 | W91: $2015/16
A92: Upgrade Enterprise OSI PI Historian 2017 | B92: 1.079369416 | C92: 7.818948343 | D92: 0 | E92: 0 | F92: 0 | G92: 0 | H92: 8.898317759 | I92: Stay in Business | J92: Stay in business | S92: 1 | V92: 1 | W92: $2015/16
A93: Supplier Qualification and Compliance | B93: 0 | C93: 6.825279514 | D93: 7.533719835 | E93: 0 | F93: 0 | G93: 0 | H93: 14.35899935 | I93: Stay in Business | J93: Stay in business | S93: 1 | V93: 1 | W93: $2015/16
A94: BizTalk System Upgrade FY20 | B94: 0 | C94: 0 | D94: 0 | E94: 12.24420558 | F94: 0 | G94: 0 | H94: 12.24420558 | I94: Stay in Business | J94: Stay in business | S94: 1 | V94: 1 | W94: $2015/16
A95: Enterprise Asset Management Upgrade FY21 | B95: 0 | C95: 0 | D95: 0 | E95: 7.143156909 | F95: 57.2347211 | G95: 0 | H95: 64.377878 | I95: Stay in Business | J95: Stay in business | S95: 1 | V95: 1 | W95: $2015/16
A99: Total | B99: =SUM(B17:B95) -> 18219.85881 | C99: 25921.74957 | D99: 15909.21726 | E99: 6864.288056 | F99: 8366.81139 | G99: 8320.190516 | H99: 83602.11561

Sheet Outputs│Tables
A10: =RIGHT(CELL("filename",A1),LEN(CELL("filename",A1))-FIND("]",CELL("filename",A1))) -> Outputs│Tables
A13: Capex by project ($m nominal) | N13: Capex by project ($m real 2016/17)
A14: Project name | C14: 2013 | D14: 2014 | E14: 2015 | F14: 2016 | G14: 2017 | H14: 2018 | I14: 2019 | J14: 2020 | K14: 2021 | L14: 2022 | N14: Project name | P14: 2013 | Q14: 2014 | R14: 2015 | S14: 2016 | T14: 2017 | U14: 2018 | V14: 2019 | W14: 2020 | X14: 2021 | Y14: 2022
A15: ='inputs¦other'!A38 -> Aquarium Passage | B15: $m nominal | C15: =SUMIF('Input¦Historic'!$G$17:$G$98,$A15,'Input¦Historic'!B$17:B$98)/1000000 -> 0.20340742 | D15: =SUMIF('Input¦Historic'!$G$17:$G$98,$A15,'Input¦Historic'!C$17:C$98)/1000000 -> 0.60615213 | E15: =SUMIF('Input¦Historic'!$G$17:$G$98,$A15,'Input¦Historic'!D$17:D$98)/1000000 -> 1.12019813 | F15: =SUMIF('Input¦Historic'!$G$17:$G$98,$A15,'Input¦Historic'!E$17:E$98)/1000000 -> 0 | G15: =SUMIF('Input¦Forecast'!$J$17:$J$95,$A15,'Input¦Forecast'!B$17:B$95)/1000*'inputs¦other'!H$13 -> 0 | H15: =SUMIF('Input¦Forecast'!$J$17:$J$95,$A15,'Input¦Forecast'!C$17:C$95)/1000*'inputs¦other'!I$13 -> 0 | I15: =SUMIF('Input¦Forecast'!$J$17:$J$95,$A15,'Input¦Forecast'!D$17:D$95)/1000*'inputs¦other'!J$13 -> 0 | J15: =SUMIF('Input¦Forecast'!$J$17:$J$95,$A15,'Input¦Forecast'!E$17:E$95)/1000*'inputs¦other'!K$13 -> 0 | K15: =SUMIF('Input¦Forecast'!$J$17:$J$95,$A15,'Input¦Forecast'!F$17:F$95)/1000*'inputs¦other'!L$13 -> 0 | L15: =SUMIF('Input¦Forecast'!$J$17:$J$95,$A15,'Input¦Forecast'!G$17:G$95)/1000*'inputs¦other'!M$13 -> 0 | N15: =A15 -> Aquarium Passage | O15: $m real 2016/17 | P15: =C15/'inputs¦other'!D$13 -> 0.2203071356 | Q15: =D15/'inputs¦other'!E$13 -> 0.6404849655 | R15: =E15/'inputs¦other'!F$13 -> 1.149956714 | S15: =F15/'inputs¦other'!G$13 -> 0 | T15: =G15/'inputs¦other'!H$13 -> 0 | U15: =H15/'inputs¦other'!I$13 -> 0 | V15: =I15/'inputs¦other'!J$13 -> 0 | W15: =J15/'inputs¦other'!K$13 -> 0 | X15: =K15/'inputs¦other'!L$13 -> 0 | Y15: =L15/'inputs¦other'!M$13 -> 0
A16: ='inputs¦other'!A39 -> Flood Damage | B16: $m nominal | C16: =SUMIF('Input¦Historic'!$G$17:$G$98,$A16,'Input¦Historic'!B$17:B$98)/1000000 -> 0.09802684 | D16: =SUMIF('Input¦Historic'!$G$17:$G$98,$A16,'Input¦Historic'!C$17:C$98)/1000000 -> 1.794542247 | E16: =SUMIF('Input¦Historic'!$G$17:$G$98,$A16,'Input¦Historic'!D$17:D$98)/1000000 -> 5.68429149 | F16: =SUMIF('Input¦Historic'!$G$17:$G$98,$A16,'Input¦Historic'!E$17:E$98)/1000000 -> 0 | G16: =SUMIF('Input¦Forecast'!$J$17:$J$95,$A16,'Input¦Forecast'!B$17:B$95)/1000*'inputs¦other'!H$13 -> 0 | H16: =SUMIF('Input¦Forecast'!$J$17:$J$95,$A16,'Input¦Forecast'!C$17:C$95)/1000*'inputs¦other'!I$13 -> 0 | I16: =SUMIF('Input¦Forecast'!$J$17:$J$95,$A16,'Input¦Forecast'!D$17:D$95)/1000*'inputs¦other'!J$13 -> 0 | J16: =SUMIF('Input¦Forecast'!$J$17:$J$95,$A16,'Input¦Forecast'!E$17:E$95)/1000*'inputs¦other'!K$13 -> 0 | K16: =SUMIF('Input¦Forecast'!$J$17:$J$95,$A16,'Input¦Forecast'!F$17:F$95)/1000*'inputs¦other'!L$13 -> 0 | L16: =SUMIF('Input¦Forecast'!$J$17:$J$95,$A16,'Input¦Forecast'!G$17:G$95)/1000*'inputs¦other'!M$13 -> 0 | N16: =A16 -> Flood Damage | O16: $m real 2016/17 | P16: =C16/'inputs¦other'!D$13 -> 0.1061712121 | Q16: =D16/'inputs¦other'!E$13 -> 1.896186241 | R16: =E16/'inputs¦other'!F$13 -> 5.835297336 | S16: =F16/'inputs¦other'!G$13 -> 0 | T16: =G16/'inputs¦other'!H$13 -> 0 | U16: =H16/'inputs¦other'!I$13 -> 0 | V16: =I16/'inputs¦other'!J$13 -> 0 | W16: =J16/'inputs¦other'!K$13 -> 0 | X16: =K16/'inputs¦other'!L$13 -> 0 | Y16: =L16/'inputs¦other'!M$13 -> 0
A17: ='inputs¦other'!A40 -> Bi direction | B17: $m nominal | C17: =SUMIF('Input¦Historic'!$G$17:$G$98,$A17,'Input¦Historic'!B$17:B$98)/1000000 -> 0 | D17: =SUMIF('Input¦Historic'!$G$17:$G$98,$A17,'Input¦Historic'!C$17:C$98)/1000000 -> 0 | E17: =SUMIF('Input¦Historic'!$G$17:$G$98,$A17,'Input¦Historic'!D$17:D$98)/1000000 -> 7.54519578 | F17: =SUMIF('Input¦Historic'!$G$17:$G$98,$A17,'Input¦Historic'!E$17:E$98)/1000000 -> 0.61401758 | G17: =SUMIF('Input¦Forecast'!$J$17:$J$95,$A17,'Input¦Forecast'!B$17:B$95)/1000*'inputs¦other'!H$13 -> 0 | H17: =SUMIF('Input¦Forecast'!$J$17:$J$95,$A17,'Input¦Forecast'!C$17:C$95)/1000*'inputs¦other'!I$13 -> 0 | I17: =SUMIF('Input¦Forecast'!$J$17:$J$95,$A17,'Input¦Forecast'!D$17:D$95)/1000*'inputs¦other'!J$13 -> 0 | J17: =SUMIF('Input¦Forecast'!$J$17:$J$95,$A17,'Input¦Forecast'!E$17:E$95)/1000*'inputs¦other'!K$13 -> 0 | K17: =SUMIF('Input¦Forecast'!$J$17:$J$95,$A17,'Input¦Forecast'!F$17:F$95)/1000*'inputs¦other'!L$13 -> 0 | L17: =SUMIF('Input¦Forecast'!$J$17:$J$95,$A17,'Input¦Forecast'!G$17:G$95)/1000*'inputs¦other'!M$13 -> 0 | N17: Bi direction | O17: $m real 2016/17 | P17: =C17/'inputs¦other'!D$13 -> 0 | Q17: =D17/'inputs¦other'!E$13 -> 0 | R17: =E17/'inputs¦other'!F$13 -> 7.745637414 | S17: =F17/'inputs¦other'!G$13 -> 0.6220664996 | T17: =G17/'inputs¦other'!H$13 -> 0 | U17: =H17/'inputs¦other'!I$13 -> 0 | V17: =I17/'inputs¦other'!J$13 -> 0 | W17: =J17/'inputs¦other'!K$13 -> 0 | X17: =K17/'inputs¦other'!L$13 -> 0 | Y17: =L17/'inputs¦other'!M$13 -> 0
A18: ='inputs¦other'!A42 -> Clear SCADA | B18: $m nominal | C18: =SUMIF('Input¦Historic'!$G$17:$G$98,$A18,'Input¦Historic'!B$17:B$98)/1000000 -> 0 | D18: =SUMIF('Input¦Historic'!$G$17:$G$98,$A18,'Input¦Historic'!C$17:C$98)/1000000 -> 0.39804328 | E18: =SUMIF('Input¦Historic'!$G$17:$G$98,$A18,'Input¦Historic'!D$17:D$98)/1000000 -> 0.54875395 | F18: =SUMIF('Input¦Historic'!$G$17:$G$98,$A18,'Input¦Historic'!E$17:E$98)/1000000 -> 0 | G18: =SUMIF('Input¦Forecast'!$J$17:$J$95,$A18,'Input¦Forecast'!B$17:B$95)/1000*'inputs¦other'!H$13 -> 0 | H18: =SUMIF('Input¦Forecast'!$J$17:$J$95,$A18,'Input¦Forecast'!C$17:C$95)/1000*'inputs¦other'!I$13 -> 0 | I18: =SUMIF('Input¦Forecast'!$J$17:$J$95,$A18,'Input¦Forecast'!D$17:D$95)/1000*'inputs¦other'!J$13 -> 0 | J18: =SUMIF('Input¦Forecast'!$J$17:$J$95,$A18,'Input¦Forecast'!E$17:E$95)/1000*'inputs¦other'!K$13 -> 0 | K18: =SUMIF('Input¦Forecast'!$J$17:$J$95,$A18,'Input¦Forecast'!F$17:F$95)/1000*'inputs¦other'!L$13 -> 0 | L18: =SUMIF('Input¦Forecast'!$J$17:$J$95,$A18,'Input¦Forecast'!G$17:G$95)/1000*'inputs¦other'!M$13 -> 0 | N18: Clear SCADA | O18: $m real 2016/17 | P18: =C18/'inputs¦other'!D$13 -> 0 | Q18: =D18/'inputs¦other'!E$13 -> 0.4205887002 | R18: =E18/'inputs¦other'!F$13 -> 0.5633318538 | S18: =F18/'inputs¦other'!G$13 -> 0 | T18: =G18/'inputs¦other'!H$13 -> 0 | U18: =H18/'inputs¦other'!I$13 -> 0 | V18: =I18/'inputs¦other'!J$13 -> 0 | W18: =J18/'inputs¦other'!K$13 -> 0 | X18: =K18/'inputs¦other'!L$13 -> 0 | Y18: =L18/'inputs¦other'!M$13 -> 0
A19: ='inputs¦other'!A43 -> RBP Looping | B19: $m nominal | C19: =SUMIF('Input¦Historic'!$G$17:$G$98,$A19,'Input¦Historic'!B$17:B$98)/1000000 -> 2.92318626 | D19: =SUMIF('Input¦Historic'!$G$17:$G$98,$A19,'Input¦Historic'!C$17:C$98)/1000000 -> 2.40302167 | E19: =SUMIF('Input¦Historic'!$G$17:$G$98,$A19,'Input¦Historic'!D$17:D$98)/1000000 -> 0.01857902 | F19: =SUMIF('Input¦Historic'!$G$17:$G$98,$A19,'Input¦Historic'!E$17:E$98)/1000000 -> 0 | G19: =SUMIF('Input¦Forecast'!$J$17:$J$95,$A19,'Input¦Forecast'!B$17:B$95)/1000*'inputs¦other'!H$13 -> 0 | H19: =SUMIF('Input¦Forecast'!$J$17:$J$95,$A19,'Input¦Forecast'!C$17:C$95)/1000*'inputs¦other'!I$13 -> 0 | I19: =SUMIF('Input¦Forecast'!$J$17:$J$95,$A19,'Input¦Forecast'!D$17:D$95)/1000*'inputs¦other'!J$13 -> 0 | J19: =SUMIF('Input¦Forecast'!$J$17:$J$95,$A19,'Input¦Forecast'!E$17:E$95)/1000*'inputs¦other'!K$13 -> 0 | K19: =SUMIF('Input¦Forecast'!$J$17:$J$95,$A19,'Input¦Forecast'!F$17:F$95)/1000*'inputs¦other'!L$13 -> 0 | L19: =SUMIF('Input¦Forecast'!$J$17:$J$95,$A19,'Input¦Forecast'!G$17:G$95)/1000*'inputs¦other'!M$13 -> 0 | N19: RBP Looping | O19: $m real 2016/17 | P19: =C19/'inputs¦other'!D$13 -> 3.166053587 | Q19: =D19/'inputs¦other'!E$13 -> 2.539130319 | R19: =E19/'inputs¦other'!F$13 -> 0.0190725803 | S19: =F19/'inputs¦other'!G$13 -> 0 | T19: =G19/'inputs¦other'!H$13 -> 0 | U19: =H19/'inputs¦other'!I$13 -> 0 | V19: =I19/'inputs¦other'!J$13 -> 0 | W19: =J19/'inputs¦other'!K$13 -> 0 | X19: =K19/'inputs¦other'!L$13 -> 0 | Y19: =L19/'inputs¦other'!M$13 -> 0
A20: ='inputs¦other'!A44 -> FC and RTU upgrade | B20: $m nominal | C20: =SUMIF('Input¦Historic'!$G$17:$G$98,$A20,'Input¦Historic'!B$17:B$98)/1000000 -> 0.026836 | D20: =SUMIF('Input¦Historic'!$G$17:$G$98,$A20,'Input¦Historic'!C$17:C$98)/1000000 -> 0.4423934 | E20: =SUMIF('Input¦Historic'!$G$17:$G$98,$A20,'Input¦Historic'!D$17:D$98)/1000000 -> 0.53151581 | F20: =SUMIF('Input¦Historic'!$G$17:$G$98,$A20,'Input¦Historic'!E$17:E$98)/1000000 -> 0.10216829 | G20: =SUMIF('Input¦Forecast'!$J$17:$J$95,$A20,'Input¦Forecast'!B$17:B$95)/1000*'inputs¦other'!H$13 -> 0 | H20: =SUMIF('Input¦Forecast'!$J$17:$J$95,$A20,'Input¦Forecast'!C$17:C$95)/1000*'inputs¦other'!I$13 -> 0 | I20: =SUMIF('Input¦Forecast'!$J$17:$J$95,$A20,'Input¦Forecast'!D$17:D$95)/1000*'inputs¦other'!J$13 -> 0 | J20: =SUMIF('Input¦Forecast'!$J$17:$J$95,$A20,'Input¦Forecast'!E$17:E$95)/1000*'inputs¦other'!K$13 -> 0 | K20: =SUMIF('Input¦Forecast'!$J$17:$J$95,$A20,'Input¦Forecast'!F$17:F$95)/1000*'inputs¦other'!L$13 -> 0 | L20: =SUMIF('Input¦Forecast'!$J$17:$J$95,$A20,'Input¦Forecast'!G$17:G$95)/1000*'inputs¦other'!M$13 -> 0 | N20: FC and RTU upgrade | O20: $m real 2016/17 | P20: =C20/'inputs¦other'!D$13 -> 0.02906561762 | Q20: =D20/'inputs¦other'!E$13 -> 0.4674508387 | R20: =E20/'inputs¦other'!F$13 -> 0.5456357746 | S20: =F20/'inputs¦other'!G$13 -> 0.1035075747 | T20: =G20/'inputs¦other'!H$13 -> 0 | U20: =H20/'inputs¦other'!I$13 -> 0 | V20: =I20/'inputs¦other'!J$13 -> 0 | W20: =J20/'inputs¦other'!K$13 -> 0 | X20: =K20/'inputs¦other'!L$13 -> 0 | Y20: =L20/'inputs¦other'!M$13 -> 0
A21: ='inputs¦other'!A45 -> Toowoomba Station Upgrade | B21: $m nominal | C21: =SUMIF('Input¦Historic'!$G$17:$G$98,$A21,'Input¦Historic'!B$17:B$98)/1000000 -> 0.05611001 | D21: =SUMIF('Input¦Historic'!$G$17:$G$98,$A21,'Input¦Historic'!C$17:C$98)/1000000 -> 0.40998034 | E21: =SUMIF('Input¦Historic'!$G$17:$G$98,$A21,'Input¦Historic'!D$17:D$98)/1000000 -> 0.83088895 | F21: =SUMIF('Input¦Historic'!$G$17:$G$98,$A21,'Input¦Historic'!E$17:E$98)/1000000 -> 0 | G21: =SUMIF('Input¦Forecast'!$J$17:$J$95,$A21,'Input¦Forecast'!B$17:B$95)/1000*'inputs¦other'!H$13 -> 0 | H21: =SUMIF('Input¦Forecast'!$J$17:$J$95,$A21,'Input¦Forecast'!C$17:C$95)/1000*'inputs¦other'!I$13 -> 0 | I21: =SUMIF('Input¦Forecast'!$J$17:$J$95,$A21,'Input¦Forecast'!D$17:D$95)/1000*'inputs¦other'!J$13 -> 0 | J21: =SUMIF('Input¦Forecast'!$J$17:$J$95,$A21,'Input¦Forecast'!E$17:E$95)/1000*'inputs¦other'!K$13 -> 0 | K21: =SUMIF('Input¦Forecast'!$J$17:$J$95,$A21,'Input¦Forecast'!F$17:F$95)/1000*'inputs¦other'!L$13 -> 0 | L21: =SUMIF('Input¦Forecast'!$J$17:$J$95,$A21,'Input¦Forecast'!G$17:G$95)/1000*'inputs¦other'!M$13 -> 0 | N21: Toowoomba Station Upgrade | O21: $m real 2016/17 | P21: =C21/'inputs¦other'!D$13 -> 0.06077180262 | Q21: =D21/'inputs¦other'!E$13 -> 0.4332018827 | R21: =E21/'inputs¦other'!F$13 -> 0.8529619012 | S21: =F21/'inputs¦other'!G$13 -> 0 | T21: =G21/'inputs¦other'!H$13 -> 0 | U21: =H21/'inputs¦other'!I$13 -> 0 | V21: =I21/'inputs¦other'!J$13 -> 0 | W21: =J21/'inputs¦other'!K$13 -> 0 | X21: =K21/'inputs¦other'!L$13 -> 0 | Y21: =L21/'inputs¦other'!M$13 -> 0
A22: ='inputs¦other'!A46 -> Access Arrangement | B22: $m nominal | C22: =SUMIF('Input¦Historic'!$G$17:$G$98,$A22,'Input¦Historic'!B$17:B$98)/1000000 -> 0.07087535 | D22: =SUMIF('Input¦Historic'!$G$17:$G$98,$A22,'Input¦Historic'!C$17:C$98)/1000000 -> 0 | E22: =SUMIF('Input¦Historic'!$G$17:$G$98,$A22,'Input¦Historic'!D$17:D$98)/1000000 -> 0 | F22: =SUMIF('Input¦Historic'!$G$17:$G$98,$A22,'Input¦Historic'!E$17:E$98)/1000000 -> 0.05800808 | G22: =SUMIF('Input¦Forecast'!$J$17:$J$95,$A22,'Input¦Forecast'!B$17:B$95)/1000*'inputs¦other'!H$13 -> 0.911856697 | H22: =SUMIF('Input¦Forecast'!$J$17:$J$95,$A22,'Input¦Forecast'!C$17:C$95)/1000*'inputs¦other'!I$13 -> 0.07417310916 | I22: =SUMIF('Input¦Forecast'!$J$17:$J$95,$A22,'Input¦Forecast'!D$17:D$95)/1000*'inputs¦other'!J$13 -> 0 | J22: =SUMIF('Input¦Forecast'!$J$17:$J$95,$A22,'Input¦Forecast'!E$17:E$95)/1000*'inputs¦other'!K$13 -> 0 | K22: =SUMIF('Input¦Forecast'!$J$17:$J$95,$A22,'Input¦Forecast'!F$17:F$95)/1000*'inputs¦other'!L$13 -> 0.06499301132 | L22: =SUMIF('Input¦Forecast'!$J$17:$J$95,$A22,'Input¦Forecast'!G$17:G$95)/1000*'inputs¦other'!M$13 -> 1.021656166 | N22: Access Arrangement | O22: $m real 2016/17 | P22: =C22/'inputs¦other'!D$13 -> 0.07676389259 | Q22: =D22/'inputs¦other'!E$13 -> 0 | R22: =E22/'inputs¦other'!F$13 -> 0 | S22: =F22/'inputs¦other'!G$13 -> 0.05876848554 | T22: =G22/'inputs¦other'!H$13 -> 0.911856697 | U22: =H22/'inputs¦other'!I$13 -> 0.07250548305 | V22: =I22/'inputs¦other'!J$13 -> 0 | W22: =J22/'inputs¦other'!K$13 -> 0 | X22: =K22/'inputs¦other'!L$13 -> 0.05934226584 | Y22: =L22/'inputs¦other'!M$13 -> 0.911856697
A23: Stay in business | B23: $m nominal | C23: =SUMIF('Input¦Historic'!$G$17:$G$100,"SIB",'Input¦Historic'!B$17:B$100)/1000000 -> 1.845689717 | D23: =SUMIF('Input¦Historic'!$G$17:$G$100,"SIB",'Input¦Historic'!C$17:C$100)/1000000 -> 2.18657785 | E23: =SUMIF('Input¦Historic'!$G$17:$G$100,"SIB",'Input¦Historic'!D$17:D$100)/1000000 -> 3.204339481 | F23: =SUMIF('Input¦Historic'!$G$17:$G$100,"SIB",'Input¦Historic'!E$17:E$100)/1000000 -> 3.68953432 | G23: =SUMIF('Input¦Forecast'!$J$17:$J$95,$A23,'Input¦Forecast'!B$17:B$95)/1000*'inputs¦other'!H$13 -> 2.562480117 | H23: =SUMIF('Input¦Forecast'!$J$17:$J$95,$A23,'Input¦Forecast'!C$17:C$95)/1000*'inputs¦other'!I$13 -> 3.051906317 | I23: =SUMIF('Input¦Forecast'!$J$17:$J$95,$A23,'Input¦Forecast'!D$17:D$95)/1000*'inputs¦other'!J$13 -> 1.250890833 | J23: =SUMIF('Input¦Forecast'!$J$17:$J$95,$A23,'Input¦Forecast'!E$17:E$95)/1000*'inputs¦other'!K$13 -> 0.6741834298 | K23: =SUMIF('Input¦Forecast'!$J$17:$J$95,$A23,'Input¦Forecast'!F$17:F$95)/1000*'inputs¦other'!L$13 -> 0.6695182252 | L23: =SUMIF('Input¦Forecast'!$J$17:$J$95,$A23,'Input¦Forecast'!G$17:G$95)/1000*'inputs¦other'!M$13 -> 0.3342449704 | N23: Stay in business | O23: $m real 2016/17 | P23: =C23/'inputs¦other'!D$13 -> 1.999035309 | Q23: =D23/'inputs¦other'!E$13 -> 2.310426986 | R23: =E23/'inputs¦other'!F$13 -> 3.289464249 | S23: =F23/'inputs¦other'!G$13 -> 3.737899002 | T23: =G23/'inputs¦other'!H$13 -> 2.562480117 | U23: =H23/'inputs¦other'!I$13 -> 2.983290632 | V23: =I23/'inputs¦other'!J$13 -> 1.195275843 | W23: =J23/'inputs¦other'!K$13 -> 0.629725345 | X23: =K23/'inputs¦other'!L$13 -> 0.6113077036 | Y23: =L23/'inputs¦other'!M$13 -> 0.2983229825
A24: ='inputs¦other'!A49 -> Urban Risk Reduction | B24: $m nominal | C24: 0 | D24: 0 | E24: 0 | F24: 0 | G24: =SUMIF('Input¦Forecast'!$J$17:$J$95,$A24,'Input¦Forecast'!B$17:B$95)/1000*'inputs¦other'!H$13 -> 8.184 | H24: =SUMIF('Input¦Forecast'!$J$17:$J$95,$A24,'Input¦Forecast'!C$17:C$95)/1000*'inputs¦other'!I$13 -> 1.72677285 | I24: =SUMIF('Input¦Forecast'!$J$17:$J$95,$A24,'Input¦Forecast'!D$17:D$95)/1000*'inputs¦other'!J$13 -> 0.3211797501 | J24: =SUMIF('Input¦Forecast'!$J$17:$J$95,$A24,'Input¦Forecast'!E$17:E$95)/1000*'inputs¦other'!K$13 -> 0.3285668844 | K24: =SUMIF('Input¦Forecast'!$J$17:$J$95,$A24,'Input¦Forecast'!F$17:F$95)/1000*'inputs¦other'!L$13 -> 0.3361239227 | L24: =SUMIF('Input¦Forecast'!$J$17:$J$95,$A24,'Input¦Forecast'!G$17:G$95)/1000*'inputs¦other'!M$13 -> 0.3438547729 | N24: Urban Risk Reduction | O24: $m real 2016/17 | P24: =C24/'inputs¦other'!D$13 -> 0 | Q24: =D24/'inputs¦other'!E$13 -> 0 | R24: =E24/'inputs¦other'!F$13 -> 0 | S24: =F24/'inputs¦other'!G$13 -> 0 | T24: =G24/'inputs¦other'!H$13 -> 8.184 | U24: =H24/'inputs¦other'!I$13 -> 1.68795 | V24: =I24/'inputs¦other'!J$13 -> 0.3069 | W24: =J24/'inputs¦other'!K$13 -> 0.3069 | X24: =K24/'inputs¦other'!L$13 -> 0.3069 | Y24: =L24/'inputs¦other'!M$13 -> 0.3069
A25: ='inputs¦other'!A50 -> Pipeline Integrity Management | B25: $m nominal | C25: =SUMIF('Input¦Historic'!$G$17:$G$98,$A25,'Input¦Historic'!B$17:B$98)/1000000 -> 0.65395347 | D25: =SUMIF('Input¦Historic'!$G$17:$G$98,$A25,'Input¦Historic'!C$17:C$98)/1000000 -> 2.2802438 | E25: =SUMIF('Input¦Historic'!$G$17:$G$98,$A25,'Input¦Historic'!D$17:D$98)/1000000 -> 3.50841376 | F25: =SUMIF('Input¦Historic'!$G$17:$G$98,$A25,'Input¦Historic'!E$17:E$98)/1000000 -> 5.40870331 | G25: =SUMIF('Input¦Forecast'!$J$17:$J$95,$A25,'Input¦Forecast'!B$17:B$95)/1000*'inputs¦other'!H$13 -> 6.254622 | H25: =SUMIF('Input¦Forecast'!$J$17:$J$95,$A25,'Input¦Forecast'!C$17:C$95)/1000*'inputs¦other'!I$13 -> 8.8954965 | I25: =SUMIF('Input¦Forecast'!$J$17:$J$95,$A25,'Input¦Forecast'!D$17:D$95)/1000*'inputs¦other'!J$13 -> 10.72526246 | J25: =SUMIF('Input¦Forecast'!$J$17:$J$95,$A25,'Input¦Forecast'!E$17:E$95)/1000*'inputs¦other'!K$13 -> 5.840823981 | K25: =SUMIF('Input¦Forecast'!$J$17:$J$95,$A25,'Input¦Forecast'!F$17:F$95)/1000*'inputs¦other'!L$13 -> 7.459710258 | L25: =SUMIF('Input¦Forecast'!$J$17:$J$95,$A25,'Input¦Forecast'!G$17:G$95)/1000*'inputs¦other'!M$13 -> 7.145302181 | N25: Pipeline Integrity Management | O25: $m real 2016/17 | P25: =C25/'inputs¦other'!D$13 -> 0.7082859405 | Q25: =D25/'inputs¦other'!E$13 -> 2.409398234 | R25: =E25/'inputs¦other'!F$13 -> 3.601616403 | S25: =F25/'inputs¦other'!G$13 -> 5.479603915 | T25: =G25/'inputs¦other'!H$13 -> 6.254622 | U25: =H25/'inputs¦other'!I$13 -> 8.6955 | V25: =I25/'inputs¦other'!J$13 -> 10.248414 | W25: =J25/'inputs¦other'!K$13 -> 5.455659 | X25: =K25/'inputs¦other'!L$13 -> 6.811134 | Y25: =L25/'inputs¦other'!M$13 -> 6.377382
A26: ='inputs¦other'!A51 -> Toowoomba Crossing | B26: $m nominal | C26: 0 | D26: 0 | E26: 0 | F26: 0 | G26: =SUMIF('Input¦Forecast'!$J$17:$J$95,$A26,'Input¦Forecast'!B$17:B$95)/1000*'inputs¦other'!H$13 -> 0.3069 | H26: =SUMIF('Input¦Forecast'!$J$17:$J$95,$A26,'Input¦Forecast'!C$17:C$95)/1000*'inputs¦other'!I$13 -> 12.19206285 | I26: =SUMIF('Input¦Forecast'!$J$17:$J$95,$A26,'Input¦Forecast'!D$17:D$95)/1000*'inputs¦other'!J$13 -> 3.747097084 | J26: =SUMIF('Input¦Forecast'!$J$17:$J$95,$A26,'Input¦Forecast'!E$17:E$95)/1000*'inputs¦other'!K$13 -> 0 | K26: =SUMIF('Input¦Forecast'!$J$17:$J$95,$A26,'Input¦Forecast'!F$17:F$95)/1000*'inputs¦other'!L$13 -> 0 | L26: =SUMIF('Input¦Forecast'!$J$17:$J$95,$A26,'Input¦Forecast'!G$17:G$95)/1000*'inputs¦other'!M$13 -> 0 | N26: Toowoomba Crossing | O26: $m real 2016/17 | P26: =C26/'inputs¦other'!D$13 -> 0 | Q26: =D26/'inputs¦other'!E$13 -> 0 | R26: =E26/'inputs¦other'!F$13 -> 0 | S26: =F26/'inputs¦other'!G$13 -> 0 | T26: =G26/'inputs¦other'!H$13 -> 0.3069 | U26: =H26/'inputs¦other'!I$13 -> 11.91795 | V26: =I26/'inputs¦other'!J$13 -> 3.5805 | W26: =J26/'inputs¦other'!K$13 -> 0 | X26: =K26/'inputs¦other'!L$13 -> 0 | Y26: =L26/'inputs¦other'!M$13 -> 0
A27: ='inputs¦other'!A53 -> Applications and Renewals | B27: $m nominal | C27: 0 | D27: 0 | E27: 0 | F27: 0 | G27: =SUMIF('Input¦Forecast'!$J$17:$J$95,$A27,'Input¦Forecast'!B$17:B$95)/1000*'inputs¦other'!H$13 -> 0 | H27: =SUMIF('Input¦Forecast'!$J$17:$J$95,$A27,'Input¦Forecast'!C$17:C$95)/1000*'inputs¦other'!I$13 -> 0.4355206003 | I27: =SUMIF('Input¦Forecast'!$J$17:$J$95,$A27,'Input¦Forecast'!D$17:D$95)/1000*'inputs¦other'!J$13 -> 0.5565991143 | J27: =SUMIF('Input¦Forecast'!$J$17:$J$95,$A27,'Input¦Forecast'!E$17:E$95)/1000*'inputs¦other'!K$13 -> 0.4557849383 | K27: =SUMIF('Input¦Forecast'!$J$17:$J$95,$A27,'Input¦Forecast'!F$17:F$95)/1000*'inputs¦other'!L$13 -> 0.5824971145 | L27: =SUMIF('Input¦Forecast'!$J$17:$J$95,$A27,'Input¦Forecast'!G$17:G$95)/1000*'inputs¦other'!M$13 -> 0.4769921557 | N27: Applications and Renewals | O27: $m real 2016/17 | P27: =C27/'inputs¦other'!D$13 -> 0 | Q27: =D27/'inputs¦other'!E$13 -> 0 | R27: =E27/'inputs¦other'!F$13 -> 0 | S27: =F27/'inputs¦other'!G$13 -> 0 | T27: =G27/'inputs¦other'!H$13 -> 0 | U27: =H27/'inputs¦other'!I$13 -> 0.425728837 | V27: =I27/'inputs¦other'!J$13 -> 0.5318525471 | W27: =J27/'inputs¦other'!K$13 -> 0.425728837 | X27: =K27/'inputs¦other'!L$13 -> 0.5318525471 | Y27: =L27/'inputs¦other'!M$13 -> 0.425728837
A28: ='inputs¦other'!A54 -> Infrastructure Renewals | B28: $m nominal | C28: 0 | D28: 0 | E28: 0 | F28: 0 | G28: =SUMIF('Input¦Forecast'!$J$17:$J$95,$A28,'Input¦Forecast'!B$17:B$95)/1000*'inputs¦other'!H$13 -> 0 | H28: =SUMIF('Input¦Forecast'!$J$17:$J$95,$A28,'Input¦Forecast'!C$17:C$95)/1000*'inputs¦other'!I$13 -> 0.142017587 | I28: =SUMIF('Input¦Forecast'!$J$17:$J$95,$A28,'Input¦Forecast'!D$17:D$95)/1000*'inputs¦other'!J$13 -> 0.04842799718 | J28: =SUMIF('Input¦Forecast'!$J$17:$J$95,$A28,'Input¦Forecast'!E$17:E$95)/1000*'inputs¦other'!K$13 -> 0.04954184112 | K28: =SUMIF('Input¦Forecast'!$J$17:$J$95,$A28,'Input¦Forecast'!F$17:F$95)/1000*'inputs¦other'!L$13 -> 0.05068130346 | L28: =SUMIF('Input¦Forecast'!$J$17:$J$95,$A28,'Input¦Forecast'!G$17:G$95)/1000*'inputs¦other'!M$13 -> 0 | N28: Infrastructure Renewals | O28: $m real 2016/17 | P28: =C28/'inputs¦other'!D$13 -> 0 | Q28: =D28/'inputs¦other'!E$13 -> 0 | R28: =E28/'inputs¦other'!F$13 -> 0 | S28: =F28/'inputs¦other'!G$13 -> 0 | T28: =G28/'inputs¦other'!H$13 -> 0 | U28: =H28/'inputs¦other'!I$13 -> 0.1388246208 | V28: =I28/'inputs¦other'!J$13 -> 0.04627487359 | W28: =J28/'inputs¦other'!K$13 -> 0.04627487359 | X28: =K28/'inputs¦other'!L$13 -> 0.04627487359 | Y28: =L28/'inputs¦other'!M$13 -> 0
A29: Total | B29: $m nominal | C29: =SUM(C15:C28) -> 5.878085067 | D29: 10.52095472 | E29: 22.99217637 | F29: 9.87243158 | G29: 18.21985881 | H29: 26.51794981 | I29: 16.64945723 | J29: 7.348901074 | K29: 9.163523835 | L29: 9.322050246 | N29: Total | P29: =SUM(P15:P28) -> 6.366454496 | Q29: 11.11686817 | R29: 23.60297423 | S29: 10.00184548 | T29: 18.21985881 | U29: 25.92174957 | V29: 15.90921726 | W29: 6.864288056 | X29: 8.36681139 | Y29: 8.320190516
A31: Total Inputs | C31: ='Input¦Historic'!B101/1000000 -> 5.878085067 | D31: ='Input¦Historic'!C101/1000000 -> 10.52095472 | E31: ='Input¦Historic'!D101/1000000 -> 22.99217637 | F31: ='Input¦Historic'!E101/1000000 -> 9.87243158 | G31: ='Input¦Forecast'!B99/1000*'inputs¦other'!H$13 -> 18.21985881 | H31: ='Input¦Forecast'!C99/1000*'inputs¦other'!I$13 -> 26.51794981 | I31: ='Input¦Forecast'!D99/1000*'inputs¦other'!J$13 -> 16.64945723 | J31: ='Input¦Forecast'!E99/1000*'inputs¦other'!K$13 -> 7.348901074 | K31: ='Input¦Forecast'!F99/1000*'inputs¦other'!L$13 -> 9.163523835 | L31: ='Input¦Forecast'!G99/1000*'inputs¦other'!M$13 -> 9.322050246 | N31: Total Inputs | P31: ='Input¦Historic'!B101/'inputs¦other'!D13/1000000 -> 6.366454496 | Q31: ='Input¦Historic'!C101/'inputs¦other'!E13/1000000 -> 11.11686817 | R31: ='Input¦Historic'!D101/'inputs¦other'!F13/1000000 -> 23.60297423 | S31: ='Input¦Historic'!E101/'inputs¦other'!G13/1000000 -> 10.00184548 | T31: ='Input¦Forecast'!B99/1000 -> 18.21985881 | U31: ='Input¦Forecast'!C99/1000 -> 25.92174957 | V31: ='Input¦Forecast'!D99/1000 -> 15.90921726 | W31: ='Input¦Forecast'!E99/1000 -> 6.864288056 | X31: ='Input¦Forecast'!F99/1000 -> 8.36681139 | Y31: ='Input¦Forecast'!G99/1000 -> 8.320190516
A32: Difference | C32: =C29-C31 -> 0 | D32: =D29-D31 -> 0 | E32: 0 | F32: 0 | G32: 0 | H32: 0 | I32: 0 | J32: 0 | K32: 0 | L32: 0 | N32: Difference | P32: =P29-P31 -> 0 | Q32: =Q29-Q31 -> 0 | R32: =R29-R31 -> 0 | S32: =S29-S31 -> 0 | T32: =T29-T31 -> 0 | U32: =U29-U31 -> 0 | V32: =V29-V31 -> 0 | W32: =W29-W31 -> 0 | X32: =X29-X31 -> 0 | Y32: =Y29-Y31 -> 0
A34: Asset Class | C34: =C14 -> 2013 | D34: 2014 | E34: 2015 | F34: 2016 | G34: 2017 | H34: 2018 | I34: 2019 | J34: 2020 | K34: 2021 | L34: 2022 | N34: Asset Class | P34: =P14 -> 2013 | Q34: 2014 | R34: 2015 | S34: 2016 | T34: 2017 | U34: 2018 | V34: 2019 | W34: 2020 | X34: 2021 | Y34: 2022
A35: Original Pipeline | B35: =B29 -> $m nominal | C35: =SUMPRODUCT('Input¦Historic'!$I$17:$I$98,'Input¦Historic'!B$17:B$98)/1000000 -> 0.48264718 | D35: =SUMPRODUCT('Input¦Historic'!$I$17:$I$98,'Input¦Historic'!C$17:C$98)/1000000 -> 3.450498443 | E35: =SUMPRODUCT('Input¦Historic'!$I$17:$I$98,'Input¦Historic'!D$17:D$98)/1000000 -> 6.536361555 | F35: =SUMPRODUCT('Input¦Historic'!$I$17:$I$98,'Input¦Historic'!E$17:E$98)/1000000 -> 5.66083698 | G35: =SUMPRODUCT('Input¦Forecast'!B$17:B$95,'Input¦Forecast'!$K$17:$K$95)/1000*'inputs¦other'!H13 -> 14.0810835 | H35: =SUMPRODUCT('Input¦Forecast'!C$17:C$95,'Input¦Forecast'!$K$17:$K$95)/1000*'inputs¦other'!I13 -> 16.18090813 | I35: =SUMPRODUCT('Input¦Forecast'!D$17:D$95,'Input¦Forecast'!$K$17:$K$95)/1000*'inputs¦other'!J13 -> 12.12881796 | J35: =SUMPRODUCT('Input¦Forecast'!E$17:E$95,'Input¦Forecast'!$K$17:$K$95)/1000*'inputs¦other'!K13 -> 5.247760755 | K35: =SUMPRODUCT('Input¦Forecast'!F$17:F$95,'Input¦Forecast'!$K$17:$K$95)/1000*'inputs¦other'!L13 -> 5.119167343 | L35: =SUMPRODUCT('Input¦Forecast'!G$17:G$95,'Input¦Forecast'!$K$17:$K$95)/1000*'inputs¦other'!M13 -> 6.983117347 | N35: Original Pipeline | O35: =O28 -> $m real 2016/17 | P35: =C35/'inputs¦other'!D$13 -> 0.5227469958 | Q35: =D35/'inputs¦other'!E$13 -> 3.645936832 | R35: =E35/'inputs¦other'!F$13 -> 6.710003038 | S35: =F35/'inputs¦other'!G$13 -> 5.735042708 | T35: =G35/'inputs¦other'!H$13 -> 14.0810835 | U35: =H35/'inputs¦other'!I$13 -> 15.8171145 | V35: =I35/'inputs¦other'!J$13 -> 11.589567 | W35: =J35/'inputs¦other'!K$13 -> 4.9017045 | X35: =K35/'inputs¦other'!L$13 -> 4.674087 | Y35: =L35/'inputs¦other'!M$13 -> 6.2326275
A36: Pipelines | B36: =B35 -> $m nominal | C36: =SUMPRODUCT('Input¦Historic'!$J$17:$J$98,'Input¦Historic'!B$17:B$98)/1000000 -> 2.84137731 | D36: =SUMPRODUCT('Input¦Historic'!$J$17:$J$98,'Input¦Historic'!C$17:C$98)/1000000 -> 3.340928663 | E36: =SUMPRODUCT('Input¦Historic'!$J$17:$J$98,'Input¦Historic'!D$17:D$98)/1000000 -> 10.40592053 | F36: =SUMPRODUCT('Input¦Historic'!$J$17:$J$98,'Input¦Historic'!E$17:E$98)/1000000 -> 0.61401758 | G36: =SUMPRODUCT('Input¦Forecast'!B$17:B$95,'Input¦Forecast'!$L$17:$L$95)/1000*'inputs¦other'!H13 -> 0.892804465 | H36: =SUMPRODUCT('Input¦Forecast'!C$17:C$95,'Input¦Forecast'!$L$17:$L$95)/1000*'inputs¦other'!I13 -> 7.188084436 | I36: =SUMPRODUCT('Input¦Forecast'!D$17:D$95,'Input¦Forecast'!$L$17:$L$95)/1000*'inputs¦other'!J13 -> 2.664721327 | J36: =SUMPRODUCT('Input¦Forecast'!E$17:E$95,'Input¦Forecast'!$L$17:$L$95)/1000*'inputs¦other'!K13 -> 0.9216301106 | K36: =SUMPRODUCT('Input¦Forecast'!F$17:F$95,'Input¦Forecast'!$L$17:$L$95)/1000*'inputs¦other'!L13 -> 2.676666838 | L36: =SUMPRODUCT('Input¦Forecast'!G$17:G$95,'Input¦Forecast'!$L$17:$L$95)/1000*'inputs¦other'!M13 -> 0.5060396075 | N36: Pipelines | O36: =O35 -> $m real 2016/17 | P36: =C36/'inputs¦other'!D$13 -> 3.077447697 | Q36: =D36/'inputs¦other'!E$13 -> 3.530160951 | R36: =E36/'inputs¦other'!F$13 -> 10.68235865 | S36: =F36/'inputs¦other'!G$13 -> 0.6220664996 | T36: =G36/'inputs¦other'!H$13 -> 0.892804465 | U36: =H36/'inputs¦other'!I$13 -> 7.0264755 | V36: =I36/'inputs¦other'!J$13 -> 2.546247 | W36: =J36/'inputs¦other'!K$13 -> 0.8608545 | X36: =K36/'inputs¦other'!L$13 -> 2.443947 | Y36: =L36/'inputs¦other'!M$13 -> 0.4516545
A37: Compressors | B37: =B36 -> $m nominal | C37: =SUMPRODUCT('Input¦Historic'!$K$17:$K$98,'Input¦Historic'!B$17:B$98)/1000000 -> 0.1432417 | D37: =SUMPRODUCT('Input¦Historic'!$K$17:$K$98,'Input¦Historic'!C$17:C$98)/1000000 -> 0.02352989 | E37: =SUMPRODUCT('Input¦Historic'!$K$17:$K$98,'Input¦Historic'!D$17:D$98)/1000000 -> 1e-08 | F37: =SUMPRODUCT('Input¦Historic'!$K$17:$K$98,'Input¦Historic'!E$17:E$98)/1000000 -> 0 | G37: =SUMPRODUCT('Input¦Forecast'!B$17:B$95,'Input¦Forecast'!$M$17:$M$95)/1000*'inputs¦other'!H13 -> 0 | H37: =SUMPRODUCT('Input¦Forecast'!C$17:C$95,'Input¦Forecast'!$M$17:$M$95)/1000*'inputs¦other'!I13 -> 0.1046529 | I37: =SUMPRODUCT('Input¦Forecast'!D$17:D$95,'Input¦Forecast'!$M$17:$M$95)/1000*'inputs¦other'!J13 -> 0.1070599167 | J37: =SUMPRODUCT('Input¦Forecast'!E$17:E$95,'Input¦Forecast'!$M$17:$M$95)/1000*'inputs¦other'!K13 -> 0 | K37: =SUMPRODUCT('Input¦Forecast'!F$17:F$95,'Input¦Forecast'!$M$17:$M$95)/1000*'inputs¦other'!L13 -> 0 | L37: =SUMPRODUCT('Input¦Forecast'!G$17:G$95,'Input¦Forecast'!$M$17:$M$95)/1000*'inputs¦other'!M13 -> 0 | N37: Compressors | O37: =O36 -> $m real 2016/17 | P37: =C37/'inputs¦other'!D$13 -> 0.1551426621 | Q37: =D37/'inputs¦other'!E$13 -> 0.02486263768 | R37: =E37/'inputs¦other'!F$13 -> 1.026565465e-08 | S37: =F37/'inputs¦other'!G$13 -> 0 | T37: =G37/'inputs¦other'!H$13 -> 0 | U37: =H37/'inputs¦other'!I$13 -> 0.1023 | V37: =I37/'inputs¦other'!J$13 -> 0.1023 | W37: =J37/'inputs¦other'!K$13 -> 0 | X37: =K37/'inputs¦other'!L$13 -> 0 | Y37: =L37/'inputs¦other'!M$13 -> 0
A38: Regulators and meters | B38: $m nominal | C38: =SUMPRODUCT('Input¦Historic'!$L$17:$L$98,'Input¦Historic'!B$17:B$98)/1000000 -> 0 | D38: =SUMPRODUCT('Input¦Historic'!$L$17:$L$98,'Input¦Historic'!C$17:C$98)/1000000 -> 0 | E38: =SUMPRODUCT('Input¦Historic'!$L$17:$L$98,'Input¦Historic'!D$17:D$98)/1000000 -> 0 | F38: =SUMPRODUCT('Input¦Historic'!$L$17:$L$98,'Input¦Historic'!E$17:E$98)/1000000 -> 0 | G38: =SUMPRODUCT('Input¦Forecast'!B$17:B$95,'Input¦Forecast'!$N$17:$N$95)/1000*'inputs¦other'!H13 -> 0 | H38: =SUMPRODUCT('Input¦Forecast'!C$17:C$95,'Input¦Forecast'!$N$17:$N$95)/1000*'inputs¦other'!I13 -> 0.2674727096 | I38: =SUMPRODUCT('Input¦Forecast'!D$17:D$95,'Input¦Forecast'!$N$17:$N$95)/1000*'inputs¦other'!J13 -> 0 | J38: =SUMPRODUCT('Input¦Forecast'!E$17:E$95,'Input¦Forecast'!$N$17:$N$95)/1000*'inputs¦other'!K13 -> 0.08761783583 | K38: =SUMPRODUCT('Input¦Forecast'!F$17:F$95,'Input¦Forecast'!$N$17:$N$95)/1000*'inputs¦other'!L13 -> 0 | L38: =SUMPRODUCT('Input¦Forecast'!G$17:G$95,'Input¦Forecast'!$N$17:$N$95)/1000*'inputs¦other'!M13 -> 0 | N38: Regulators and meters | O38: $m real 2016/17 | P38: =C38/'inputs¦other'!D$13 -> 0 | Q38: =D38/'inputs¦other'!E$13 -> 0 | R38: =E38/'inputs¦other'!F$13 -> 0 | S38: =F38/'inputs¦other'!G$13 -> 0 | T38: =G38/'inputs¦other'!H$13 -> 0 | U38: =H38/'inputs¦other'!I$13 -> 0.2614591491 | V38: =I38/'inputs¦other'!J$13 -> 0 | W38: =J38/'inputs¦other'!K$13 -> 0.08184 | X38: =K38/'inputs¦other'!L$13 -> 0 | Y38: =L38/'inputs¦other'!M$13 -> 0
A39: Easements | B39: $m nominal | C39: =SUMPRODUCT('Input¦Historic'!$M$17:$M$98,'Input¦Historic'!B$17:B$98)/1000000 -> 0.03221123 | D39: =SUMPRODUCT('Input¦Historic'!$M$17:$M$98,'Input¦Historic'!C$17:C$98)/1000000 -> 0.00974572 | E39: =SUMPRODUCT('Input¦Historic'!$M$17:$M$98,'Input¦Historic'!D$17:D$98)/1000000 -> 0.000612 | F39: =SUMPRODUCT('Input¦Historic'!$M$17:$M$98,'Input¦Historic'!E$17:E$98)/1000000 -> 0.07492814 | G39: =SUMPRODUCT('Input¦Forecast'!B$17:B$95,'Input¦Forecast'!$O$17:$O$95)/1000*'inputs¦other'!H13 -> 0 | H39: =SUMPRODUCT('Input¦Forecast'!C$17:C$95,'Input¦Forecast'!$O$17:$O$95)/1000*'inputs¦other'!I13 -> 0 | I39: =SUMPRODUCT('Input¦Forecast'!D$17:D$95,'Input¦Forecast'!$O$17:$O$95)/1000*'inputs¦other'!J13 -> 0 | J39: =SUMPRODUCT('Input¦Forecast'!E$17:E$95,'Input¦Forecast'!$O$17:$O$95)/1000*'inputs¦other'!K13 -> 0 | K39: =SUMPRODUCT('Input¦Forecast'!F$17:F$95,'Input¦Forecast'!$O$17:$O$95)/1000*'inputs¦other'!L13 -> 0 | L39: =SUMPRODUCT('Input¦Forecast'!G$17:G$95,'Input¦Forecast'!$O$17:$O$95)/1000*'inputs¦other'!M13 -> 0 | N39: Easements | O39: $m real 2016/17 | P39: =C39/'inputs¦other'!D$13 -> 0.0348874383 | Q39: =D39/'inputs¦other'!E$13 -> 0.01029772367 | R39: =E39/'inputs¦other'!F$13 -> 0.0006282580645 | S39: =F39/'inputs¦other'!G$13 -> 0.07591034408 | T39: =G39/'inputs¦other'!H$13 -> 0 | U39: =H39/'inputs¦other'!I$13 -> 0 | V39: =I39/'inputs¦other'!J$13 -> 0 | W39: =J39/'inputs¦other'!K$13 -> 0 | X39: =K39/'inputs¦other'!L$13 -> 0 | Y39: =L39/'inputs¦other'!M$13 -> 0
A40: Communications | B40: $m nominal | C40: =SUMPRODUCT('Input¦Historic'!$N$17:$N$98,'Input¦Historic'!B$17:B$98)/1000000 -> 0 | D40: =SUMPRODUCT('Input¦Historic'!$N$17:$N$98,'Input¦Historic'!C$17:C$98)/1000000 -> 0 | E40: =SUMPRODUCT('Input¦Historic'!$N$17:$N$98,'Input¦Historic'!D$17:D$98)/1000000 -> 0 | F40: =SUMPRODUCT('Input¦Historic'!$N$17:$N$98,'Input¦Historic'!E$17:E$98)/1000000 -> 0 | G40: =SUMPRODUCT('Input¦Forecast'!B$17:B$95,'Input¦Forecast'!$P$17:$P$95)/1000*'inputs¦other'!H13 -> 0 | H40: =SUMPRODUCT('Input¦Forecast'!C$17:C$95,'Input¦Forecast'!$P$17:$P$95)/1000*'inputs¦other'!I13 -> 0 | I40: =SUMPRODUCT('Input¦Forecast'!D$17:D$95,'Input¦Forecast'!$P$17:$P$95)/1000*'inputs¦other'!J13 -> 0 | J40: =SUMPRODUCT('Input¦Forecast'!E$17:E$95,'Input¦Forecast'!$P$17:$P$95)/1000*'inputs¦other'!K13 -> 0 | K40: =SUMPRODUCT('Input¦Forecast'!F$17:F$95,'Input¦Forecast'!$P$17:$P$95)/1000*'inputs¦other'!L13 -> 0 | L40: =SUMPRODUCT('Input¦Forecast'!G$17:G$95,'Input¦Forecast'!$P$17:$P$95)/1000*'inputs¦other'!M13 -> 0 | N40: Communications | O40: $m real 2016/17 | P40: =C40/'inputs¦other'!D$13 -> 0 | Q40: =D40/'inputs¦other'!E$13 -> 0 | R40: =E40/'inputs¦other'!F$13 -> 0 | S40: =F40/'inputs¦other'!G$13 -> 0 | T40: =G40/'inputs¦other'!H$13 -> 0 | U40: =H40/'inputs¦other'!I$13 -> 0 | V40: =I40/'inputs¦other'!J$13 -> 0 | W40: =J40/'inputs¦other'!K$13 -> 0 | X40: =K40/'inputs¦other'!L$13 -> 0 | Y40: =L40/'inputs¦other'!M$13 -> 0
A41: Other | B41: $m nominal | C41: =SUMPRODUCT('Input¦Historic'!$O$17:$O$98,'Input¦Historic'!B$17:B$98)/1000000 -> 0 | D41: =SUMPRODUCT('Input¦Historic'!$O$17:$O$98,'Input¦Historic'!C$17:C$98)/1000000 -> 0 | E41: =SUMPRODUCT('Input¦Historic'!$O$17:$O$98,'Input¦Historic'!D$17:D$98)/1000000 -> 0 | F41: =SUMPRODUCT('Input¦Historic'!$O$17:$O$98,'Input¦Historic'!E$17:E$98)/1000000 -> 0 | G41: =SUMPRODUCT('Input¦Forecast'!B$17:B$95,'Input¦Forecast'!$Q$17:$Q$95)/1000*'inputs¦other'!H13 -> 0 | H41: =SUMPRODUCT('Input¦Forecast'!C$17:C$95,'Input¦Forecast'!$Q$17:$Q$95)/1000*'inputs¦other'!I13 -> 0 | I41: =SUMPRODUCT('Input¦Forecast'!D$17:D$95,'Input¦Forecast'!$Q$17:$Q$95)/1000*'inputs¦other'!J13 -> 0 | J41: =SUMPRODUCT('Input¦Forecast'!E$17:E$95,'Input¦Forecast'!$Q$17:$Q$95)/1000*'inputs¦other'!K13 -> 0 | K41: =SUMPRODUCT('Input¦Forecast'!F$17:F$95,'Input¦Forecast'!$Q$17:$Q$95)/1000*'inputs¦other'!L13 -> 0 | L41: =SUMPRODUCT('Input¦Forecast'!G$17:G$95,'Input¦Forecast'!$Q$17:$Q$95)/1000*'inputs¦other'!M13 -> 0 | N41: Other | O41: $m real 2016/17 | P41: =C41/'inputs¦other'!D$13 -> 0 | Q41: =D41/'inputs¦other'!E$13 -> 0 | R41: =E41/'inputs¦other'!F$13 -> 0 | S41: =F41/'inputs¦other'!G$13 -> 0 | T41: =G41/'inputs¦other'!H$13 -> 0 | U41: =H41/'inputs¦other'!I$13 -> 0 | V41: =I41/'inputs¦other'!J$13 -> 0 | W41: =J41/'inputs¦other'!K$13 -> 0 | X41: =K41/'inputs¦other'!L$13 -> 0 | Y41: =L41/'inputs¦other'!M$13 -> 0
A42: Capitalised AA costs | B42: $m nominal | C42: =SUMPRODUCT('Input¦Historic'!$P$17:$P$98,'Input¦Historic'!B$17:B$98)/1000000 -> 0.07087535 | D42: =SUMPRODUCT('Input¦Historic'!$P$17:$P$98,'Input¦Historic'!C$17:C$98)/1000000 -> 0 | E42: =SUMPRODUCT('Input¦Historic'!$P$17:$P$98,'Input¦Historic'!D$17:D$98)/1000000 -> 0 | F42: =SUMPRODUCT('Input¦Historic'!$P$17:$P$98,'Input¦Historic'!E$17:E$98)/1000000 -> 0.05800808 | G42: =SUMPRODUCT('Input¦Forecast'!B$17:B$95,'Input¦Forecast'!$R$17:$R$95)/1000*'inputs¦other'!H13 -> 0.911856697 | H42: =SUMPRODUCT('Input¦Forecast'!C$17:C$95,'Input¦Forecast'!$R$17:$R$95)/1000*'inputs¦other'!I13 -> 0.07417310916 | I42: =SUMPRODUCT('Input¦Forecast'!D$17:D$95,'Input¦Forecast'!$R$17:$R$95)/1000*'inputs¦other'!J13 -> 0 | J42: =SUMPRODUCT('Input¦Forecast'!E$17:E$95,'Input¦Forecast'!$R$17:$R$95)/1000*'inputs¦other'!K13 -> 0 | K42: =SUMPRODUCT('Input¦Forecast'!F$17:F$95,'Input¦Forecast'!$R$17:$R$95)/1000*'inputs¦other'!L13 -> 0.06499301132 | L42: =SUMPRODUCT('Input¦Forecast'!G$17:G$95,'Input¦Forecast'!$R$17:$R$95)/1000*'inputs¦other'!M13 -> 1.021656166 | N42: Capitalised AA costs | O42: $m real 2016/17 | P42: =C42/'inputs¦other'!D$13 -> 0.07676389259 | Q42: =D42/'inputs¦other'!E$13 -> 0 | R42: =E42/'inputs¦other'!F$13 -> 0 | S42: =F42/'inputs¦other'!G$13 -> 0.05876848554 | T42: =G42/'inputs¦other'!H$13 -> 0.911856697 | U42: =H42/'inputs¦other'!I$13 -> 0.07250548305 | V42: =I42/'inputs¦other'!J$13 -> 0 | W42: =J42/'inputs¦other'!K$13 -> 0 | X42: =K42/'inputs¦other'!L$13 -> 0.05934226584 | Y42: =L42/'inputs¦other'!M$13 -> 0.911856697
A43: Group IT | B43: $m nominal | C43: =SUMPRODUCT('Input¦Historic'!$Q$17:$Q$98,'Input¦Historic'!B$17:B$98)/1000000 -> 1.292236067 | D43: =SUMPRODUCT('Input¦Historic'!$Q$17:$Q$98,'Input¦Historic'!C$17:C$98)/1000000 -> 1.14677746 | E43: =SUMPRODUCT('Input¦Historic'!$Q$17:$Q$98,'Input¦Historic'!D$17:D$98)/1000000 -> 2.284029771 | F43: =SUMPRODUCT('Input¦Historic'!$Q$17:$Q$98,'Input¦Historic'!E$17:E$98)/1000000 -> 1.57191078 | G43: =SUMPRODUCT('Input¦Forecast'!B$17:B$95,'Input¦Forecast'!$S$17:$S$95)/1000*'inputs¦other'!H13 -> 1.410389656 | H43: =SUMPRODUCT('Input¦Forecast'!C$17:C$95,'Input¦Forecast'!$S$17:$S$95)/1000*'inputs¦other'!I13 -> 1.651399451 | I43: =SUMPRODUCT('Input¦Forecast'!D$17:D$95,'Input¦Forecast'!$S$17:$S$95)/1000*'inputs¦other'!J13 -> 0.6176460123 | J43: =SUMPRODUCT('Input¦Forecast'!E$17:E$95,'Input¦Forecast'!$S$17:$S$95)/1000*'inputs¦other'!K13 -> 0.5260828735 | K43: =SUMPRODUCT('Input¦Forecast'!F$17:F$95,'Input¦Forecast'!$S$17:$S$95)/1000*'inputs¦other'!L13 -> 0.6958631979 | L43: =SUMPRODUCT('Input¦Forecast'!G$17:G$95,'Input¦Forecast'!$S$17:$S$95)/1000*'inputs¦other'!M13 -> 0.4769921557 | N43: Group IT | O43: $m real 2016/17 | P43: =C43/'inputs¦other'!D$13 -> 1.399599023 | Q43: =D43/'inputs¦other'!E$13 -> 1.211731652 | R43: =E43/'inputs¦other'!F$13 -> 2.344706084 | S43: =F43/'inputs¦other'!G$13 -> 1.592516352 | T43: =G43/'inputs¦other'!H$13 -> 1.410389656 | U43: =H43/'inputs¦other'!I$13 -> 1.614271213 | V43: =I43/'inputs¦other'!J$13 -> 0.5901852813 | W43: =J43/'inputs¦other'!K$13 -> 0.4913910731 | X43: =K43/'inputs¦other'!L$13 -> 0.6353621418 | Y43: =L43/'inputs¦other'!M$13 -> 0.425728837
A44: SIB Capex | B44: $m nominal | C44: =SUMPRODUCT('Input¦Historic'!$R$17:$R$98,'Input¦Historic'!B$17:B$98)/1000000 -> 1.01549623 | D44: =SUMPRODUCT('Input¦Historic'!$R$17:$R$98,'Input¦Historic'!C$17:C$98)/1000000 -> 2.54947454 | E44: =SUMPRODUCT('Input¦Historic'!$R$17:$R$98,'Input¦Historic'!D$17:D$98)/1000000 -> 3.7652525 | F44: =SUMPRODUCT('Input¦Historic'!$R$17:$R$98,'Input¦Historic'!E$17:E$98)/1000000 -> 1.89273002 | G44: =SUMPRODUCT('Input¦Forecast'!B$17:B$95,'Input¦Forecast'!$T$17:$T$95)/1000*'inputs¦other'!H13 -> 0.9237244957 | H44: =SUMPRODUCT('Input¦Forecast'!C$17:C$95,'Input¦Forecast'!$T$17:$T$95)/1000*'inputs¦other'!I13 -> 1.051259074 | I44: =SUMPRODUCT('Input¦Forecast'!D$17:D$95,'Input¦Forecast'!$T$17:$T$95)/1000*'inputs¦other'!J13 -> 1.131212015 | J44: =SUMPRODUCT('Input¦Forecast'!E$17:E$95,'Input¦Forecast'!$T$17:$T$95)/1000*'inputs¦other'!K13 -> 0.5658094998 | K44: =SUMPRODUCT('Input¦Forecast'!F$17:F$95,'Input¦Forecast'!$T$17:$T$95)/1000*'inputs¦other'!L13 -> 0.6068334452 | L44: =SUMPRODUCT('Input¦Forecast'!G$17:G$95,'Input¦Forecast'!$T$17:$T$95)/1000*'inputs¦other'!M13 -> 0.3342449704 | N44: SIB Capex | O44: $m real 2016/17 | P44: =C44/'inputs¦other'!D$13 -> 1.099866788 | Q44: =D44/'inputs¦other'!E$13 -> 2.693878371 | R44: =E44/'inputs¦other'!F$13 -> 3.865278183 | S44: =F44/'inputs¦other'!G$13 -> 1.917541088 | T44: =G44/'inputs¦other'!H$13 -> 0.9237244957 | U44: =H44/'inputs¦other'!I$13 -> 1.027623728 | V44: =I44/'inputs¦other'!J$13 -> 1.080917983 | W44: =J44/'inputs¦other'!K$13 -> 0.5284979825 | X44: =K44/'inputs¦other'!L$13 -> 0.5540729825 | Y44: =L44/'inputs¦other'!M$13 -> 0.2983229825
A45: PMA | B45: $m nominal | C45: =SUMPRODUCT('Input¦Historic'!$S$17:$S$98,'Input¦Historic'!B$17:B$98)/1000000 -> 0 | D45: =SUMPRODUCT('Input¦Historic'!$S$17:$S$98,'Input¦Historic'!C$17:C$98)/1000000 -> 0 | E45: =SUMPRODUCT('Input¦Historic'!$S$17:$S$98,'Input¦Historic'!D$17:D$98)/1000000 -> 0 | F45: =SUMPRODUCT('Input¦Historic'!$S$17:$S$98,'Input¦Historic'!E$17:E$98)/1000000 -> 0 | G45: =SUMPRODUCT('Input¦Forecast'!B$17:B$95,'Input¦Forecast'!$U$17:$U$95)/1000*'inputs¦other'!H13 -> 0 | H45: =SUMPRODUCT('Input¦Forecast'!C$17:C$95,'Input¦Forecast'!$U$17:$U$95)/1000*'inputs¦other'!I13 -> 0 | I45: =SUMPRODUCT('Input¦Forecast'!D$17:D$95,'Input¦Forecast'!$U$17:$U$95)/1000*'inputs¦other'!J13 -> 0 | J45: =SUMPRODUCT('Input¦Forecast'!E$17:E$95,'Input¦Forecast'!$U$17:$U$95)/1000*'inputs¦other'!K13 -> 0 | K45: =SUMPRODUCT('Input¦Forecast'!F$17:F$95,'Input¦Forecast'!$U$17:$U$95)/1000*'inputs¦other'!L13 -> 0 | L45: =SUMPRODUCT('Input¦Forecast'!G$17:G$95,'Input¦Forecast'!$U$17:$U$95)/1000*'inputs¦other'!M13 -> 0 | N45: PMA | O45: $m real 2016/17 | P45: =C45/'inputs¦other'!D$13 -> 0 | Q45: =D45/'inputs¦other'!E$13 -> 0 | R45: =E45/'inputs¦other'!F$13 -> 0 | S45: =F45/'inputs¦other'!G$13 -> 0 | T45: =G45/'inputs¦other'!H$13 -> 0 | U45: =H45/'inputs¦other'!I$13 -> 0 | V45: =I45/'inputs¦other'!J$13 -> 0 | W45: =J45/'inputs¦other'!K$13 -> 0 | X45: =K45/'inputs¦other'!L$13 -> 0 | Y45: =L45/'inputs¦other'!M$13 -> 0
A46: Total | B46: $m nominal | C46: =SUM(C35:C45) -> 5.878085067 | D46: =SUM(D35:D45) -> 10.52095472 | E46: 22.99217637 | F46: 9.87243158 | G46: 18.21985881 | H46: 26.51794981 | I46: 16.64945723 | J46: 7.348901074 | K46: 9.163523835 | L46: 9.322050246 | N46: Total | O46: $m real 2016/17 | P46: =SUM(P35:P45) -> 6.366454496 | Q46: =SUM(Q35:Q45) -> 11.11686817 | R46: =SUM(R35:R45) -> 23.60297423 | S46: =SUM(S35:S45) -> 10.00184548 | T46: =SUM(T35:T45) -> 18.21985881 | U46: =SUM(U35:U45) -> 25.92174957 | V46: =SUM(V35:V45) -> 15.90921726 | W46: =SUM(W35:W45) -> 6.864288056 | X46: =SUM(X35:X45) -> 8.36681139 | Y46: =SUM(Y35:Y45) -> 8.320190516
A48: Check | C48: =C46=C29 -> TRUE | D48: TRUE | E48: TRUE | F48: TRUE | G48: =G46=G29 -> TRUE | H48: =H46=H29 -> TRUE | I48: TRUE | J48: TRUE | K48: TRUE | L48: TRUE | N48: Check | P48: =P46=P31 -> TRUE | Q48: =Q46=Q31 -> TRUE | R48: TRUE | S48: TRUE | T48: TRUE | U48: TRUE | V48: TRUE | W48: FALSE | X48: TRUE | Y48: TRUE
A50: Driver | C50: =C34 -> 2013 | D50: =D34 -> 2014 | E50: 2015 | F50: 2016 | G50: 2017 | H50: 2018 | I50: 2019 | J50: 2020 | K50: 2021 | L50: 2022 | N50: Driver | P50: =P34 -> 2013 | Q50: =Q34 -> 2014 | R50: 2015 | S50: 2016 | T50: 2017 | U50: 2018 | V50: 2019 | W50: 2020 | X50: 2021 | Y50: 2022
A51: Expansion/Extension | B51: =B46 -> $m nominal | C51: =SUMIF('Input¦Historic'!$H$17:$H$98,$A51,'Input¦Historic'!B$17:B$98)/1000000 -> 2.92318626 | D51: =SUMIF('Input¦Historic'!$H$17:$H$98,$A51,'Input¦Historic'!C$17:C$98)/1000000 -> 2.40302167 | E51: =SUMIF('Input¦Historic'!$H$17:$H$98,$A51,'Input¦Historic'!D$17:D$98)/1000000 -> 0.01857902 | F51: =SUMIF('Input¦Historic'!$H$17:$H$98,$A51,'Input¦Historic'!E$17:E$98)/1000000 -> 0 | G51: =SUMIF('Input¦Forecast'!$I$17:$I$95,$A51,'Input¦Forecast'!B$17:B$95)/1000*'inputs¦other'!H$13 -> 0 | H51: =SUMIF('Input¦Forecast'!$I$17:$I$95,$A51,'Input¦Forecast'!C$17:C$95)/1000*'inputs¦other'!I$13 -> 0 | I51: =SUMIF('Input¦Forecast'!$I$17:$I$95,$A51,'Input¦Forecast'!D$17:D$95)/1000*'inputs¦other'!J$13 -> 0 | J51: =SUMIF('Input¦Forecast'!$I$17:$I$95,$A51,'Input¦Forecast'!E$17:E$95)/1000*'inputs¦other'!K$13 -> 0 | K51: =SUMIF('Input¦Forecast'!$I$17:$I$95,$A51,'Input¦Forecast'!F$17:F$95)/1000*'inputs¦other'!L$13 -> 0 | L51: =SUMIF('Input¦Forecast'!$I$17:$I$95,$A51,'Input¦Forecast'!G$17:G$95)/1000*'inputs¦other'!M$13 -> 0 | N51: Expansion/Extension | O51: =O46 -> $m real 2016/17 | P51: =SUMIF('Input¦Historic'!$H$17:$H$98,$N51,'Input¦Historic'!B$17:B$98)/1000000/'inputs¦other'!D$13 -> 3.166053587 | Q51: =SUMIF('Input¦Historic'!$H$17:$H$98,$N51,'Input¦Historic'!C$17:C$98)/1000000/'inputs¦other'!E$13 -> 2.539130319 | R51: =SUMIF('Input¦Historic'!$H$17:$H$98,$N51,'Input¦Historic'!D$17:D$98)/1000000/'inputs¦other'!F$13 -> 0.0190725803 | S51: =SUMIF('Input¦Historic'!$H$17:$H$98,$N51,'Input¦Historic'!E$17:E$98)/1000000/'inputs¦other'!G$13 -> 0 | T51: =T19 -> 0 | U51: 0 | V51: 0 | W51: 0 | X51: 0 | Y51: 0
A52: Replacement | B52: =B51 -> $m nominal | C52: =SUMIF('Input¦Historic'!$H$17:$H$98,$A52,'Input¦Historic'!B$17:B$98)/1000000 -> 0.65139705 | D52: =SUMIF('Input¦Historic'!$H$17:$H$98,$A52,'Input¦Historic'!C$17:C$98)/1000000 -> 2.12985466 | E52: =SUMIF('Input¦Historic'!$H$17:$H$98,$A52,'Input¦Historic'!D$17:D$98)/1000000 -> 3.88199981 | F52: =SUMIF('Input¦Historic'!$H$17:$H$98,$A52,'Input¦Historic'!E$17:E$98)/1000000 -> 4.43062598 | G52: =SUMIF('Input¦Forecast'!$I$17:$I$95,$A52,'Input¦Forecast'!B$17:B$95)/1000*'inputs¦other'!H$13 -> 6.254622 | H52: =SUMIF('Input¦Forecast'!$I$17:$I$95,$A52,'Input¦Forecast'!C$17:C$95)/1000*'inputs¦other'!I$13 -> 8.8954965 | I52: =SUMIF('Input¦Forecast'!$I$17:$I$95,$A52,'Input¦Forecast'!D$17:D$95)/1000*'inputs¦other'!J$13 -> 10.72526246 | J52: =SUMIF('Input¦Forecast'!$I$17:$I$95,$A52,'Input¦Forecast'!E$17:E$95)/1000*'inputs¦other'!K$13 -> 5.840823981 | K52: =SUMIF('Input¦Forecast'!$I$17:$I$95,$A52,'Input¦Forecast'!F$17:F$95)/1000*'inputs¦other'!L$13 -> 7.459710258 | L52: =SUMIF('Input¦Forecast'!$I$17:$I$95,$A52,'Input¦Forecast'!G$17:G$95)/1000*'inputs¦other'!M$13 -> 7.145302181 | N52: Replacement | O52: =O51 -> $m real 2016/17 | P52: =SUMIF('Input¦Historic'!$H$17:$H$98,$N52,'Input¦Historic'!B$17:B$98)/1000000/'inputs¦other'!D$13 -> 0.7055171252 | Q52: =SUMIF('Input¦Historic'!$H$17:$H$98,$N52,'Input¦Historic'!C$17:C$98)/1000000/'inputs¦other'!E$13 -> 2.250490959 | R52: =SUMIF('Input¦Historic'!$H$17:$H$98,$N52,'Input¦Historic'!D$17:D$98)/1000000/'inputs¦other'!F$13 -> 3.98512694 | S52: =SUMIF('Input¦Historic'!$H$17:$H$98,$N52,'Input¦Historic'!E$17:E$98)/1000000/'inputs¦other'!G$13 -> 4.488705347 | T52: =T25 -> 6.254622 | U52: 8.6955 | V52: 10.248414 | W52: 5.455659 | X52: 6.811134 | Y52: 6.377382
A53: Stay in business | B53: =B52 -> $m nominal | C53: =SUMIF('Input¦Historic'!$H$17:$H$98,$A53,'Input¦Historic'!B$17:B$98)/1000000 -> 2.303501757 | D53: =SUMIF('Input¦Historic'!$H$17:$H$98,$A53,'Input¦Historic'!C$17:C$98)/1000000 -> 5.988078387 | E53: =SUMIF('Input¦Historic'!$H$17:$H$98,$A53,'Input¦Historic'!D$17:D$98)/1000000 -> 19.09159754 | F53: =SUMIF('Input¦Historic'!$H$17:$H$98,$A53,'Input¦Historic'!E$17:E$98)/1000000 -> 5.4418056 | G53: =SUMIF('Input¦Forecast'!$I$17:$I$95,$A53,'Input¦Forecast'!B$17:B$95)/1000*'inputs¦other'!H$13 -> 11.96523681 | H53: =SUMIF('Input¦Forecast'!$I$17:$I$95,$A53,'Input¦Forecast'!C$17:C$95)/1000*'inputs¦other'!I$13 -> 17.62245331 | I53: =SUMIF('Input¦Forecast'!$I$17:$I$95,$A53,'Input¦Forecast'!D$17:D$95)/1000*'inputs¦other'!J$13 -> 5.924194779 | J53: =SUMIF('Input¦Forecast'!$I$17:$I$95,$A53,'Input¦Forecast'!E$17:E$95)/1000*'inputs¦other'!K$13 -> 1.508077094 | K53: =SUMIF('Input¦Forecast'!$I$17:$I$95,$A53,'Input¦Forecast'!F$17:F$95)/1000*'inputs¦other'!L$13 -> 1.703813577 | L53: =SUMIF('Input¦Forecast'!$I$17:$I$95,$A53,'Input¦Forecast'!G$17:G$95)/1000*'inputs¦other'!M$13 -> 2.176748065 | N53: Stay in business | O53: =O52 -> $m real 2016/17 | P53: =SUMIF('Input¦Historic'!$H$17:$H$98,$N53,'Input¦Historic'!B$17:B$98)/1000000/'inputs¦other'!D$13 -> 2.494883784 | Q53: =SUMIF('Input¦Historic'!$H$17:$H$98,$N53,'Input¦Historic'!C$17:C$98)/1000000/'inputs¦other'!E$13 -> 6.327246889 | R53: =SUMIF('Input¦Historic'!$H$17:$H$98,$N53,'Input¦Historic'!D$17:D$98)/1000000/'inputs¦other'!F$13 -> 19.59877471 | S53: =SUMIF('Input¦Historic'!$H$17:$H$98,$N53,'Input¦Historic'!E$17:E$98)/1000000/'inputs¦other'!G$13 -> 5.51314013 | T53: =T46-SUM(T51:T52) -> 11.96523681 | U53: 17.22624957 | V53: 5.660803264 | W53: 1.408629056 | X53: 1.55567739 | Y53: 1.942808516
A54: Total | B54: =B53 -> $m nominal | C54: =SUM(C51:C53) -> 5.878085067 | D54: =SUM(D51:D53) -> 10.52095472 | E54: 22.99217637 | F54: 9.87243158 | G54: =SUM(G51:G53) -> 18.21985881 | H54: =SUM(H51:H53) -> 26.51794981 | I54: 16.64945723 | J54: 7.348901074 | K54: 9.163523835 | L54: 9.322050246 | N54: Total | O54: =O53 -> $m real 2016/17 | P54: =SUM(P51:P53) -> 6.366454496 | Q54: =SUM(Q51:Q53) -> 11.11686817 | R54: =SUM(R51:R53) -> 23.60297423 | S54: =SUM(S51:S53) -> 10.00184548 | T54: =SUM(T51:T53) -> 18.21985881 | U54: =SUM(U51:U53) -> 25.92174957 | V54: =SUM(V51:V53) -> 15.90921726 | W54: =SUM(W51:W53) -> 6.864288056 | X54: =SUM(X51:X53) -> 8.36681139 | Y54: =SUM(Y51:Y53) -> 8.320190516
A56: Check | C56: =C54=C46 -> TRUE | D56: TRUE | E56: TRUE | F56: TRUE | G56: TRUE | H56: TRUE | I56: TRUE | J56: TRUE | K56: TRUE | L56: TRUE | N56: Check | P56: =P54=P46 -> TRUE | Q56: TRUE | R56: TRUE | S56: TRUE | T56: TRUE | U56: TRUE | V56: TRUE | W56: TRUE | X56: TRUE | Y56: TRUE
A59: AER Final Decision - Capex by project ($m nominal) | N59: AER Final Decision - Capex by project ($m real 2016/17)
A60: Driver | C60: 2013 | D60: 2014 | E60: 2015 | F60: 2016 | G60: 2017 | H60: 2018 | I60: 2019 | J60: 2020 | K60: 2021 | L60: 2022 | N60: Driver | P60: 2013 | Q60: 2014 | R60: 2015 | S60: 2016 | T60: 2017 | U60: 2018 | V60: 2019 | W60: 2020 | X60: 2021 | Y60: 2022
A61: Expansion/Extension | B61: $m nominal | C61: =SUMIF('Input¦Historic'!$H$17:$H$98,$A61,'Input¦Historic'!B$17:B$98)/1000000 -> 2.92318626 | D61: =SUMIF('Input¦Historic'!$H$17:$H$98,$A61,'Input¦Historic'!C$17:C$98)/1000000 -> 2.40302167 | E61: =SUMIF('Input¦Historic'!$H$17:$H$98,$A61,'Input¦Historic'!D$17:D$98)/1000000 -> 0.01857902 | F61: =SUMIF('Input¦Historic'!$H$17:$H$98,$A61,'Input¦Historic'!E$17:E$98)/1000000 -> 0 | G61: =SUMIF('Input¦Forecast'!$I$17:$I$95,$A61,'Input¦Forecast'!B$17:B$95)/1000*'inputs¦other'!H$13 -> 0 | H61: =SUMIF('Input¦Forecast'!$I$17:$I$95,$A61,'Input¦Forecast'!C$17:C$95)/1000*'inputs¦other'!I$13 -> 0 | I61: =SUMIF('Input¦Forecast'!$I$17:$I$95,$A61,'Input¦Forecast'!D$17:D$95)/1000*'inputs¦other'!J$13 -> 0 | J61: =SUMIF('Input¦Forecast'!$I$17:$I$95,$A61,'Input¦Forecast'!E$17:E$95)/1000*'inputs¦other'!K$13 -> 0 | K61: =SUMIF('Input¦Forecast'!$I$17:$I$95,$A61,'Input¦Forecast'!F$17:F$95)/1000*'inputs¦other'!L$13 -> 0 | L61: =SUMIF('Input¦Forecast'!$I$17:$I$95,$A61,'Input¦Forecast'!G$17:G$95)/1000*'inputs¦other'!M$13 -> 0 | N61: Expansion/Extension | O61: $m real 2016/17 | P61: =C61/'inputs¦other'!D$13 -> 3.166053587 | Q61: =D61/'inputs¦other'!E$13 -> 2.539130319 | R61: =E61/'inputs¦other'!F$13 -> 0.0190725803 | S61: =F61/'inputs¦other'!G$13 -> 0 | T61: =G61/'inputs¦other'!H$13 -> 0 | U61: =H61/'inputs¦other'!I$13 -> 0 | V61: =I61/'inputs¦other'!J$13 -> 0 | W61: =J61/'inputs¦other'!K$13 -> 0 | X61: =K61/'inputs¦other'!L$13 -> 0 | Y61: =L61/'inputs¦other'!M$13 -> 0
A62: Replacement | B62: $m nominal | C62: =SUMIF('Input¦Historic'!$H$17:$H$98,$A62,'Input¦Historic'!B$17:B$98)/1000000 -> 0.65139705 | D62: =SUMIF('Input¦Historic'!$H$17:$H$98,$A62,'Input¦Historic'!C$17:C$98)/1000000 -> 2.12985466 | E62: =SUMIF('Input¦Historic'!$H$17:$H$98,$A62,'Input¦Historic'!D$17:D$98)/1000000 -> 3.88199981 | F62: =SUMIF('Input¦Historic'!$H$17:$H$98,$A62,'Input¦Historic'!E$17:E$98)/1000000 -> 4.43062598 | G62: =SUMIF('Input¦Forecast'!$I$17:$I$95,$A62,'Input¦Forecast'!B$17:B$95)/1000*'inputs¦other'!H$13 -> 6.254622 | H62: =SUMIF('Input¦Forecast'!$I$17:$I$95,$A62,'Input¦Forecast'!C$17:C$95)/1000*'inputs¦other'!I$13 -> 8.8954965 | I62: =SUMIF('Input¦Forecast'!$I$17:$I$95,$A62,'Input¦Forecast'!D$17:D$95)/1000*'inputs¦other'!J$13 -> 10.72526246 | J62: =SUMIF('Input¦Forecast'!$I$17:$I$95,$A62,'Input¦Forecast'!E$17:E$95)/1000*'inputs¦other'!K$13 -> 5.840823981 | K62: =SUMIF('Input¦Forecast'!$I$17:$I$95,$A62,'Input¦Forecast'!F$17:F$95)/1000*'inputs¦other'!L$13 -> 7.459710258 | L62: =SUMIF('Input¦Forecast'!$I$17:$I$95,$A62,'Input¦Forecast'!G$17:G$95)/1000*'inputs¦other'!M$13 -> 7.145302181 | N62: Replacement | O62: $m real 2016/17 | P62: =C62/'inputs¦other'!D$13 -> 0.7055171252 | Q62: =D62/'inputs¦other'!E$13 -> 2.250490959 | R62: =E62/'inputs¦other'!F$13 -> 3.98512694 | S62: =F62/'inputs¦other'!G$13 -> 4.488705347 | T62: =G62/'inputs¦other'!H$13 -> 6.254622 | U62: =H62/'inputs¦other'!I$13 -> 8.6955 | V62: =I62/'inputs¦other'!J$13 -> 10.248414 | W62: =J62/'inputs¦other'!K$13 -> 5.455659 | X62: =K62/'inputs¦other'!L$13 -> 6.811134 | Y62: =L62/'inputs¦other'!M$13 -> 6.377382
A63: Stay in business | B63: $m nominal | C63: =SUMIF('Input¦Historic'!$H$17:$H$98,$A63,'Input¦Historic'!B$17:B$98)/1000000 -> 2.303501757 | D63: =SUMIF('Input¦Historic'!$H$17:$H$98,$A63,'Input¦Historic'!C$17:C$98)/1000000 -> 5.988078387 | E63: =SUMIF('Input¦Historic'!$H$17:$H$98,$A63,'Input¦Historic'!D$17:D$98)/1000000 -> 19.09159754 | F63: =SUMIF('Input¦Historic'!$H$17:$H$98,$A63,'Input¦Historic'!E$17:E$98)/1000000 -> 5.4418056 | G63: =SUMIF('Input¦Forecast'!$I$17:$I$95,$A63,'Input¦Forecast'!B$17:B$95)/1000*'inputs¦other'!H$13 -> 11.96523681 | H63: =SUMIF('Input¦Forecast'!$I$17:$I$95,$A63,'Input¦Forecast'!C$17:C$95)/1000*'inputs¦other'!I$13 -> 17.62245331 | I63: =SUMIF('Input¦Forecast'!$I$17:$I$95,$A63,'Input¦Forecast'!D$17:D$95)/1000*'inputs¦other'!J$13 -> 5.924194779 | J63: =SUMIF('Input¦Forecast'!$I$17:$I$95,$A63,'Input¦Forecast'!E$17:E$95)/1000*'inputs¦other'!K$13 -> 1.508077094 | K63: =SUMIF('Input¦Forecast'!$I$17:$I$95,$A63,'Input¦Forecast'!F$17:F$95)/1000*'inputs¦other'!L$13 -> 1.703813577 | L63: =SUMIF('Input¦Forecast'!$I$17:$I$95,$A63,'Input¦Forecast'!G$17:G$95)/1000*'inputs¦other'!M$13 -> 2.176748065 | N63: Stay in business | O63: $m real 2016/17 | P63: =C63/'inputs¦other'!D$13 -> 2.494883784 | Q63: =D63/'inputs¦other'!E$13 -> 6.327246889 | R63: =E63/'inputs¦other'!F$13 -> 19.59877471 | S63: =F63/'inputs¦other'!G$13 -> 5.51314013 | T63: =G63/'inputs¦other'!H$13 -> 11.96523681 | U63: =H63/'inputs¦other'!I$13 -> 17.22624957 | V63: =I63/'inputs¦other'!J$13 -> 5.660803264 | W63: =J63/'inputs¦other'!K$13 -> 1.408629056 | X63: =K63/'inputs¦other'!L$13 -> 1.55567739 | Y63: =L63/'inputs¦other'!M$13 -> 1.942808516
A64: Total gross capex | B64: $m nominal | C64: =SUM(C61:C63) -> 5.878085067 | D64: =SUM(D61:D63) -> 10.52095472 | E64: 22.99217637 | F64: 9.87243158 | G64: =SUM(G61:G63) -> 18.21985881 | H64: =SUM(H61:H63) -> 26.51794981 | I64: 16.64945723 | J64: 7.348901074 | K64: 9.163523835 | L64: 9.322050246 | N64: Total gross capex | O64: $m real 2016/17 | P64: =SUM(P61:P63) -> 6.366454496 | Q64: =SUM(Q61:Q63) -> 11.11686817 | R64: 23.60297423 | S64: 10.00184548 | T64: =SUM(T61:T63) -> 18.21985881 | U64: =SUM(U61:U63) -> 25.92174957 | V64: 15.90921726 | W64: 6.864288056 | X64: 8.36681139 | Y64: 8.320190516
A65: Capital contributions | B65: $m nominal | D65: ='AER Final Decision'!E59 -> 0.09521824 | N65: Capital contributions | O65: $m real 2016/17 | P65: =C65/'inputs¦other'!D$13 -> 0 | Q65: =D65/'inputs¦other'!E$13 -> 0.1006114606 | R65: =E65/'inputs¦other'!F$13 -> 0 | S65: =F65/'inputs¦other'!G$13 -> 0 | T65: =G65/'inputs¦other'!H$13 -> 0 | U65: =H65/'inputs¦other'!I$13 -> 0 | V65: =I65/'inputs¦other'!J$13 -> 0 | W65: =J65/'inputs¦other'!K$13 -> 0 | X65: =K65/'inputs¦other'!L$13 -> 0 | Y65: =L65/'inputs¦other'!M$13 -> 0
A66: Asset disposals | B66: $m nominal | C66: 0.10868118 | D66: 0.06679468 | E66: 0.04084031 | F66: 0 | G66: 0 | N66: Asset disposals | O66: $m real 2016/17 | P66: =C66/'inputs¦other'!D$13 -> 0.1177107475 | Q66: =D66/'inputs¦other'!E$13 -> 0.07057797242 | R66: =E66/'inputs¦other'!F$13 -> 0.04192525182 | S66: =F66/'inputs¦other'!G$13 -> 0 | T66: =G66/'inputs¦other'!H$13 -> 0 | U66: =H66/'inputs¦other'!I$13 -> 0 | V66: =I66/'inputs¦other'!J$13 -> 0 | W66: =J66/'inputs¦other'!K$13 -> 0 | X66: =K66/'inputs¦other'!L$13 -> 0 | Y66: =L66/'inputs¦other'!M$13 -> 0
A67: Total net capex | B67: $m nominal | C67: =C64-C65 -> 5.878085067 | D67: 10.42573648 | E67: 22.99217637 | F67: 9.87243158 | G67: 18.21985881 | H67: 26.51794981 | I67: 16.64945723 | J67: 7.348901074 | K67: 9.163523835 | L67: 9.322050246 | N67: Total net capex | O67: $m real 2016/17 | P67: =P64-P65-P66 -> 6.248743749 | Q67: =Q64-Q65-Q66 -> 10.94567873 | R67: 23.56104897 | S67: 10.00184548 | T67: 18.21985881 | U67: 25.92174957 | V67: 15.90921726 | W67: 6.864288056 | X67: 8.36681139 | Y67: 8.320190516
A71: AER Forecast by Driver | C71: =C50 -> 2013 | D71: =D50 -> 2014 | E71: =E50 -> 2015 | F71: =F50 -> 2016 | G71: =G50 -> 2017 | N71: =A71 -> AER Forecast by Driver | P71: =P50 -> 2013 | Q71: =Q50 -> 2014 | R71: =R50 -> 2015 | S71: =S50 -> 2016 | T71: =T50 -> 2017
A72: =A51 -> Expansion/Extension | B72: $m nominal | C72: 0 | D72: 0 | E72: 0 | F72: 0 | G72: 0 | N72: =N51 -> Expansion/Extension | O72: $m real 2016/17 | P72: 0 | Q72: 0 | R72: 0 | S72: 0 | T72: 0
A73: Replacement | B73: $m nominal | C73: 0 | D73: 0 | E73: 0 | F73: 0 | G73: 0 | N73: Replacement | O73: $m real 2016/17 | P73: 0 | Q73: 0 | R73: 0 | S73: 0 | T73: 0
A74: Stay in business | B74: $m nominal | C74: ='inputs¦other'!D35 -> 4.056679683 | D74: ='inputs¦other'!E35 -> 4.644886689 | E74: ='inputs¦other'!F35 -> 3.569246997 | F74: ='inputs¦other'!G35 -> 3.848193599 | G74: ='inputs¦other'!H35 -> 3.282885584 | N74: Stay in business | O74: $m real 2016/17 | P74: ='inputs¦other'!D34 -> 4.393721138 | Q74: ='inputs¦other'!E34 -> 4.907975974 | R74: ='inputs¦other'!F34 -> 3.664065703 | S74: ='inputs¦other'!G34 -> 3.898638084 | T74: ='inputs¦other'!H34 -> 3.282885584
A75: Total | B75: $m nominal | C75: =SUM(C72:C74) -> 4.056679683 | D75: =SUM(D72:D74) -> 4.644886689 | E75: =SUM(E72:E74) -> 3.569246997 | F75: =SUM(F72:F74) -> 3.848193599 | G75: =SUM(G72:G74) -> 3.282885584 | N75: Total | O75: $m real 2016/17 | P75: =SUM(P72:P74) -> 4.393721138 | Q75: =SUM(Q72:Q74) -> 4.907975974 | R75: 3.664065703 | S75: 3.898638084 | T75: 3.282885584
A77: Difference | C77: =C71 -> 2013 | D77: =D71 -> 2014 | E77: 2015 | F77: 2016 | G77: 2017 | N77: Difference | P77: =P71 -> 2013 | Q77: =Q71 -> 2014 | R77: 2015 | S77: 2016 | T77: 2017
A78: =A72 -> Expansion/Extension | B78: =B72 -> $m nominal | C78: =C51-C72 -> 2.92318626 | D78: 2.40302167 | E78: 0.01857902 | F78: 0 | G78: 0 | N78: =N72 -> Expansion/Extension | O78: =O72 -> $m real 2016/17 | P78: =P51-P72 -> 3.166053587 | Q78: 2.539130319 | R78: 0.0190725803 | S78: 0 | T78: 0
A79: =A73 -> Replacement | B79: $m nominal | C79: 0.65139705 | D79: 2.12985466 | E79: 3.88199981 | F79: 4.43062598 | G79: 6.254622 | N79: =N73 -> Replacement | O79: $m real 2016/17 | P79: 0.7055171252 | Q79: 2.250490959 | R79: 3.98512694 | S79: 4.488705347 | T79: 6.254622
A80: =A74 -> Stay in business | B80: $m nominal | C80: -1.753177927 | D80: 1.343191698 | E80: 15.52235054 | F80: 1.593612001 | G80: 8.68235123 | N80: =N74 -> Stay in business | O80: $m real 2016/17 | P80: -1.898837354 | Q80: 1.419270915 | R80: 15.934709 | S80: 1.614502046 | T80: 8.68235123
A81: =A75 -> Total | B81: $m nominal | C81: =SUM(C78:C80) -> 1.821405383 | D81: =SUM(D78:D80) -> 5.876068028 | E81: =SUM(E78:E80) -> 19.42292937 | F81: =SUM(F78:F80) -> 6.024237981 | G81: =SUM(G78:G80) -> 14.93697323 | N81: =N75 -> Total | O81: $m real 2016/17 | P81: =SUM(P78:P80) -> 1.972733358 | Q81: =SUM(Q78:Q80) -> 6.208892194 | R81: 19.93890852 | S81: 6.103207393 | T81: 14.93697323

Sheet Outputs│Revised Proposal
B10: =RIGHT(CELL("filename",B1),LEN(CELL("filename",B1))-FIND("]",CELL("filename",B1))) -> Outputs│Revised Proposal
B13: Capex by project ($m nominal) | J13: Capex by project ($m real 2016/17)
B14: Project name | D14: 2013 | E14: 2014 | F14: 2015 | G14: 2016 | H14: 2017 | J14: Project name | L14: 2018 | M14: 2019 | N14: 2020 | O14: 2021 | P14: 2022
B15: Aquarium Passage | C15: $m nominal | D15: =SUMIF('Input¦Historic'!$G$17:$G$97,$B15,'Input¦Historic'!B$17:B$97)/1000000 -> 0.20340742 | E15: =SUMIF('Input¦Historic'!$G$17:$G$97,$B15,'Input¦Historic'!C$17:C$97)/1000000 -> 0.60615213 | F15: =SUMIF('Input¦Historic'!$G$17:$G$97,$B15,'Input¦Historic'!D$17:D$97)/1000000 -> 1.12019813 | G15: =SUMIF('Input¦Historic'!$G$17:$G$97,$B15,'Input¦Historic'!E$17:E$97)/1000000 -> 0 | H15: =SUMIF('Input¦Forecast'!$J$17:$J$95,$B15,'Input¦Forecast'!B$17:B$95)/1000*'inputs¦other'!H$13 -> 0 | J15: =B15 -> Aquarium Passage | K15: $m real 2016/17 | L15: =SUMIF('Input¦Forecast'!$J$17:$J$95,$B15,'Input¦Forecast'!C$17:C$95)/1000 -> 0 | M15: =SUMIF('Input¦Forecast'!$J$17:$J$95,$B15,'Input¦Forecast'!D$17:D$95)/1000 -> 0 | N15: =SUMIF('Input¦Forecast'!$J$17:$J$95,$B15,'Input¦Forecast'!E$17:E$95)/1000 -> 0 | O15: =SUMIF('Input¦Forecast'!$J$17:$J$95,$B15,'Input¦Forecast'!F$17:F$95)/1000 -> 0 | P15: =SUMIF('Input¦Forecast'!$J$17:$J$95,$B15,'Input¦Forecast'!G$17:G$95)/1000 -> 0
B16: Flood Damage | C16: $m nominal | D16: =SUMIF('Input¦Historic'!$G$17:$G$97,$B16,'Input¦Historic'!B$17:B$97)/1000000 -> 0.09802684 | E16: =SUMIF('Input¦Historic'!$G$17:$G$97,$B16,'Input¦Historic'!C$17:C$97)/1000000 -> 1.794542247 | F16: =SUMIF('Input¦Historic'!$G$17:$G$97,$B16,'Input¦Historic'!D$17:D$97)/1000000 -> 5.68429149 | G16: =SUMIF('Input¦Historic'!$G$17:$G$97,$B16,'Input¦Historic'!E$17:E$97)/1000000 -> 0 | H16: =SUMIF('Input¦Forecast'!$J$17:$J$95,$B16,'Input¦Forecast'!B$17:B$95)/1000*'inputs¦other'!H$13 -> 0 | J16: =B16 -> Flood Damage | K16: $m real 2016/17 | L16: =SUMIF('Input¦Forecast'!$J$17:$J$95,$B16,'Input¦Forecast'!C$17:C$95)/1000 -> 0 | M16: =SUMIF('Input¦Forecast'!$J$17:$J$95,$B16,'Input¦Forecast'!D$17:D$95)/1000 -> 0 | N16: =SUMIF('Input¦Forecast'!$J$17:$J$95,$B16,'Input¦Forecast'!E$17:E$95)/1000 -> 0 | O16: =SUMIF('Input¦Forecast'!$J$17:$J$95,$B16,'Input¦Forecast'!F$17:F$95)/1000 -> 0 | P16: =SUMIF('Input¦Forecast'!$J$17:$J$95,$B16,'Input¦Forecast'!G$17:G$95)/1000 -> 0
B17: Bi direction | C17: $m nominal | D17: =SUMIF('Input¦Historic'!$G$17:$G$97,$B17,'Input¦Historic'!B$17:B$97)/1000000 -> 0 | E17: =SUMIF('Input¦Historic'!$G$17:$G$97,$B17,'Input¦Historic'!C$17:C$97)/1000000 -> 0 | F17: =SUMIF('Input¦Historic'!$G$17:$G$97,$B17,'Input¦Historic'!D$17:D$97)/1000000 -> 7.54519578 | G17: =SUMIF('Input¦Historic'!$G$17:$G$97,$B17,'Input¦Historic'!E$17:E$97)/1000000 -> 0.61401758 | H17: =SUMIF('Input¦Forecast'!$J$17:$J$95,$B17,'Input¦Forecast'!B$17:B$95)/1000*'inputs¦other'!H$13 -> 0 | J17: Bi direction | K17: $m real 2016/17 | L17: =SUMIF('Input¦Forecast'!$J$17:$J$95,$B17,'Input¦Forecast'!C$17:C$95)/1000 -> 0 | M17: =SUMIF('Input¦Forecast'!$J$17:$J$95,$B17,'Input¦Forecast'!D$17:D$95)/1000 -> 0 | N17: =SUMIF('Input¦Forecast'!$J$17:$J$95,$B17,'Input¦Forecast'!E$17:E$95)/1000 -> 0 | O17: =SUMIF('Input¦Forecast'!$J$17:$J$95,$B17,'Input¦Forecast'!F$17:F$95)/1000 -> 0 | P17: =SUMIF('Input¦Forecast'!$J$17:$J$95,$B17,'Input¦Forecast'!G$17:G$95)/1000 -> 0
B18: Clear SCADA | C18: $m nominal | D18: =SUMIF('Input¦Historic'!$G$17:$G$97,$B18,'Input¦Historic'!B$17:B$97)/1000000 -> 0 | E18: =SUMIF('Input¦Historic'!$G$17:$G$97,$B18,'Input¦Historic'!C$17:C$97)/1000000 -> 0.39804328 | F18: =SUMIF('Input¦Historic'!$G$17:$G$97,$B18,'Input¦Historic'!D$17:D$97)/1000000 -> 0.54875395 | G18: =SUMIF('Input¦Historic'!$G$17:$G$97,$B18,'Input¦Historic'!E$17:E$97)/1000000 -> 0 | H18: =SUMIF('Input¦Forecast'!$J$17:$J$95,$B18,'Input¦Forecast'!B$17:B$95)/1000*'inputs¦other'!H$13 -> 0 | J18: Clear SCADA | K18: $m real 2016/17 | L18: =SUMIF('Input¦Forecast'!$J$17:$J$95,$B18,'Input¦Forecast'!C$17:C$95)/1000 -> 0 | M18: =SUMIF('Input¦Forecast'!$J$17:$J$95,$B18,'Input¦Forecast'!D$17:D$95)/1000 -> 0 | N18: =SUMIF('Input¦Forecast'!$J$17:$J$95,$B18,'Input¦Forecast'!E$17:E$95)/1000 -> 0 | O18: =SUMIF('Input¦Forecast'!$J$17:$J$95,$B18,'Input¦Forecast'!F$17:F$95)/1000 -> 0 | P18: =SUMIF('Input¦Forecast'!$J$17:$J$95,$B18,'Input¦Forecast'!G$17:G$95)/1000 -> 0
B19: RBP Looping | C19: $m nominal | D19: =SUMIF('Input¦Historic'!$G$17:$G$97,$B19,'Input¦Historic'!B$17:B$97)/1000000 -> 2.92318626 | E19: =SUMIF('Input¦Historic'!$G$17:$G$97,$B19,'Input¦Historic'!C$17:C$97)/1000000 -> 2.40302167 | F19: =SUMIF('Input¦Historic'!$G$17:$G$97,$B19,'Input¦Historic'!D$17:D$97)/1000000 -> 0.01857902 | G19: =SUMIF('Input¦Historic'!$G$17:$G$97,$B19,'Input¦Historic'!E$17:E$97)/1000000 -> 0 | H19: =SUMIF('Input¦Forecast'!$J$17:$J$95,$B19,'Input¦Forecast'!B$17:B$95)/1000*'inputs¦other'!H$13 -> 0 | J19: RBP Looping | K19: $m real 2016/17 | L19: =SUMIF('Input¦Forecast'!$J$17:$J$95,$B19,'Input¦Forecast'!C$17:C$95)/1000 -> 0 | M19: =SUMIF('Input¦Forecast'!$J$17:$J$95,$B19,'Input¦Forecast'!D$17:D$95)/1000 -> 0 | N19: =SUMIF('Input¦Forecast'!$J$17:$J$95,$B19,'Input¦Forecast'!E$17:E$95)/1000 -> 0 | O19: =SUMIF('Input¦Forecast'!$J$17:$J$95,$B19,'Input¦Forecast'!F$17:F$95)/1000 -> 0 | P19: =SUMIF('Input¦Forecast'!$J$17:$J$95,$B19,'Input¦Forecast'!G$17:G$95)/1000 -> 0
B20: FC and RTU upgrade | C20: $m nominal | D20: =SUMIF('Input¦Historic'!$G$17:$G$97,$B20,'Input¦Historic'!B$17:B$97)/1000000 -> 0.026836 | E20: =SUMIF('Input¦Historic'!$G$17:$G$97,$B20,'Input¦Historic'!C$17:C$97)/1000000 -> 0.4423934 | F20: =SUMIF('Input¦Historic'!$G$17:$G$97,$B20,'Input¦Historic'!D$17:D$97)/1000000 -> 0.53151581 | G20: =SUMIF('Input¦Historic'!$G$17:$G$97,$B20,'Input¦Historic'!E$17:E$97)/1000000 -> 0.10216829 | H20: =SUMIF('Input¦Forecast'!$J$17:$J$95,$B20,'Input¦Forecast'!B$17:B$95)/1000*'inputs¦other'!H$13 -> 0 | J20: FC and RTU upgrade | K20: $m real 2016/17 | L20: =SUMIF('Input¦Forecast'!$J$17:$J$95,$B20,'Input¦Forecast'!C$17:C$95)/1000 -> 0 | M20: =SUMIF('Input¦Forecast'!$J$17:$J$95,$B20,'Input¦Forecast'!D$17:D$95)/1000 -> 0 | N20: =SUMIF('Input¦Forecast'!$J$17:$J$95,$B20,'Input¦Forecast'!E$17:E$95)/1000 -> 0 | O20: =SUMIF('Input¦Forecast'!$J$17:$J$95,$B20,'Input¦Forecast'!F$17:F$95)/1000 -> 0 | P20: =SUMIF('Input¦Forecast'!$J$17:$J$95,$B20,'Input¦Forecast'!G$17:G$95)/1000 -> 0
B21: Toowoomba Station Upgrade | C21: $m nominal | D21: =SUMIF('Input¦Historic'!$G$17:$G$97,$B21,'Input¦Historic'!B$17:B$97)/1000000 -> 0.05611001 | E21: =SUMIF('Input¦Historic'!$G$17:$G$97,$B21,'Input¦Historic'!C$17:C$97)/1000000 -> 0.40998034 | F21: =SUMIF('Input¦Historic'!$G$17:$G$97,$B21,'Input¦Historic'!D$17:D$97)/1000000 -> 0.83088895 | G21: =SUMIF('Input¦Historic'!$G$17:$G$97,$B21,'Input¦Historic'!E$17:E$97)/1000000 -> 0 | H21: =SUMIF('Input¦Forecast'!$J$17:$J$95,$B21,'Input¦Forecast'!B$17:B$95)/1000*'inputs¦other'!H$13 -> 0 | J21: Toowoomba Station Upgrade | K21: $m real 2016/17 | L21: =SUMIF('Input¦Forecast'!$J$17:$J$95,$B21,'Input¦Forecast'!C$17:C$95)/1000 -> 0 | M21: =SUMIF('Input¦Forecast'!$J$17:$J$95,$B21,'Input¦Forecast'!D$17:D$95)/1000 -> 0 | N21: =SUMIF('Input¦Forecast'!$J$17:$J$95,$B21,'Input¦Forecast'!E$17:E$95)/1000 -> 0 | O21: =SUMIF('Input¦Forecast'!$J$17:$J$95,$B21,'Input¦Forecast'!F$17:F$95)/1000 -> 0 | P21: =SUMIF('Input¦Forecast'!$J$17:$J$95,$B21,'Input¦Forecast'!G$17:G$95)/1000 -> 0
B22: Access Arrangement | C22: $m nominal | D22: =SUMIF('Input¦Historic'!$G$17:$G$97,$B22,'Input¦Historic'!B$17:B$97)/1000000 -> 0.07087535 | E22: =SUMIF('Input¦Historic'!$G$17:$G$97,$B22,'Input¦Historic'!C$17:C$97)/1000000 -> 0 | F22: =SUMIF('Input¦Historic'!$G$17:$G$97,$B22,'Input¦Historic'!D$17:D$97)/1000000 -> 0 | G22: =SUMIF('Input¦Historic'!$G$17:$G$97,$B22,'Input¦Historic'!E$17:E$97)/1000000 -> 0.05800808 | H22: =SUMIF('Input¦Forecast'!$J$17:$J$95,$B22,'Input¦Forecast'!B$17:B$95)/1000*'inputs¦other'!H$13 -> 0.911856697 | J22: Access Arrangement | K22: $m real 2016/17 | L22: =SUMIF('Input¦Forecast'!$J$17:$J$95,$B22,'Input¦Forecast'!C$17:C$95)/1000 -> 0.07250548305 | M22: =SUMIF('Input¦Forecast'!$J$17:$J$95,$B22,'Input¦Forecast'!D$17:D$95)/1000 -> 0 | N22: =SUMIF('Input¦Forecast'!$J$17:$J$95,$B22,'Input¦Forecast'!E$17:E$95)/1000 -> 0 | O22: =SUMIF('Input¦Forecast'!$J$17:$J$95,$B22,'Input¦Forecast'!F$17:F$95)/1000 -> 0.05934226584 | P22: =SUMIF('Input¦Forecast'!$J$17:$J$95,$B22,'Input¦Forecast'!G$17:G$95)/1000 -> 0.911856697
B23: Stay in business | C23: $m nominal | D23: =SUMIF('Input¦Historic'!$G$17:$G$100,"SIB",'Input¦Historic'!B$17:B$100)/1000000 -> 1.845689717 | E23: =SUMIF('Input¦Historic'!$G$17:$G$100,"SIB",'Input¦Historic'!C$17:C$100)/1000000 -> 2.18657785 | F23: =SUMIF('Input¦Historic'!$G$17:$G$100,"SIB",'Input¦Historic'!D$17:D$100)/1000000 -> 3.204339481 | G23: =SUMIF('Input¦Historic'!$G$17:$G$100,"SIB",'Input¦Historic'!E$17:E$100)/1000000 -> 3.68953432 | H23: =SUMIF('Input¦Forecast'!$J$17:$J$95,$B23,'Input¦Forecast'!B$17:B$95)/1000*'inputs¦other'!H$13 -> 2.562480117 | J23: Stay in business | K23: $m real 2016/17 | L23: =SUMIF('Input¦Forecast'!$J$17:$J$95,$B23,'Input¦Forecast'!C$17:C$95)/1000 -> 2.983290632 | M23: =SUMIF('Input¦Forecast'!$J$17:$J$95,$B23,'Input¦Forecast'!D$17:D$95)/1000 -> 1.195275843 | N23: =SUMIF('Input¦Forecast'!$J$17:$J$95,$B23,'Input¦Forecast'!E$17:E$95)/1000 -> 0.629725345 | O23: =SUMIF('Input¦Forecast'!$J$17:$J$95,$B23,'Input¦Forecast'!F$17:F$95)/1000 -> 0.6113077036 | P23: =SUMIF('Input¦Forecast'!$J$17:$J$95,$B23,'Input¦Forecast'!G$17:G$95)/1000 -> 0.2983229825
B24: Urban Risk Reduction | C24: $m nominal | D24: 0 | E24: 0 | F24: 0 | G24: 0 | H24: =SUMIF('Input¦Forecast'!$J$17:$J$95,$B24,'Input¦Forecast'!B$17:B$95)/1000*'inputs¦other'!H$13 -> 8.184 | J24: Urban Risk Reduction | K24: $m real 2016/17 | L24: =SUMIF('Input¦Forecast'!$J$17:$J$95,$B24,'Input¦Forecast'!C$17:C$95)/1000 -> 1.68795 | M24: =SUMIF('Input¦Forecast'!$J$17:$J$95,$B24,'Input¦Forecast'!D$17:D$95)/1000 -> 0.3069 | N24: =SUMIF('Input¦Forecast'!$J$17:$J$95,$B24,'Input¦Forecast'!E$17:E$95)/1000 -> 0.3069 | O24: =SUMIF('Input¦Forecast'!$J$17:$J$95,$B24,'Input¦Forecast'!F$17:F$95)/1000 -> 0.3069 | P24: =SUMIF('Input¦Forecast'!$J$17:$J$95,$B24,'Input¦Forecast'!G$17:G$95)/1000 -> 0.3069
B25: Pipeline Integrity Management | C25: $m nominal | D25: =SUMIF('Input¦Historic'!$G$17:$G$97,$B25,'Input¦Historic'!B$17:B$97)/1000000 -> 0.65395347 | E25: =SUMIF('Input¦Historic'!$G$17:$G$97,$B25,'Input¦Historic'!C$17:C$97)/1000000 -> 2.2802438 | F25: =SUMIF('Input¦Historic'!$G$17:$G$97,$B25,'Input¦Historic'!D$17:D$97)/1000000 -> 3.50841376 | G25: =SUMIF('Input¦Historic'!$G$17:$G$97,$B25,'Input¦Historic'!E$17:E$97)/1000000 -> 5.40870331 | H25: =SUMIF('Input¦Forecast'!$J$17:$J$95,$B25,'Input¦Forecast'!B$17:B$95)/1000*'inputs¦other'!H$13 -> 6.254622 | J25: Pipeline Integrity Management | K25: $m real 2016/17 | L25: =SUMIF('Input¦Forecast'!$J$17:$J$95,$B25,'Input¦Forecast'!C$17:C$95)/1000 -> 8.6955 | M25: =SUMIF('Input¦Forecast'!$J$17:$J$95,$B25,'Input¦Forecast'!D$17:D$95)/1000 -> 10.248414 | N25: =SUMIF('Input¦Forecast'!$J$17:$J$95,$B25,'Input¦Forecast'!E$17:E$95)/1000 -> 5.455659 | O25: =SUMIF('Input¦Forecast'!$J$17:$J$95,$B25,'Input¦Forecast'!F$17:F$95)/1000 -> 6.811134 | P25: =SUMIF('Input¦Forecast'!$J$17:$J$95,$B25,'Input¦Forecast'!G$17:G$95)/1000 -> 6.377382
B26: Toowoomba Crossing | C26: $m nominal | D26: 0 | E26: 0 | F26: 0 | G26: 0 | H26: =SUMIF('Input¦Forecast'!$J$17:$J$95,$B26,'Input¦Forecast'!B$17:B$95)/1000*'inputs¦other'!H$13 -> 0.3069 | J26: Toowoomba Crossing | K26: $m real 2016/17 | L26: =SUMIF('Input¦Forecast'!$J$17:$J$95,$B26,'Input¦Forecast'!C$17:C$95)/1000 -> 11.91795 | M26: =SUMIF('Input¦Forecast'!$J$17:$J$95,$B26,'Input¦Forecast'!D$17:D$95)/1000 -> 3.5805 | N26: =SUMIF('Input¦Forecast'!$J$17:$J$95,$B26,'Input¦Forecast'!E$17:E$95)/1000 -> 0 | O26: =SUMIF('Input¦Forecast'!$J$17:$J$95,$B26,'Input¦Forecast'!F$17:F$95)/1000 -> 0 | P26: =SUMIF('Input¦Forecast'!$J$17:$J$95,$B26,'Input¦Forecast'!G$17:G$95)/1000 -> 0
B27: Applications and Renewals | C27: $m nominal | D27: 0 | E27: 0 | F27: 0 | G27: 0 | H27: =SUMIF('Input¦Forecast'!$J$17:$J$95,$B27,'Input¦Forecast'!B$17:B$95)/1000*'inputs¦other'!H$13 -> 0 | J27: Applications and Renewals | K27: $m real 2016/17 | L27: =SUMIF('Input¦Forecast'!$J$17:$J$95,$B27,'Input¦Forecast'!C$17:C$95)/1000 -> 0.425728837 | M27: =SUMIF('Input¦Forecast'!$J$17:$J$95,$B27,'Input¦Forecast'!D$17:D$95)/1000 -> 0.5318525471 | N27: =SUMIF('Input¦Forecast'!$J$17:$J$95,$B27,'Input¦Forecast'!E$17:E$95)/1000 -> 0.425728837 | O27: =SUMIF('Input¦Forecast'!$J$17:$J$95,$B27,'Input¦Forecast'!F$17:F$95)/1000 -> 0.5318525471 | P27: =SUMIF('Input¦Forecast'!$J$17:$J$95,$B27,'Input¦Forecast'!G$17:G$95)/1000 -> 0.425728837
B28: Infrastructure Renewals | C28: $m nominal | D28: 0 | E28: 0 | F28: 0 | G28: 0 | H28: =SUMIF('Input¦Forecast'!$J$17:$J$95,$B28,'Input¦Forecast'!B$17:B$95)/1000*'inputs¦other'!H$13 -> 0 | J28: Infrastructure Renewals | K28: $m real 2016/17 | L28: =SUMIF('Input¦Forecast'!$J$17:$J$95,$B28,'Input¦Forecast'!C$17:C$95)/1000 -> 0.1388246208 | M28: =SUMIF('Input¦Forecast'!$J$17:$J$95,$B28,'Input¦Forecast'!D$17:D$95)/1000 -> 0.04627487359 | N28: =SUMIF('Input¦Forecast'!$J$17:$J$95,$B28,'Input¦Forecast'!E$17:E$95)/1000 -> 0.04627487359 | O28: =SUMIF('Input¦Forecast'!$J$17:$J$95,$B28,'Input¦Forecast'!F$17:F$95)/1000 -> 0.04627487359 | P28: =SUMIF('Input¦Forecast'!$J$17:$J$95,$B28,'Input¦Forecast'!G$17:G$95)/1000 -> 0
B29: Total | C29: $m nominal | D29: =SUM(D15:D28) -> 5.878085067 | E29: =SUM(E15:E28) -> 10.52095472 | F29: =SUM(F15:F28) -> 22.99217637 | G29: =SUM(G15:G28) -> 9.87243158 | H29: =SUM(H15:H28) -> 18.21985881 | J29: Total | L29: =SUM(L15:L28) -> 25.92174957 | M29: =SUM(M15:M28) -> 15.90921726 | N29: =SUM(N15:N28) -> 6.864288056 | O29: =SUM(O15:O28) -> 8.36681139 | P29: =SUM(P15:P28) -> 8.320190516
B31: Total Inputs | D31: ='Input¦Historic'!B101/1000000 -> 5.878085067 | E31: ='Input¦Historic'!C101/1000000 -> 10.52095472 | F31: ='Input¦Historic'!D101/1000000 -> 22.99217637 | G31: ='Input¦Historic'!E101/1000000 -> 9.87243158 | H31: ='Input¦Forecast'!B99/1000*'inputs¦other'!H$13 -> 18.21985881 | J31: Total Inputs | L31: ='Input¦Forecast'!C99/1000 -> 25.92174957 | M31: ='Input¦Forecast'!D99/1000 -> 15.90921726 | N31: ='Input¦Forecast'!E99/1000 -> 6.864288056 | O31: ='Input¦Forecast'!F99/1000 -> 8.36681139 | P31: ='Input¦Forecast'!G99/1000 -> 8.320190516
B32: Difference | D32: =D29-D31 -> 0 | E32: =E29-E31 -> 0 | F32: 0 | G32: 0 | H32: 0 | J32: Difference | L32: =L29-L31 -> 0 | M32: 0 | N32: 0 | O32: 0 | P32: 0
B34: Asset Class | D34: =D14 -> 2013 | E34: =E14 -> 2014 | F34: =F14 -> 2015 | G34: =G14 -> 2016 | H34: =H14 -> 2017 | J34: Asset Class | L34: =L14 -> 2018 | M34: =M14 -> 2019 | N34: =N14 -> 2020 | O34: =O14 -> 2021 | P34: =P14 -> 2022
B35: Original Pipeline | C35: =C29 -> $m nominal | D35: =SUMPRODUCT('Input¦Historic'!$I$17:$I$97,'Input¦Historic'!B$17:B$97)/1000000 -> 0.48264718 | E35: =SUMPRODUCT('Input¦Historic'!$I$17:$I$97,'Input¦Historic'!C$17:C$97)/1000000 -> 3.450498443 | F35: =SUMPRODUCT('Input¦Historic'!$I$17:$I$97,'Input¦Historic'!D$17:D$97)/1000000 -> 6.536361555 | G35: =SUMPRODUCT('Input¦Historic'!$I$17:$I$97,'Input¦Historic'!E$17:E$97)/1000000 -> 5.66083698 | H35: =SUMPRODUCT('Input¦Forecast'!B$17:B$95,'Input¦Forecast'!$K$17:$K$95)/1000*'inputs¦other'!H13 -> 14.0810835 | J35: Original Pipeline | K35: =K28 -> $m real 2016/17 | L35: =SUMPRODUCT('Input¦Forecast'!C$17:C$95,'Input¦Forecast'!$K$17:$K$95)/1000 -> 15.8171145 | M35: =SUMPRODUCT('Input¦Forecast'!D$17:D$95,'Input¦Forecast'!$K$17:$K$95)/1000 -> 11.589567 | N35: =SUMPRODUCT('Input¦Forecast'!E$17:E$95,'Input¦Forecast'!$K$17:$K$95)/1000 -> 4.9017045 | O35: =SUMPRODUCT('Input¦Forecast'!F$17:F$95,'Input¦Forecast'!$K$17:$K$95)/1000 -> 4.674087 | P35: =SUMPRODUCT('Input¦Forecast'!G$17:G$95,'Input¦Forecast'!$K$17:$K$95)/1000 -> 6.2326275
B36: Pipelines | C36: =C35 -> $m nominal | D36: =SUMPRODUCT('Input¦Historic'!$J$17:$J$97,'Input¦Historic'!B$17:B$97)/1000000 -> 2.84137731 | E36: =SUMPRODUCT('Input¦Historic'!$J$17:$J$97,'Input¦Historic'!C$17:C$97)/1000000 -> 3.340928663 | F36: =SUMPRODUCT('Input¦Historic'!$J$17:$J$97,'Input¦Historic'!D$17:D$97)/1000000 -> 10.40592053 | G36: =SUMPRODUCT('Input¦Historic'!$J$17:$J$97,'Input¦Historic'!E$17:E$97)/1000000 -> 0.61401758 | H36: =SUMPRODUCT('Input¦Forecast'!B$17:B$95,'Input¦Forecast'!$L$17:$L$95)/1000*'inputs¦other'!H13 -> 0.892804465 | J36: Pipelines | K36: =K35 -> $m real 2016/17 | L36: =SUMPRODUCT('Input¦Forecast'!C$17:C$95,'Input¦Forecast'!$L$17:$L$95)/1000 -> 7.0264755 | M36: =SUMPRODUCT('Input¦Forecast'!D$17:D$95,'Input¦Forecast'!$L$17:$L$95)/1000 -> 2.546247 | N36: =SUMPRODUCT('Input¦Forecast'!E$17:E$95,'Input¦Forecast'!$L$17:$L$95)/1000 -> 0.8608545 | O36: =SUMPRODUCT('Input¦Forecast'!F$17:F$95,'Input¦Forecast'!$L$17:$L$95)/1000 -> 2.443947 | P36: =SUMPRODUCT('Input¦Forecast'!G$17:G$95,'Input¦Forecast'!$L$17:$L$95)/1000 -> 0.4516545
B37: Compressors | C37: =C36 -> $m nominal | D37: =SUMPRODUCT('Input¦Historic'!$K$17:$K$97,'Input¦Historic'!B$17:B$97)/1000000 -> 0.1432417 | E37: =SUMPRODUCT('Input¦Historic'!$K$17:$K$97,'Input¦Historic'!C$17:C$97)/1000000 -> 0.02352989 | F37: =SUMPRODUCT('Input¦Historic'!$K$17:$K$97,'Input¦Historic'!D$17:D$97)/1000000 -> 1e-08 | G37: =SUMPRODUCT('Input¦Historic'!$K$17:$K$97,'Input¦Historic'!E$17:E$97)/1000000 -> 0 | H37: =SUMPRODUCT('Input¦Forecast'!B$17:B$95,'Input¦Forecast'!$M$17:$M$95)/1000*'inputs¦other'!H13 -> 0 | J37: Compressors | K37: =K36 -> $m real 2016/17 | L37: =SUMPRODUCT('Input¦Forecast'!C$17:C$95,'Input¦Forecast'!$M$17:$M$95)/1000 -> 0.1023 | M37: =SUMPRODUCT('Input¦Forecast'!D$17:D$95,'Input¦Forecast'!$M$17:$M$95)/1000 -> 0.1023 | N37: =SUMPRODUCT('Input¦Forecast'!E$17:E$95,'Input¦Forecast'!$M$17:$M$95)/1000 -> 0 | O37: =SUMPRODUCT('Input¦Forecast'!F$17:F$95,'Input¦Forecast'!$M$17:$M$95)/1000 -> 0 | P37: =SUMPRODUCT('Input¦Forecast'!G$17:G$95,'Input¦Forecast'!$M$17:$M$95)/1000 -> 0
B38: Regulators and meters | C38: $m nominal | D38: =SUMPRODUCT('Input¦Historic'!$L$17:$L$97,'Input¦Historic'!B$17:B$97)/1000000 -> 0 | E38: =SUMPRODUCT('Input¦Historic'!$L$17:$L$97,'Input¦Historic'!C$17:C$97)/1000000 -> 0 | F38: =SUMPRODUCT('Input¦Historic'!$L$17:$L$97,'Input¦Historic'!D$17:D$97)/1000000 -> 0 | G38: =SUMPRODUCT('Input¦Historic'!$L$17:$L$97,'Input¦Historic'!E$17:E$97)/1000000 -> 0 | H38: =SUMPRODUCT('Input¦Forecast'!B$17:B$95,'Input¦Forecast'!$N$17:$N$95)/1000*'inputs¦other'!H13 -> 0 | J38: Regulators and meters | K38: $m real 2016/17 | L38: =SUMPRODUCT('Input¦Forecast'!C$17:C$95,'Input¦Forecast'!$N$17:$N$95)/1000 -> 0.2614591491 | M38: =SUMPRODUCT('Input¦Forecast'!D$17:D$95,'Input¦Forecast'!$N$17:$N$95)/1000 -> 0 | N38: =SUMPRODUCT('Input¦Forecast'!E$17:E$95,'Input¦Forecast'!$N$17:$N$95)/1000 -> 0.08184 | O38: =SUMPRODUCT('Input¦Forecast'!F$17:F$95,'Input¦Forecast'!$N$17:$N$95)/1000 -> 0 | P38: =SUMPRODUCT('Input¦Forecast'!G$17:G$95,'Input¦Forecast'!$N$17:$N$95)/1000 -> 0
B39: Easements | C39: $m nominal | D39: =SUMPRODUCT('Input¦Historic'!$M$17:$M$97,'Input¦Historic'!B$17:B$97)/1000000 -> 0.03221123 | E39: =SUMPRODUCT('Input¦Historic'!$M$17:$M$97,'Input¦Historic'!C$17:C$97)/1000000 -> 0.00974572 | F39: =SUMPRODUCT('Input¦Historic'!$M$17:$M$97,'Input¦Historic'!D$17:D$97)/1000000 -> 0.000612 | G39: =SUMPRODUCT('Input¦Historic'!$M$17:$M$97,'Input¦Historic'!E$17:E$97)/1000000 -> 0.07492814 | H39: =SUMPRODUCT('Input¦Forecast'!B$17:B$95,'Input¦Forecast'!$O$17:$O$95)/1000*'inputs¦other'!H13 -> 0 | J39: Easements | K39: $m real 2016/17 | L39: =SUMPRODUCT('Input¦Forecast'!C$17:C$95,'Input¦Forecast'!$O$17:$O$95)/1000 -> 0 | M39: =SUMPRODUCT('Input¦Forecast'!D$17:D$95,'Input¦Forecast'!$O$17:$O$95)/1000 -> 0 | N39: =SUMPRODUCT('Input¦Forecast'!E$17:E$95,'Input¦Forecast'!$O$17:$O$95)/1000 -> 0 | O39: =SUMPRODUCT('Input¦Forecast'!F$17:F$95,'Input¦Forecast'!$O$17:$O$95)/1000 -> 0 | P39: =SUMPRODUCT('Input¦Forecast'!G$17:G$95,'Input¦Forecast'!$O$17:$O$95)/1000 -> 0
B40: Communications | C40: $m nominal | D40: =SUMPRODUCT('Input¦Historic'!$N$17:$N$97,'Input¦Historic'!B$17:B$97)/1000000 -> 0 | E40: =SUMPRODUCT('Input¦Historic'!$N$17:$N$97,'Input¦Historic'!C$17:C$97)/1000000 -> 0 | F40: =SUMPRODUCT('Input¦Historic'!$N$17:$N$97,'Input¦Historic'!D$17:D$97)/1000000 -> 0 | G40: =SUMPRODUCT('Input¦Historic'!$N$17:$N$97,'Input¦Historic'!E$17:E$97)/1000000 -> 0 | H40: =SUMPRODUCT('Input¦Forecast'!B$17:B$95,'Input¦Forecast'!$P$17:$P$95)/1000*'inputs¦other'!H13 -> 0 | J40: Communications | K40: $m real 2016/17 | L40: =SUMPRODUCT('Input¦Forecast'!C$17:C$95,'Input¦Forecast'!$P$17:$P$95)/1000 -> 0 | M40: =SUMPRODUCT('Input¦Forecast'!D$17:D$95,'Input¦Forecast'!$P$17:$P$95)/1000 -> 0 | N40: =SUMPRODUCT('Input¦Forecast'!E$17:E$95,'Input¦Forecast'!$P$17:$P$95)/1000 -> 0 | O40: =SUMPRODUCT('Input¦Forecast'!F$17:F$95,'Input¦Forecast'!$P$17:$P$95)/1000 -> 0 | P40: =SUMPRODUCT('Input¦Forecast'!G$17:G$95,'Input¦Forecast'!$P$17:$P$95)/1000 -> 0
B41: Other | C41: $m nominal | D41: =SUMPRODUCT('Input¦Historic'!$O$17:$O$97,'Input¦Historic'!B$17:B$97)/1000000 -> 0 | E41: =SUMPRODUCT('Input¦Historic'!$O$17:$O$97,'Input¦Historic'!C$17:C$97)/1000000 -> 0 | F41: =SUMPRODUCT('Input¦Historic'!$O$17:$O$97,'Input¦Historic'!D$17:D$97)/1000000 -> 0 | G41: =SUMPRODUCT('Input¦Historic'!$O$17:$O$97,'Input¦Historic'!E$17:E$97)/1000000 -> 0 | H41: =SUMPRODUCT('Input¦Forecast'!B$17:B$95,'Input¦Forecast'!$Q$17:$Q$95)/1000*'inputs¦other'!H13 -> 0 | J41: Other | K41: $m real 2016/17 | L41: =SUMPRODUCT('Input¦Forecast'!C$17:C$95,'Input¦Forecast'!$Q$17:$Q$95)/1000 -> 0 | M41: =SUMPRODUCT('Input¦Forecast'!D$17:D$95,'Input¦Forecast'!$Q$17:$Q$95)/1000 -> 0 | N41: =SUMPRODUCT('Input¦Forecast'!E$17:E$95,'Input¦Forecast'!$Q$17:$Q$95)/1000 -> 0 | O41: =SUMPRODUCT('Input¦Forecast'!F$17:F$95,'Input¦Forecast'!$Q$17:$Q$95)/1000 -> 0 | P41: =SUMPRODUCT('Input¦Forecast'!G$17:G$95,'Input¦Forecast'!$Q$17:$Q$95)/1000 -> 0
B42: Capitalised AA costs | C42: $m nominal | D42: =SUMPRODUCT('Input¦Historic'!$P$17:$P$97,'Input¦Historic'!B$17:B$97)/1000000 -> 0.07087535 | E42: =SUMPRODUCT('Input¦Historic'!$P$17:$P$97,'Input¦Historic'!C$17:C$97)/1000000 -> 0 | F42: =SUMPRODUCT('Input¦Historic'!$P$17:$P$97,'Input¦Historic'!D$17:D$97)/1000000 -> 0 | G42: =SUMPRODUCT('Input¦Historic'!$P$17:$P$97,'Input¦Historic'!E$17:E$97)/1000000 -> 0.05800808 | H42: =SUMPRODUCT('Input¦Forecast'!B$17:B$95,'Input¦Forecast'!$R$17:$R$95)/1000*'inputs¦other'!H13 -> 0.911856697 | J42: Capitalised AA costs | K42: $m real 2016/17 | L42: =SUMPRODUCT('Input¦Forecast'!C$17:C$95,'Input¦Forecast'!$R$17:$R$95)/1000 -> 0.07250548305 | M42: =SUMPRODUCT('Input¦Forecast'!D$17:D$95,'Input¦Forecast'!$R$17:$R$95)/1000 -> 0 | N42: =SUMPRODUCT('Input¦Forecast'!E$17:E$95,'Input¦Forecast'!$R$17:$R$95)/1000 -> 0 | O42: =SUMPRODUCT('Input¦Forecast'!F$17:F$95,'Input¦Forecast'!$R$17:$R$95)/1000 -> 0.05934226584 | P42: =SUMPRODUCT('Input¦Forecast'!G$17:G$95,'Input¦Forecast'!$R$17:$R$95)/1000 -> 0.911856697
B43: Group IT | C43: $m nominal | D43: =SUMPRODUCT('Input¦Historic'!$Q$17:$Q$97,'Input¦Historic'!B$17:B$97)/1000000 -> 1.292236067 | E43: =SUMPRODUCT('Input¦Historic'!$Q$17:$Q$97,'Input¦Historic'!C$17:C$97)/1000000 -> 1.14677746 | F43: =SUMPRODUCT('Input¦Historic'!$Q$17:$Q$97,'Input¦Historic'!D$17:D$97)/1000000 -> 2.284029771 | G43: =SUMPRODUCT('Input¦Historic'!$Q$17:$Q$97,'Input¦Historic'!E$17:E$97)/1000000 -> 1.57191078 | H43: =SUMPRODUCT('Input¦Forecast'!B$17:B$95,'Input¦Forecast'!$S$17:$S$95)/1000*'inputs¦other'!H13 -> 1.410389656 | J43: Group IT | K43: $m real 2016/17 | L43: =SUMPRODUCT('Input¦Forecast'!C$17:C$95,'Input¦Forecast'!$S$17:$S$95)/1000 -> 1.614271213 | M43: =SUMPRODUCT('Input¦Forecast'!D$17:D$95,'Input¦Forecast'!$S$17:$S$95)/1000 -> 0.5901852813 | N43: =SUMPRODUCT('Input¦Forecast'!E$17:E$95,'Input¦Forecast'!$S$17:$S$95)/1000 -> 0.4913910731 | O43: =SUMPRODUCT('Input¦Forecast'!F$17:F$95,'Input¦Forecast'!$S$17:$S$95)/1000 -> 0.6353621418 | P43: =SUMPRODUCT('Input¦Forecast'!G$17:G$95,'Input¦Forecast'!$S$17:$S$95)/1000 -> 0.425728837
B44: SIB Capex | C44: $m nominal | D44: =SUMPRODUCT('Input¦Historic'!$R$17:$R$97,'Input¦Historic'!B$17:B$97)/1000000 -> 1.01549623 | E44: =SUMPRODUCT('Input¦Historic'!$R$17:$R$97,'Input¦Historic'!C$17:C$97)/1000000 -> 2.54947454 | F44: =SUMPRODUCT('Input¦Historic'!$R$17:$R$97,'Input¦Historic'!D$17:D$97)/1000000 -> 3.7652525 | G44: =SUMPRODUCT('Input¦Historic'!$R$17:$R$97,'Input¦Historic'!E$17:E$97)/1000000 -> 1.89273002 | H44: =SUMPRODUCT('Input¦Forecast'!B$17:B$95,'Input¦Forecast'!$T$17:$T$95)/1000*'inputs¦other'!H13 -> 0.9237244957 | J44: SIB Capex | K44: $m real 2016/17 | L44: =SUMPRODUCT('Input¦Forecast'!C$17:C$95,'Input¦Forecast'!$T$17:$T$95)/1000 -> 1.027623728 | M44: =SUMPRODUCT('Input¦Forecast'!D$17:D$95,'Input¦Forecast'!$T$17:$T$95)/1000 -> 1.080917983 | N44: =SUMPRODUCT('Input¦Forecast'!E$17:E$95,'Input¦Forecast'!$T$17:$T$95)/1000 -> 0.5284979825 | O44: =SUMPRODUCT('Input¦Forecast'!F$17:F$95,'Input¦Forecast'!$T$17:$T$95)/1000 -> 0.5540729825 | P44: =SUMPRODUCT('Input¦Forecast'!G$17:G$95,'Input¦Forecast'!$T$17:$T$95)/1000 -> 0.2983229825
B45: PMA | C45: $m nominal | D45: =SUMPRODUCT('Input¦Historic'!$S$17:$S$97,'Input¦Historic'!B$17:B$97)/1000000 -> 0 | E45: =SUMPRODUCT('Input¦Historic'!$S$17:$S$97,'Input¦Historic'!C$17:C$97)/1000000 -> 0 | F45: =SUMPRODUCT('Input¦Historic'!$S$17:$S$97,'Input¦Historic'!D$17:D$97)/1000000 -> 0 | G45: =SUMPRODUCT('Input¦Historic'!$S$17:$S$97,'Input¦Historic'!E$17:E$97)/1000000 -> 0 | H45: =SUMPRODUCT('Input¦Forecast'!B$17:B$95,'Input¦Forecast'!$U$17:$U$95)/1000*'inputs¦other'!H13 -> 0 | J45: PMA | K45: $m real 2016/17 | L45: =SUMPRODUCT('Input¦Forecast'!C$17:C$95,'Input¦Forecast'!$U$17:$U$95)/1000 -> 0 | M45: =SUMPRODUCT('Input¦Forecast'!D$17:D$95,'Input¦Forecast'!$U$17:$U$95)/1000 -> 0 | N45: =SUMPRODUCT('Input¦Forecast'!E$17:E$95,'Input¦Forecast'!$U$17:$U$95)/1000 -> 0 | O45: =SUMPRODUCT('Input¦Forecast'!F$17:F$95,'Input¦Forecast'!$U$17:$U$95)/1000 -> 0 | P45: =SUMPRODUCT('Input¦Forecast'!G$17:G$95,'Input¦Forecast'!$U$17:$U$95)/1000 -> 0
B46: Total | C46: $m nominal | D46: =SUM(D35:D45) -> 5.878085067 | E46: =SUM(E35:E45) -> 10.52095472 | F46: 22.99217637 | G46: 9.87243158 | H46: 18.21985881 | J46: Total | K46: $m real 2016/17 | L46: =SUM(L35:L45) -> 25.92174957 | M46: 15.90921726 | N46: 6.864288056 | O46: 8.36681139 | P46: 8.320190516
B48: Check | D48: =D46=D29 -> TRUE | E48: TRUE | F48: TRUE | G48: TRUE | H48: =H46=H29 -> TRUE | J48: Check | L48: =L46-L31 -> 0 | M48: =M46-M31 -> 0 | N48: =N46-N31 -> 0 | O48: =O46-O31 -> 0 | P48: =P46-P31 -> 0
B50: Driver | D50: =D34 -> 2013 | E50: =E34 -> 2014 | F50: 2015 | G50: 2016 | H50: 2017 | J50: Driver | L50: =L34 -> 2018 | M50: 2019 | N50: 2020 | O50: 2021 | P50: 2022
B51: Expansion/Extension | C51: =C46 -> $m nominal | D51: =SUMIF('Input¦Historic'!$H$17:$H$97,$B51,'Input¦Historic'!B$17:B$97)/1000000 -> 2.92318626 | E51: =SUMIF('Input¦Historic'!$H$17:$H$97,$B51,'Input¦Historic'!C$17:C$97)/1000000 -> 2.40302167 | F51: =SUMIF('Input¦Historic'!$H$17:$H$97,$B51,'Input¦Historic'!D$17:D$97)/1000000 -> 0.01857902 | G51: =SUMIF('Input¦Historic'!$H$17:$H$97,$B51,'Input¦Historic'!E$17:E$97)/1000000 -> 0 | H51: =SUMIF('Input¦Forecast'!$I$17:$I$95,$B51,'Input¦Forecast'!B$17:B$95)/1000*'inputs¦other'!H$13 -> 0 | J51: Expansion/Extension | K51: =K46 -> $m real 2016/17 | L51: =L19 -> 0 | M51: =M19 -> 0 | N51: =N19 -> 0 | O51: =O19 -> 0 | P51: =P19 -> 0
B52: Replacement | C52: =C51 -> $m nominal | D52: =SUMIF('Input¦Historic'!$H$17:$H$97,$B52,'Input¦Historic'!B$17:B$97)/1000000 -> 0.65139705 | E52: =SUMIF('Input¦Historic'!$H$17:$H$97,$B52,'Input¦Historic'!C$17:C$97)/1000000 -> 2.12985466 | F52: =SUMIF('Input¦Historic'!$H$17:$H$97,$B52,'Input¦Historic'!D$17:D$97)/1000000 -> 3.88199981 | G52: =SUMIF('Input¦Historic'!$H$17:$H$97,$B52,'Input¦Historic'!E$17:E$97)/1000000 -> 4.43062598 | H52: =SUMIF('Input¦Forecast'!$I$17:$I$95,$B52,'Input¦Forecast'!B$17:B$95)/1000*'inputs¦other'!H$13 -> 6.254622 | J52: Replacement | K52: =K51 -> $m real 2016/17 | L52: =L25 -> 8.6955 | M52: =M25 -> 10.248414 | N52: =N25 -> 5.455659 | O52: =O25 -> 6.811134 | P52: =P25 -> 6.377382
B53: Stay in business | C53: =C52 -> $m nominal | D53: =SUMIF('Input¦Historic'!$H$17:$H$97,$B53,'Input¦Historic'!B$17:B$97)/1000000 -> 2.303501757 | E53: =SUMIF('Input¦Historic'!$H$17:$H$97,$B53,'Input¦Historic'!C$17:C$97)/1000000 -> 5.988078387 | F53: =SUMIF('Input¦Historic'!$H$17:$H$97,$B53,'Input¦Historic'!D$17:D$97)/1000000 -> 19.09159754 | G53: =SUMIF('Input¦Historic'!$H$17:$H$97,$B53,'Input¦Historic'!E$17:E$97)/1000000 -> 5.4418056 | H53: =SUMIF('Input¦Forecast'!$I$17:$I$95,$B53,'Input¦Forecast'!B$17:B$95)/1000*'inputs¦other'!H$13 -> 11.96523681 | J53: Stay in business | K53: =K52 -> $m real 2016/17 | L53: =L46-SUM(L51:L52) -> 17.22624957 | M53: 5.660803264 | N53: 1.408629056 | O53: 1.55567739 | P53: 1.942808516
B54: Total | C54: =C53 -> $m nominal | D54: =SUM(D51:D53) -> 5.878085067 | E54: =SUM(E51:E53) -> 10.52095472 | F54: 22.99217637 | G54: 9.87243158 | H54: =SUM(H51:H53) -> 18.21985881 | J54: Total | K54: =K53 -> $m real 2016/17 | L54: =SUM(L51:L53) -> 25.92174957 | M54: 15.90921726 | N54: 6.864288056 | O54: 8.36681139 | P54: 8.320190516
B56: Check | D56: =D54=D46 -> TRUE | E56: TRUE | F56: TRUE | G56: TRUE | H56: TRUE | J56: Check | L56: =L54-L46 -> 0 | M56: 0 | N56: 0 | O56: 0 | P56: 0
B58: AER Forecast by Driver | D58: =D50 -> 2013 | E58: =E50 -> 2014 | F58: 2015 | G58: 2016 | H58: 2017
B59: =B51 -> Expansion/Extension | C59: =C51 -> $m nominal | D59: 0 | E59: 0 | F59: 0 | G59: 0 | H59: 0
B60: =B52 -> Replacement | C60: =C52 -> $m nominal | D60: 0 | E60: 0 | F60: 0 | G60: 0 | H60: 0
B61: =B53 -> Stay in business | C61: $m nominal | D61: ='inputs¦other'!D35 -> 4.056679683 | E61: ='inputs¦other'!E35 -> 4.644886689 | F61: ='inputs¦other'!F35 -> 3.569246997 | G61: ='inputs¦other'!G35 -> 3.848193599 | H61: ='inputs¦other'!H35 -> 3.282885584
B62: =B54 -> Total | C62: $m nominal | D62: =SUM(D59:D61) -> 4.056679683 | E62: =SUM(E59:E61) -> 4.644886689 | F62: =SUM(F59:F61) -> 3.569246997 | G62: =SUM(G59:G61) -> 3.848193599 | H62: =SUM(H59:H61) -> 3.282885584
B64: Difference | D64: =D58 -> 2013 | E64: =E58 -> 2014 | F64: 2015 | G64: 2016 | H64: 2017
B65: =B59 -> Expansion/Extension | C65: =C59 -> $m nominal | D65: =D51-D59 -> 2.92318626 | E65: =E51-E59 -> 2.40302167 | F65: 0.01857902 | G65: 0 | H65: 0
B66: =B60 -> Replacement | C66: $m nominal | D66: =D52-D60 -> 0.65139705 | E66: 2.12985466 | F66: 3.88199981 | G66: 4.43062598 | H66: 6.254622
B67: Stay in business | C67: $m nominal | D67: -1.753177927 | E67: 1.343191698 | F67: 15.52235054 | G67: 1.593612001 | H67: 8.68235123
B68: Total | C68: $m nominal | D68: =SUM(D65:D67) -> 1.821405383 | E68: =SUM(E65:E67) -> 5.876068028 | F68: 19.42292937 | G68: 6.024237981 | H68: 14.93697323

Sheet AER Final Decision
B10: =RIGHT(CELL("filename",B1),LEN(CELL("filename",B1))-FIND("]",CELL("filename",B1))) -> AER Final Decision
B13: Capex by project ($m nominal) | J13: Capex by project ($m real 2016/17)
B14: Project name | D14: 2013 | E14: 2014 | F14: 2015 | G14: 2016 | H14: 2017 | J14: Project name | L14: 2018 | M14: 2019 | N14: 2020 | O14: 2021 | P14: 2022
B15: Aquarium Passage | C15: $m nominal | D15: =SUMIF('Input¦Historic'!$G$17:$G$97,$B15,'Input¦Historic'!B$17:B$97)/1000000 -> 0.20340742 | E15: =SUMIF('Input¦Historic'!$G$17:$G$97,$B15,'Input¦Historic'!C$17:C$97)/1000000 -> 0.60615213 | F15: =SUMIF('Input¦Historic'!$G$17:$G$97,$B15,'Input¦Historic'!D$17:D$97)/1000000 -> 1.12019813 | G15: =SUMIF('Input¦Historic'!$G$17:$G$97,$B15,'Input¦Historic'!E$17:E$97)/1000000 -> 0 | H15: =SUMIF('Input¦Forecast'!$J$17:$J$95,$B15,'Input¦Forecast'!B$17:B$95)/1000*'inputs¦other'!H$13 -> 0 | J15: =B15 -> Aquarium Passage | K15: $m real 2016/17 | L15: =SUMIF('Input¦Forecast'!$J$17:$J$95,$B15,'Input¦Forecast'!C$17:C$95)/1000 -> 0 | M15: =SUMIF('Input¦Forecast'!$J$17:$J$95,$B15,'Input¦Forecast'!D$17:D$95)/1000 -> 0 | N15: =SUMIF('Input¦Forecast'!$J$17:$J$95,$B15,'Input¦Forecast'!E$17:E$95)/1000 -> 0 | O15: =SUMIF('Input¦Forecast'!$J$17:$J$95,$B15,'Input¦Forecast'!F$17:F$95)/1000 -> 0 | P15: =SUMIF('Input¦Forecast'!$J$17:$J$95,$B15,'Input¦Forecast'!G$17:G$95)/1000 -> 0
B16: Flood Damage | C16: $m nominal | D16: =SUMIF('Input¦Historic'!$G$17:$G$97,$B16,'Input¦Historic'!B$17:B$97)/1000000 -> 0.09802684 | E16: =SUMIF('Input¦Historic'!$G$17:$G$97,$B16,'Input¦Historic'!C$17:C$97)/1000000 -> 1.794542247 | F16: =SUMIF('Input¦Historic'!$G$17:$G$97,$B16,'Input¦Historic'!D$17:D$97)/1000000 -> 5.68429149 | G16: =SUMIF('Input¦Historic'!$G$17:$G$97,$B16,'Input¦Historic'!E$17:E$97)/1000000 -> 0 | H16: =SUMIF('Input¦Forecast'!$J$17:$J$95,$B16,'Input¦Forecast'!B$17:B$95)/1000*'inputs¦other'!H$13 -> 0 | J16: =B16 -> Flood Damage | K16: $m real 2016/17 | L16: =SUMIF('Input¦Forecast'!$J$17:$J$95,$B16,'Input¦Forecast'!C$17:C$95)/1000 -> 0 | M16: =SUMIF('Input¦Forecast'!$J$17:$J$95,$B16,'Input¦Forecast'!D$17:D$95)/1000 -> 0 | N16: =SUMIF('Input¦Forecast'!$J$17:$J$95,$B16,'Input¦Forecast'!E$17:E$95)/1000 -> 0 | O16: =SUMIF('Input¦Forecast'!$J$17:$J$95,$B16,'Input¦Forecast'!F$17:F$95)/1000 -> 0 | P16: =SUMIF('Input¦Forecast'!$J$17:$J$95,$B16,'Input¦Forecast'!G$17:G$95)/1000 -> 0
B17: Bi direction | C17: $m nominal | D17: =SUMIF('Input¦Historic'!$G$17:$G$97,$B17,'Input¦Historic'!B$17:B$97)/1000000 -> 0 | E17: =SUMIF('Input¦Historic'!$G$17:$G$97,$B17,'Input¦Historic'!C$17:C$97)/1000000 -> 0 | F17: =SUMIF('Input¦Historic'!$G$17:$G$97,$B17,'Input¦Historic'!D$17:D$97)/1000000 -> 7.54519578 | G17: =SUMIF('Input¦Historic'!$G$17:$G$97,$B17,'Input¦Historic'!E$17:E$97)/1000000 -> 0.61401758 | H17: =SUMIF('Input¦Forecast'!$J$17:$J$95,$B17,'Input¦Forecast'!B$17:B$95)/1000*'inputs¦other'!H$13 -> 0 | J17: Bi direction | K17: $m real 2016/17 | L17: =SUMIF('Input¦Forecast'!$J$17:$J$95,$B17,'Input¦Forecast'!C$17:C$95)/1000 -> 0 | M17: =SUMIF('Input¦Forecast'!$J$17:$J$95,$B17,'Input¦Forecast'!D$17:D$95)/1000 -> 0 | N17: =SUMIF('Input¦Forecast'!$J$17:$J$95,$B17,'Input¦Forecast'!E$17:E$95)/1000 -> 0 | O17: =SUMIF('Input¦Forecast'!$J$17:$J$95,$B17,'Input¦Forecast'!F$17:F$95)/1000 -> 0 | P17: =SUMIF('Input¦Forecast'!$J$17:$J$95,$B17,'Input¦Forecast'!G$17:G$95)/1000 -> 0
B18: Clear SCADA | C18: $m nominal | D18: =SUMIF('Input¦Historic'!$G$17:$G$97,$B18,'Input¦Historic'!B$17:B$97)/1000000 -> 0 | E18: =SUMIF('Input¦Historic'!$G$17:$G$97,$B18,'Input¦Historic'!C$17:C$97)/1000000 -> 0.39804328 | F18: =SUMIF('Input¦Historic'!$G$17:$G$97,$B18,'Input¦Historic'!D$17:D$97)/1000000 -> 0.54875395 | G18: =SUMIF('Input¦Historic'!$G$17:$G$97,$B18,'Input¦Historic'!E$17:E$97)/1000000 -> 0 | H18: =SUMIF('Input¦Forecast'!$J$17:$J$95,$B18,'Input¦Forecast'!B$17:B$95)/1000*'inputs¦other'!H$13 -> 0 | J18: Clear SCADA | K18: $m real 2016/17 | L18: =SUMIF('Input¦Forecast'!$J$17:$J$95,$B18,'Input¦Forecast'!C$17:C$95)/1000 -> 0 | M18: =SUMIF('Input¦Forecast'!$J$17:$J$95,$B18,'Input¦Forecast'!D$17:D$95)/1000 -> 0 | N18: =SUMIF('Input¦Forecast'!$J$17:$J$95,$B18,'Input¦Forecast'!E$17:E$95)/1000 -> 0 | O18: =SUMIF('Input¦Forecast'!$J$17:$J$95,$B18,'Input¦Forecast'!F$17:F$95)/1000 -> 0 | P18: =SUMIF('Input¦Forecast'!$J$17:$J$95,$B18,'Input¦Forecast'!G$17:G$95)/1000 -> 0
B19: RBP Looping | C19: $m nominal | D19: =SUMIF('Input¦Historic'!$G$17:$G$97,$B19,'Input¦Historic'!B$17:B$97)/1000000 -> 2.92318626 | E19: =SUMIF('Input¦Historic'!$G$17:$G$97,$B19,'Input¦Historic'!C$17:C$97)/1000000 -> 2.40302167 | F19: =SUMIF('Input¦Historic'!$G$17:$G$97,$B19,'Input¦Historic'!D$17:D$97)/1000000 -> 0.01857902 | G19: =SUMIF('Input¦Historic'!$G$17:$G$97,$B19,'Input¦Historic'!E$17:E$97)/1000000 -> 0 | H19: =SUMIF('Input¦Forecast'!$J$17:$J$95,$B19,'Input¦Forecast'!B$17:B$95)/1000*'inputs¦other'!H$13 -> 0 | J19: RBP Looping | K19: $m real 2016/17 | L19: =SUMIF('Input¦Forecast'!$J$17:$J$95,$B19,'Input¦Forecast'!C$17:C$95)/1000 -> 0 | M19: =SUMIF('Input¦Forecast'!$J$17:$J$95,$B19,'Input¦Forecast'!D$17:D$95)/1000 -> 0 | N19: =SUMIF('Input¦Forecast'!$J$17:$J$95,$B19,'Input¦Forecast'!E$17:E$95)/1000 -> 0 | O19: =SUMIF('Input¦Forecast'!$J$17:$J$95,$B19,'Input¦Forecast'!F$17:F$95)/1000 -> 0 | P19: =SUMIF('Input¦Forecast'!$J$17:$J$95,$B19,'Input¦Forecast'!G$17:G$95)/1000 -> 0
B20: FC and RTU upgrade | C20: $m nominal | D20: =SUMIF('Input¦Historic'!$G$17:$G$97,$B20,'Input¦Historic'!B$17:B$97)/1000000 -> 0.026836 | E20: =SUMIF('Input¦Historic'!$G$17:$G$97,$B20,'Input¦Historic'!C$17:C$97)/1000000 -> 0.4423934 | F20: =SUMIF('Input¦Historic'!$G$17:$G$97,$B20,'Input¦Historic'!D$17:D$97)/1000000 -> 0.53151581 | G20: =SUMIF('Input¦Historic'!$G$17:$G$97,$B20,'Input¦Historic'!E$17:E$97)/1000000 -> 0.10216829 | H20: =SUMIF('Input¦Forecast'!$J$17:$J$95,$B20,'Input¦Forecast'!B$17:B$95)/1000*'inputs¦other'!H$13 -> 0 | J20: FC and RTU upgrade | K20: $m real 2016/17 | L20: =SUMIF('Input¦Forecast'!$J$17:$J$95,$B20,'Input¦Forecast'!C$17:C$95)/1000 -> 0 | M20: =SUMIF('Input¦Forecast'!$J$17:$J$95,$B20,'Input¦Forecast'!D$17:D$95)/1000 -> 0 | N20: =SUMIF('Input¦Forecast'!$J$17:$J$95,$B20,'Input¦Forecast'!E$17:E$95)/1000 -> 0 | O20: =SUMIF('Input¦Forecast'!$J$17:$J$95,$B20,'Input¦Forecast'!F$17:F$95)/1000 -> 0 | P20: =SUMIF('Input¦Forecast'!$J$17:$J$95,$B20,'Input¦Forecast'!G$17:G$95)/1000 -> 0
B21: Toowoomba Station Upgrade | C21: $m nominal | D21: =SUMIF('Input¦Historic'!$G$17:$G$97,$B21,'Input¦Historic'!B$17:B$97)/1000000 -> 0.05611001 | E21: =SUMIF('Input¦Historic'!$G$17:$G$97,$B21,'Input¦Historic'!C$17:C$97)/1000000 -> 0.40998034 | F21: =SUMIF('Input¦Historic'!$G$17:$G$97,$B21,'Input¦Historic'!D$17:D$97)/1000000 -> 0.83088895 | G21: =SUMIF('Input¦Historic'!$G$17:$G$97,$B21,'Input¦Historic'!E$17:E$97)/1000000 -> 0 | H21: =SUMIF('Input¦Forecast'!$J$17:$J$95,$B21,'Input¦Forecast'!B$17:B$95)/1000*'inputs¦other'!H$13 -> 0 | J21: Toowoomba Station Upgrade | K21: $m real 2016/17 | L21: =SUMIF('Input¦Forecast'!$J$17:$J$95,$B21,'Input¦Forecast'!C$17:C$95)/1000 -> 0 | M21: =SUMIF('Input¦Forecast'!$J$17:$J$95,$B21,'Input¦Forecast'!D$17:D$95)/1000 -> 0 | N21: =SUMIF('Input¦Forecast'!$J$17:$J$95,$B21,'Input¦Forecast'!E$17:E$95)/1000 -> 0 | O21: =SUMIF('Input¦Forecast'!$J$17:$J$95,$B21,'Input¦Forecast'!F$17:F$95)/1000 -> 0 | P21: =SUMIF('Input¦Forecast'!$J$17:$J$95,$B21,'Input¦Forecast'!G$17:G$95)/1000 -> 0
B22: Access Arrangement | C22: $m nominal | D22: =SUMIF('Input¦Historic'!$G$17:$G$97,$B22,'Input¦Historic'!B$17:B$97)/1000000 -> 0.07087535 | E22: =SUMIF('Input¦Historic'!$G$17:$G$97,$B22,'Input¦Historic'!C$17:C$97)/1000000 -> 0 | F22: =SUMIF('Input¦Historic'!$G$17:$G$97,$B22,'Input¦Historic'!D$17:D$97)/1000000 -> 0 | G22: =SUMIF('Input¦Historic'!$G$17:$G$97,$B22,'Input¦Historic'!E$17:E$97)/1000000 -> 0.05800808 | H22: =SUMIF('Input¦Forecast'!$J$17:$J$95,$B22,'Input¦Forecast'!B$17:B$95)/1000*'inputs¦other'!H$13 -> 0.911856697 | J22: Access Arrangement | K22: $m real 2016/17 | L22: =SUMIF('Input¦Forecast'!$J$17:$J$95,$B22,'Input¦Forecast'!C$17:C$95)/1000 -> 0.07250548305 | M22: =SUMIF('Input¦Forecast'!$J$17:$J$95,$B22,'Input¦Forecast'!D$17:D$95)/1000 -> 0 | N22: =SUMIF('Input¦Forecast'!$J$17:$J$95,$B22,'Input¦Forecast'!E$17:E$95)/1000 -> 0 | O22: =SUMIF('Input¦Forecast'!$J$17:$J$95,$B22,'Input¦Forecast'!F$17:F$95)/1000 -> 0.05934226584 | P22: =SUMIF('Input¦Forecast'!$J$17:$J$95,$B22,'Input¦Forecast'!G$17:G$95)/1000 -> 0.911856697
B23: Stay in business | C23: $m nominal | D23: =SUMIF('Input¦Historic'!$G$17:$G$100,"SIB",'Input¦Historic'!B$17:B$100)/1000000 -> 1.845689717 | E23: =SUMIF('Input¦Historic'!$G$17:$G$100,"SIB",'Input¦Historic'!C$17:C$100)/1000000 -> 2.18657785 | F23: =SUMIF('Input¦Historic'!$G$17:$G$100,"SIB",'Input¦Historic'!D$17:D$100)/1000000 -> 3.204339481 | G23: =SUMIF('Input¦Historic'!$G$17:$G$100,"SIB",'Input¦Historic'!E$17:E$100)/1000000 -> 3.68953432 | H23: =SUMIF('Input¦Forecast'!$J$17:$J$95,$B23,'Input¦Forecast'!B$17:B$95)/1000*'inputs¦other'!H$13 -> 2.562480117 | J23: Stay in business | K23: $m real 2016/17 | L23: =SUMIF('Input¦Forecast'!$J$17:$J$95,$B23,'Input¦Forecast'!C$17:C$95)/1000 -> 2.983290632 | M23: =SUMIF('Input¦Forecast'!$J$17:$J$95,$B23,'Input¦Forecast'!D$17:D$95)/1000 -> 1.195275843 | N23: =SUMIF('Input¦Forecast'!$J$17:$J$95,$B23,'Input¦Forecast'!E$17:E$95)/1000 -> 0.629725345 | O23: =SUMIF('Input¦Forecast'!$J$17:$J$95,$B23,'Input¦Forecast'!F$17:F$95)/1000 -> 0.6113077036 | P23: =SUMIF('Input¦Forecast'!$J$17:$J$95,$B23,'Input¦Forecast'!G$17:G$95)/1000 -> 0.2983229825
B24: Urban Risk Reduction | C24: $m nominal | D24: 0 | E24: 0 | F24: 0 | G24: 0 | H24: =SUMIF('Input¦Forecast'!$J$17:$J$95,$B24,'Input¦Forecast'!B$17:B$95)/1000*'inputs¦other'!H$13 -> 8.184 | J24: Urban Risk Reduction | K24: $m real 2016/17 | L24: =SUMIF('Input¦Forecast'!$J$17:$J$95,$B24,'Input¦Forecast'!C$17:C$95)/1000 -> 1.68795 | M24: =SUMIF('Input¦Forecast'!$J$17:$J$95,$B24,'Input¦Forecast'!D$17:D$95)/1000 -> 0.3069 | N24: =SUMIF('Input¦Forecast'!$J$17:$J$95,$B24,'Input¦Forecast'!E$17:E$95)/1000 -> 0.3069 | O24: =SUMIF('Input¦Forecast'!$J$17:$J$95,$B24,'Input¦Forecast'!F$17:F$95)/1000 -> 0.3069 | P24: =SUMIF('Input¦Forecast'!$J$17:$J$95,$B24,'Input¦Forecast'!G$17:G$95)/1000 -> 0.3069
B25: Pipeline Integrity Management | C25: $m nominal | D25: =SUMIF('Input¦Historic'!$G$17:$G$97,$B25,'Input¦Historic'!B$17:B$97)/1000000 -> 0.65395347 | E25: =SUMIF('Input¦Historic'!$G$17:$G$97,$B25,'Input¦Historic'!C$17:C$97)/1000000 -> 2.2802438 | F25: =SUMIF('Input¦Historic'!$G$17:$G$97,$B25,'Input¦Historic'!D$17:D$97)/1000000 -> 3.50841376 | G25: =SUMIF('Input¦Historic'!$G$17:$G$97,$B25,'Input¦Historic'!E$17:E$97)/1000000 -> 5.40870331 | H25: =SUMIF('Input¦Forecast'!$J$17:$J$95,$B25,'Input¦Forecast'!B$17:B$95)/1000*'inputs¦other'!H$13 -> 6.254622 | J25: Pipeline Integrity Management | K25: $m real 2016/17 | L25: =SUMIF('Input¦Forecast'!$J$17:$J$95,$B25,'Input¦Forecast'!C$17:C$95)/1000 -> 8.6955 | M25: =SUMIF('Input¦Forecast'!$J$17:$J$95,$B25,'Input¦Forecast'!D$17:D$95)/1000 -> 10.248414 | N25: =SUMIF('Input¦Forecast'!$J$17:$J$95,$B25,'Input¦Forecast'!E$17:E$95)/1000 -> 5.455659 | O25: =SUMIF('Input¦Forecast'!$J$17:$J$95,$B25,'Input¦Forecast'!F$17:F$95)/1000 -> 6.811134 | P25: =SUMIF('Input¦Forecast'!$J$17:$J$95,$B25,'Input¦Forecast'!G$17:G$95)/1000 -> 6.377382
B26: Toowoomba Crossing | C26: $m nominal | D26: 0 | E26: 0 | F26: 0 | G26: 0 | H26: =SUMIF('Input¦Forecast'!$J$17:$J$95,$B26,'Input¦Forecast'!B$17:B$95)/1000*'inputs¦other'!H$13 -> 0.3069 | J26: Toowoomba Crossing | K26: $m real 2016/17 | L26: =SUMIF('Input¦Forecast'!$J$17:$J$95,$B26,'Input¦Forecast'!C$17:C$95)/1000 -> 11.91795 | M26: =SUMIF('Input¦Forecast'!$J$17:$J$95,$B26,'Input¦Forecast'!D$17:D$95)/1000 -> 3.5805 | N26: =SUMIF('Input¦Forecast'!$J$17:$J$95,$B26,'Input¦Forecast'!E$17:E$95)/1000 -> 0 | O26: =SUMIF('Input¦Forecast'!$J$17:$J$95,$B26,'Input¦Forecast'!F$17:F$95)/1000 -> 0 | P26: =SUMIF('Input¦Forecast'!$J$17:$J$95,$B26,'Input¦Forecast'!G$17:G$95)/1000 -> 0
B27: Applications and Renewals | C27: $m nominal | D27: 0 | E27: 0 | F27: 0 | G27: 0 | H27: =SUMIF('Input¦Forecast'!$J$17:$J$95,$B27,'Input¦Forecast'!B$17:B$95)/1000*'inputs¦other'!H$13 -> 0 | J27: Applications and Renewals | K27: $m real 2016/17 | L27: =SUMIF('Input¦Forecast'!$J$17:$J$95,$B27,'Input¦Forecast'!C$17:C$95)/1000 -> 0.425728837 | M27: =SUMIF('Input¦Forecast'!$J$17:$J$95,$B27,'Input¦Forecast'!D$17:D$95)/1000 -> 0.5318525471 | N27: =SUMIF('Input¦Forecast'!$J$17:$J$95,$B27,'Input¦Forecast'!E$17:E$95)/1000 -> 0.425728837 | O27: =SUMIF('Input¦Forecast'!$J$17:$J$95,$B27,'Input¦Forecast'!F$17:F$95)/1000 -> 0.5318525471 | P27: =SUMIF('Input¦Forecast'!$J$17:$J$95,$B27,'Input¦Forecast'!G$17:G$95)/1000 -> 0.425728837
B28: Infrastructure Renewals | C28: $m nominal | D28: 0 | E28: 0 | F28: 0 | G28: 0 | H28: =SUMIF('Input¦Forecast'!$J$17:$J$95,$B28,'Input¦Forecast'!B$17:B$95)/1000*'inputs¦other'!H$13 -> 0 | J28: Infrastructure Renewals | K28: $m real 2016/17 | L28: =SUMIF('Input¦Forecast'!$J$17:$J$95,$B28,'Input¦Forecast'!C$17:C$95)/1000 -> 0.1388246208 | M28: =SUMIF('Input¦Forecast'!$J$17:$J$95,$B28,'Input¦Forecast'!D$17:D$95)/1000 -> 0.04627487359 | N28: =SUMIF('Input¦Forecast'!$J$17:$J$95,$B28,'Input¦Forecast'!E$17:E$95)/1000 -> 0.04627487359 | O28: =SUMIF('Input¦Forecast'!$J$17:$J$95,$B28,'Input¦Forecast'!F$17:F$95)/1000 -> 0.04627487359 | P28: =SUMIF('Input¦Forecast'!$J$17:$J$95,$B28,'Input¦Forecast'!G$17:G$95)/1000 -> 0
B29: Total | C29: $m nominal | D29: =SUM(D15:D28) -> 5.878085067 | E29: =SUM(E15:E28) -> 10.52095472 | F29: =SUM(F15:F28) -> 22.99217637 | G29: =SUM(G15:G28) -> 9.87243158 | H29: =SUM(H15:H28) -> 18.21985881 | J29: Total | L29: =SUM(L15:L28) -> 25.92174957 | M29: =SUM(M15:M28) -> 15.90921726 | N29: =SUM(N15:N28) -> 6.864288056 | O29: =SUM(O15:O28) -> 8.36681139 | P29: =SUM(P15:P28) -> 8.320190516
B31: Total Inputs | D31: ='Input¦Historic'!B101/1000000 -> 5.878085067 | E31: ='Input¦Historic'!C101/1000000 -> 10.52095472 | F31: ='Input¦Historic'!D101/1000000 -> 22.99217637 | G31: ='Input¦Historic'!E101/1000000 -> 9.87243158 | H31: ='Input¦Forecast'!B99/1000*'inputs¦other'!H$13 -> 18.21985881 | J31: Total Inputs | L31: ='Input¦Forecast'!C99/1000 -> 25.92174957 | M31: ='Input¦Forecast'!D99/1000 -> 15.90921726 | N31: ='Input¦Forecast'!E99/1000 -> 6.864288056 | O31: ='Input¦Forecast'!F99/1000 -> 8.36681139 | P31: ='Input¦Forecast'!G99/1000 -> 8.320190516
B32: Difference | D32: =D29-D31 -> 0 | E32: =E29-E31 -> 0 | F32: 0 | G32: 0 | H32: 0 | J32: Difference | L32: =L29-L31 -> 0 | M32: 0 | N32: 0 | O32: 0 | P32: 0
B34: Asset Class | D34: =D14 -> 2013 | E34: =E14 -> 2014 | F34: =F14 -> 2015 | G34: =G14 -> 2016 | H34: =H14 -> 2017 | J34: Asset Class | L34: =L14 -> 2018 | M34: =M14 -> 2019 | N34: =N14 -> 2020 | O34: =O14 -> 2021 | P34: =P14 -> 2022
B35: Original Pipeline | C35: =C29 -> $m nominal | D35: =SUMPRODUCT('Input¦Historic'!$I$17:$I$97,'Input¦Historic'!B$17:B$97)/1000000 -> 0.48264718 | E35: =SUMPRODUCT('Input¦Historic'!$I$17:$I$97,'Input¦Historic'!C$17:C$97)/1000000 -> 3.450498443 | F35: =SUMPRODUCT('Input¦Historic'!$I$17:$I$97,'Input¦Historic'!D$17:D$97)/1000000 -> 6.536361555 | G35: =SUMPRODUCT('Input¦Historic'!$I$17:$I$97,'Input¦Historic'!E$17:E$97)/1000000 -> 5.66083698 | H35: =SUMPRODUCT('Input¦Forecast'!B$17:B$95,'Input¦Forecast'!$K$17:$K$95)/1000*'inputs¦other'!H13 -> 14.0810835 | J35: Original Pipeline | K35: =K28 -> $m real 2016/17 | L35: =SUMPRODUCT('Input¦Forecast'!C$17:C$95,'Input¦Forecast'!$K$17:$K$95)/1000 -> 15.8171145 | M35: =SUMPRODUCT('Input¦Forecast'!D$17:D$95,'Input¦Forecast'!$K$17:$K$95)/1000 -> 11.589567 | N35: =SUMPRODUCT('Input¦Forecast'!E$17:E$95,'Input¦Forecast'!$K$17:$K$95)/1000 -> 4.9017045 | O35: =SUMPRODUCT('Input¦Forecast'!F$17:F$95,'Input¦Forecast'!$K$17:$K$95)/1000 -> 4.674087 | P35: =SUMPRODUCT('Input¦Forecast'!G$17:G$95,'Input¦Forecast'!$K$17:$K$95)/1000 -> 6.2326275
B36: Pipelines | C36: =C35 -> $m nominal | D36: =SUMPRODUCT('Input¦Historic'!$J$17:$J$97,'Input¦Historic'!B$17:B$97)/1000000 -> 2.84137731 | E36: =SUMPRODUCT('Input¦Historic'!$J$17:$J$97,'Input¦Historic'!C$17:C$97)/1000000 -> 3.340928663 | F36: =SUMPRODUCT('Input¦Historic'!$J$17:$J$97,'Input¦Historic'!D$17:D$97)/1000000 -> 10.40592053 | G36: =SUMPRODUCT('Input¦Historic'!$J$17:$J$97,'Input¦Historic'!E$17:E$97)/1000000 -> 0.61401758 | H36: =SUMPRODUCT('Input¦Forecast'!B$17:B$95,'Input¦Forecast'!$L$17:$L$95)/1000*'inputs¦other'!H13 -> 0.892804465 | J36: Pipelines | K36: =K35 -> $m real 2016/17 | L36: =SUMPRODUCT('Input¦Forecast'!C$17:C$95,'Input¦Forecast'!$L$17:$L$95)/1000 -> 7.0264755 | M36: =SUMPRODUCT('Input¦Forecast'!D$17:D$95,'Input¦Forecast'!$L$17:$L$95)/1000 -> 2.546247 | N36: =SUMPRODUCT('Input¦Forecast'!E$17:E$95,'Input¦Forecast'!$L$17:$L$95)/1000 -> 0.8608545 | O36: =SUMPRODUCT('Input¦Forecast'!F$17:F$95,'Input¦Forecast'!$L$17:$L$95)/1000 -> 2.443947 | P36: =SUMPRODUCT('Input¦Forecast'!G$17:G$95,'Input¦Forecast'!$L$17:$L$95)/1000 -> 0.4516545
B37: Compressors | C37: =C36 -> $m nominal | D37: =SUMPRODUCT('Input¦Historic'!$K$17:$K$97,'Input¦Historic'!B$17:B$97)/1000000 -> 0.1432417 | E37: =SUMPRODUCT('Input¦Historic'!$K$17:$K$97,'Input¦Historic'!C$17:C$97)/1000000 -> 0.02352989 | F37: =SUMPRODUCT('Input¦Historic'!$K$17:$K$97,'Input¦Historic'!D$17:D$97)/1000000 -> 1e-08 | G37: =SUMPRODUCT('Input¦Historic'!$K$17:$K$97,'Input¦Historic'!E$17:E$97)/1000000 -> 0 | H37: =SUMPRODUCT('Input¦Forecast'!B$17:B$95,'Input¦Forecast'!$M$17:$M$95)/1000*'inputs¦other'!H13 -> 0 | J37: Compressors | K37: =K36 -> $m real 2016/17 | L37: =SUMPRODUCT('Input¦Forecast'!C$17:C$95,'Input¦Forecast'!$M$17:$M$95)/1000 -> 0.1023 | M37: =SUMPRODUCT('Input¦Forecast'!D$17:D$95,'Input¦Forecast'!$M$17:$M$95)/1000 -> 0.1023 | N37: =SUMPRODUCT('Input¦Forecast'!E$17:E$95,'Input¦Forecast'!$M$17:$M$95)/1000 -> 0 | O37: =SUMPRODUCT('Input¦Forecast'!F$17:F$95,'Input¦Forecast'!$M$17:$M$95)/1000 -> 0 | P37: =SUMPRODUCT('Input¦Forecast'!G$17:G$95,'Input¦Forecast'!$M$17:$M$95)/1000 -> 0
B38: Regulators and meters | C38: $m nominal | D38: =SUMPRODUCT('Input¦Historic'!$L$17:$L$97,'Input¦Historic'!B$17:B$97)/1000000 -> 0 | E38: =SUMPRODUCT('Input¦Historic'!$L$17:$L$97,'Input¦Historic'!C$17:C$97)/1000000 -> 0 | F38: =SUMPRODUCT('Input¦Historic'!$L$17:$L$97,'Input¦Historic'!D$17:D$97)/1000000 -> 0 | G38: =SUMPRODUCT('Input¦Historic'!$L$17:$L$97,'Input¦Historic'!E$17:E$97)/1000000 -> 0 | H38: =SUMPRODUCT('Input¦Forecast'!B$17:B$95,'Input¦Forecast'!$N$17:$N$95)/1000*'inputs¦other'!H13 -> 0 | J38: Regulators and meters | K38: $m real 2016/17 | L38: =SUMPRODUCT('Input¦Forecast'!C$17:C$95,'Input¦Forecast'!$N$17:$N$95)/1000 -> 0.2614591491 | M38: =SUMPRODUCT('Input¦Forecast'!D$17:D$95,'Input¦Forecast'!$N$17:$N$95)/1000 -> 0 | N38: =SUMPRODUCT('Input¦Forecast'!E$17:E$95,'Input¦Forecast'!$N$17:$N$95)/1000 -> 0.08184 | O38: =SUMPRODUCT('Input¦Forecast'!F$17:F$95,'Input¦Forecast'!$N$17:$N$95)/1000 -> 0 | P38: =SUMPRODUCT('Input¦Forecast'!G$17:G$95,'Input¦Forecast'!$N$17:$N$95)/1000 -> 0
B39: Easements | C39: $m nominal | D39: =SUMPRODUCT('Input¦Historic'!$M$17:$M$97,'Input¦Historic'!B$17:B$97)/1000000 -> 0.03221123 | E39: =SUMPRODUCT('Input¦Historic'!$M$17:$M$97,'Input¦Historic'!C$17:C$97)/1000000 -> 0.00974572 | F39: =SUMPRODUCT('Input¦Historic'!$M$17:$M$97,'Input¦Historic'!D$17:D$97)/1000000 -> 0.000612 | G39: =SUMPRODUCT('Input¦Historic'!$M$17:$M$97,'Input¦Historic'!E$17:E$97)/1000000 -> 0.07492814 | H39: =SUMPRODUCT('Input¦Forecast'!B$17:B$95,'Input¦Forecast'!$O$17:$O$95)/1000*'inputs¦other'!H13 -> 0 | J39: Easements | K39: $m real 2016/17 | L39: =SUMPRODUCT('Input¦Forecast'!C$17:C$95,'Input¦Forecast'!$O$17:$O$95)/1000 -> 0 | M39: =SUMPRODUCT('Input¦Forecast'!D$17:D$95,'Input¦Forecast'!$O$17:$O$95)/1000 -> 0 | N39: =SUMPRODUCT('Input¦Forecast'!E$17:E$95,'Input¦Forecast'!$O$17:$O$95)/1000 -> 0 | O39: =SUMPRODUCT('Input¦Forecast'!F$17:F$95,'Input¦Forecast'!$O$17:$O$95)/1000 -> 0 | P39: =SUMPRODUCT('Input¦Forecast'!G$17:G$95,'Input¦Forecast'!$O$17:$O$95)/1000 -> 0
B40: Communications | C40: $m nominal | D40: =SUMPRODUCT('Input¦Historic'!$N$17:$N$97,'Input¦Historic'!B$17:B$97)/1000000 -> 0 | E40: =SUMPRODUCT('Input¦Historic'!$N$17:$N$97,'Input¦Historic'!C$17:C$97)/1000000 -> 0 | F40: =SUMPRODUCT('Input¦Historic'!$N$17:$N$97,'Input¦Historic'!D$17:D$97)/1000000 -> 0 | G40: =SUMPRODUCT('Input¦Historic'!$N$17:$N$97,'Input¦Historic'!E$17:E$97)/1000000 -> 0 | H40: =SUMPRODUCT('Input¦Forecast'!B$17:B$95,'Input¦Forecast'!$P$17:$P$95)/1000*'inputs¦other'!H13 -> 0 | J40: Communications | K40: $m real 2016/17 | L40: =SUMPRODUCT('Input¦Forecast'!C$17:C$95,'Input¦Forecast'!$P$17:$P$95)/1000 -> 0 | M40: =SUMPRODUCT('Input¦Forecast'!D$17:D$95,'Input¦Forecast'!$P$17:$P$95)/1000 -> 0 | N40: =SUMPRODUCT('Input¦Forecast'!E$17:E$95,'Input¦Forecast'!$P$17:$P$95)/1000 -> 0 | O40: =SUMPRODUCT('Input¦Forecast'!F$17:F$95,'Input¦Forecast'!$P$17:$P$95)/1000 -> 0 | P40: =SUMPRODUCT('Input¦Forecast'!G$17:G$95,'Input¦Forecast'!$P$17:$P$95)/1000 -> 0
B41: Other | C41: $m nominal | D41: =SUMPRODUCT('Input¦Historic'!$O$17:$O$97,'Input¦Historic'!B$17:B$97)/1000000 -> 0 | E41: =SUMPRODUCT('Input¦Historic'!$O$17:$O$97,'Input¦Historic'!C$17:C$97)/1000000 -> 0 | F41: =SUMPRODUCT('Input¦Historic'!$O$17:$O$97,'Input¦Historic'!D$17:D$97)/1000000 -> 0 | G41: =SUMPRODUCT('Input¦Historic'!$O$17:$O$97,'Input¦Historic'!E$17:E$97)/1000000 -> 0 | H41: =SUMPRODUCT('Input¦Forecast'!B$17:B$95,'Input¦Forecast'!$Q$17:$Q$95)/1000*'inputs¦other'!H13 -> 0 | J41: Other | K41: $m real 2016/17 | L41: =SUMPRODUCT('Input¦Forecast'!C$17:C$95,'Input¦Forecast'!$Q$17:$Q$95)/1000 -> 0 | M41: =SUMPRODUCT('Input¦Forecast'!D$17:D$95,'Input¦Forecast'!$Q$17:$Q$95)/1000 -> 0 | N41: =SUMPRODUCT('Input¦Forecast'!E$17:E$95,'Input¦Forecast'!$Q$17:$Q$95)/1000 -> 0 | O41: =SUMPRODUCT('Input¦Forecast'!F$17:F$95,'Input¦Forecast'!$Q$17:$Q$95)/1000 -> 0 | P41: =SUMPRODUCT('Input¦Forecast'!G$17:G$95,'Input¦Forecast'!$Q$17:$Q$95)/1000 -> 0
B42: Capitalised AA costs | C42: $m nominal | D42: =SUMPRODUCT('Input¦Historic'!$P$17:$P$97,'Input¦Historic'!B$17:B$97)/1000000 -> 0.07087535 | E42: =SUMPRODUCT('Input¦Historic'!$P$17:$P$97,'Input¦Historic'!C$17:C$97)/1000000 -> 0 | F42: =SUMPRODUCT('Input¦Historic'!$P$17:$P$97,'Input¦Historic'!D$17:D$97)/1000000 -> 0 | G42: =SUMPRODUCT('Input¦Historic'!$P$17:$P$97,'Input¦Historic'!E$17:E$97)/1000000 -> 0.05800808 | H42: =SUMPRODUCT('Input¦Forecast'!B$17:B$95,'Input¦Forecast'!$R$17:$R$95)/1000*'inputs¦other'!H13 -> 0.911856697 | J42: Capitalised AA costs | K42: $m real 2016/17 | L42: =SUMPRODUCT('Input¦Forecast'!C$17:C$95,'Input¦Forecast'!$R$17:$R$95)/1000 -> 0.07250548305 | M42: =SUMPRODUCT('Input¦Forecast'!D$17:D$95,'Input¦Forecast'!$R$17:$R$95)/1000 -> 0 | N42: =SUMPRODUCT('Input¦Forecast'!E$17:E$95,'Input¦Forecast'!$R$17:$R$95)/1000 -> 0 | O42: =SUMPRODUCT('Input¦Forecast'!F$17:F$95,'Input¦Forecast'!$R$17:$R$95)/1000 -> 0.05934226584 | P42: =SUMPRODUCT('Input¦Forecast'!G$17:G$95,'Input¦Forecast'!$R$17:$R$95)/1000 -> 0.911856697
B43: Group IT | C43: $m nominal | D43: =SUMPRODUCT('Input¦Historic'!$Q$17:$Q$97,'Input¦Historic'!B$17:B$97)/1000000 -> 1.292236067 | E43: =SUMPRODUCT('Input¦Historic'!$Q$17:$Q$97,'Input¦Historic'!C$17:C$97)/1000000 -> 1.14677746 | F43: =SUMPRODUCT('Input¦Historic'!$Q$17:$Q$97,'Input¦Historic'!D$17:D$97)/1000000 -> 2.284029771 | G43: =SUMPRODUCT('Input¦Historic'!$Q$17:$Q$97,'Input¦Historic'!E$17:E$97)/1000000 -> 1.57191078 | H43: =SUMPRODUCT('Input¦Forecast'!B$17:B$95,'Input¦Forecast'!$S$17:$S$95)/1000*'inputs¦other'!H13 -> 1.410389656 | J43: Group IT | K43: $m real 2016/17 | L43: =SUMPRODUCT('Input¦Forecast'!C$17:C$95,'Input¦Forecast'!$S$17:$S$95)/1000 -> 1.614271213 | M43: =SUMPRODUCT('Input¦Forecast'!D$17:D$95,'Input¦Forecast'!$S$17:$S$95)/1000 -> 0.5901852813 | N43: =SUMPRODUCT('Input¦Forecast'!E$17:E$95,'Input¦Forecast'!$S$17:$S$95)/1000 -> 0.4913910731 | O43: =SUMPRODUCT('Input¦Forecast'!F$17:F$95,'Input¦Forecast'!$S$17:$S$95)/1000 -> 0.6353621418 | P43: =SUMPRODUCT('Input¦Forecast'!G$17:G$95,'Input¦Forecast'!$S$17:$S$95)/1000 -> 0.425728837
B44: SIB Capex | C44: $m nominal | D44: =SUMPRODUCT('Input¦Historic'!$R$17:$R$97,'Input¦Historic'!B$17:B$97)/1000000 -> 1.01549623 | E44: =SUMPRODUCT('Input¦Historic'!$R$17:$R$97,'Input¦Historic'!C$17:C$97)/1000000 -> 2.54947454 | F44: =SUMPRODUCT('Input¦Historic'!$R$17:$R$97,'Input¦Historic'!D$17:D$97)/1000000 -> 3.7652525 | G44: =SUMPRODUCT('Input¦Historic'!$R$17:$R$97,'Input¦Historic'!E$17:E$97)/1000000 -> 1.89273002 | H44: =SUMPRODUCT('Input¦Forecast'!B$17:B$95,'Input¦Forecast'!$T$17:$T$95)/1000*'inputs¦other'!H13 -> 0.9237244957 | J44: SIB Capex | K44: $m real 2016/17 | L44: =SUMPRODUCT('Input¦Forecast'!C$17:C$95,'Input¦Forecast'!$T$17:$T$95)/1000 -> 1.027623728 | M44: =SUMPRODUCT('Input¦Forecast'!D$17:D$95,'Input¦Forecast'!$T$17:$T$95)/1000 -> 1.080917983 | N44: =SUMPRODUCT('Input¦Forecast'!E$17:E$95,'Input¦Forecast'!$T$17:$T$95)/1000 -> 0.5284979825 | O44: =SUMPRODUCT('Input¦Forecast'!F$17:F$95,'Input¦Forecast'!$T$17:$T$95)/1000 -> 0.5540729825 | P44: =SUMPRODUCT('Input¦Forecast'!G$17:G$95,'Input¦Forecast'!$T$17:$T$95)/1000 -> 0.2983229825
B45: PMA | C45: $m nominal | D45: =SUMPRODUCT('Input¦Historic'!$S$17:$S$97,'Input¦Historic'!B$17:B$97)/1000000 -> 0 | E45: =SUMPRODUCT('Input¦Historic'!$S$17:$S$97,'Input¦Historic'!C$17:C$97)/1000000 -> 0 | F45: =SUMPRODUCT('Input¦Historic'!$S$17:$S$97,'Input¦Historic'!D$17:D$97)/1000000 -> 0 | G45: =SUMPRODUCT('Input¦Historic'!$S$17:$S$97,'Input¦Historic'!E$17:E$97)/1000000 -> 0 | H45: =SUMPRODUCT('Input¦Forecast'!B$17:B$95,'Input¦Forecast'!$U$17:$U$95)/1000*'inputs¦other'!H13 -> 0 | J45: PMA | K45: $m real 2016/17 | L45: =SUMPRODUCT('Input¦Forecast'!C$17:C$95,'Input¦Forecast'!$U$17:$U$95)/1000 -> 0 | M45: =SUMPRODUCT('Input¦Forecast'!D$17:D$95,'Input¦Forecast'!$U$17:$U$95)/1000 -> 0 | N45: =SUMPRODUCT('Input¦Forecast'!E$17:E$95,'Input¦Forecast'!$U$17:$U$95)/1000 -> 0 | O45: =SUMPRODUCT('Input¦Forecast'!F$17:F$95,'Input¦Forecast'!$U$17:$U$95)/1000 -> 0 | P45: =SUMPRODUCT('Input¦Forecast'!G$17:G$95,'Input¦Forecast'!$U$17:$U$95)/1000 -> 0
B46: Total | C46: $m nominal | D46: =SUM(D35:D45) -> 5.878085067 | E46: =SUM(E35:E45) -> 10.52095472 | F46: 22.99217637 | G46: 9.87243158 | H46: 18.21985881 | J46: Total | K46: $m real 2016/17 | L46: =SUM(L35:L45) -> 25.92174957 | M46: 15.90921726 | N46: 6.864288056 | O46: 8.36681139 | P46: 8.320190516
B48: Check | D48: =D46=D29 -> TRUE | E48: TRUE | F48: TRUE | G48: TRUE | H48: =H46=H29 -> TRUE | J48: Check | L48: =L46-L31 -> 0 | M48: =M46-M31 -> 0 | N48: =N46-N31 -> 0 | O48: =O46-O31 -> 0 | P48: =P46-P31 -> 0
B50: Driver | D50: =D34 -> 2013 | E50: =E34 -> 2014 | F50: 2015 | G50: 2016 | H50: 2017 | J50: Driver | L50: =L34 -> 2018 | M50: 2019 | N50: 2020 | O50: 2021 | P50: 2022
B51: Expansion/Extension | C51: =C46 -> $m nominal | D51: =SUMIF('Input¦Historic'!$H$17:$H$97,$B51,'Input¦Historic'!B$17:B$97)/1000000 -> 2.92318626 | E51: =SUMIF('Input¦Historic'!$H$17:$H$97,$B51,'Input¦Historic'!C$17:C$97)/1000000 -> 2.40302167 | F51: =SUMIF('Input¦Historic'!$H$17:$H$97,$B51,'Input¦Historic'!D$17:D$97)/1000000 -> 0.01857902 | G51: =SUMIF('Input¦Historic'!$H$17:$H$97,$B51,'Input¦Historic'!E$17:E$97)/1000000 -> 0 | H51: =SUMIF('Input¦Forecast'!$I$17:$I$95,$B51,'Input¦Forecast'!B$17:B$95)/1000*'inputs¦other'!H$13 -> 0 | J51: Expansion/Extension | K51: =K46 -> $m real 2016/17 | L51: =L19 -> 0 | M51: =M19 -> 0 | N51: =N19 -> 0 | O51: =O19 -> 0 | P51: =P19 -> 0
B52: Replacement | C52: =C51 -> $m nominal | D52: =SUMIF('Input¦Historic'!$H$17:$H$97,$B52,'Input¦Historic'!B$17:B$97)/1000000 -> 0.65139705 | E52: =SUMIF('Input¦Historic'!$H$17:$H$97,$B52,'Input¦Historic'!C$17:C$97)/1000000 -> 2.12985466 | F52: =SUMIF('Input¦Historic'!$H$17:$H$97,$B52,'Input¦Historic'!D$17:D$97)/1000000 -> 3.88199981 | G52: =SUMIF('Input¦Historic'!$H$17:$H$97,$B52,'Input¦Historic'!E$17:E$97)/1000000 -> 4.43062598 | H52: =SUMIF('Input¦Forecast'!$I$17:$I$95,$B52,'Input¦Forecast'!B$17:B$95)/1000*'inputs¦other'!H$13 -> 6.254622 | J52: Replacement | K52: =K51 -> $m real 2016/17 | L52: =L25 -> 8.6955 | M52: =M25 -> 10.248414 | N52: =N25 -> 5.455659 | O52: =O25 -> 6.811134 | P52: =P25 -> 6.377382
B53: Stay in business | C53: =C52 -> $m nominal | D53: =SUMIF('Input¦Historic'!$H$17:$H$97,$B53,'Input¦Historic'!B$17:B$97)/1000000 -> 2.303501757 | E53: =SUMIF('Input¦Historic'!$H$17:$H$97,$B53,'Input¦Historic'!C$17:C$97)/1000000 -> 5.988078387 | F53: =SUMIF('Input¦Historic'!$H$17:$H$97,$B53,'Input¦Historic'!D$17:D$97)/1000000 -> 19.09159754 | G53: =SUMIF('Input¦Historic'!$H$17:$H$97,$B53,'Input¦Historic'!E$17:E$97)/1000000 -> 5.4418056 | H53: =SUMIF('Input¦Forecast'!$I$17:$I$95,$B53,'Input¦Forecast'!B$17:B$95)/1000*'inputs¦other'!H$13 -> 11.96523681 | J53: Stay in business | K53: =K52 -> $m real 2016/17 | L53: =L46-SUM(L51:L52) -> 17.22624957 | M53: =M46-SUM(M51:M52) -> 5.660803264 | N53: 1.408629056 | O53: 1.55567739 | P53: 1.942808516
B54: Total | C54: =C53 -> $m nominal | D54: =SUM(D51:D53) -> 5.878085067 | E54: =SUM(E51:E53) -> 10.52095472 | F54: 22.99217637 | G54: 9.87243158 | H54: =SUM(H51:H53) -> 18.21985881 | J54: Total | K54: =K53 -> $m real 2016/17 | L54: =SUM(L51:L53) -> 25.92174957 | M54: 15.90921726 | N54: 6.864288056 | O54: 8.36681139 | P54: 8.320190516
B56: Check | D56: =D54=D46 -> TRUE | E56: TRUE | F56: TRUE | G56: TRUE | H56: TRUE | J56: Check | L56: =L54-L46 -> 0 | M56: 0 | N56: 0 | O56: 0 | P56: 0
B58: Motor vehicle disposals | C58: $m nominal | D58: 0.10868118 | E58: 0.06679468 | F58: 0.04084031 | J58: Motor vehicle disposals | K58: $m real 2016/17
B59: Capital contributions | C59: $m nominal | E59: =95218.24/1000000 -> 0.09521824 | J59: Capital contributions | K59: $m real 2016/17
B60: Total net capex | C60: $m nominal | D60: =D54-D58-D59 -> 5.769403887 | E60: =E54-E58-E59 -> 10.3589418 | F60: 22.95133606 | G60: 9.87243158 | H60: 18.21985881 | J60: Total net capex | K60: $m real 2016/17 | L60: =L54-L58-L59 -> 25.92174957 | M60: =M54-M59 -> 15.90921726 | N60: =N54-N59 -> 6.864288056 | O60: =O54-O59 -> 8.36681139 | P60: =P54-P59 -> 8.320190516
B62: Total net capex | C62: $m real 2016/17 | D62: =D60/'inputs¦other'!D13 -> 6.248743749 | E62: =E60/'inputs¦other'!E13 -> 10.94567873 | F62: =F60/'inputs¦other'!F13 -> 23.56104897 | G62: =G60/'inputs¦other'!G13 -> 10.00184548 | H62: =H60/'inputs¦other'!H13 -> 18.21985881
